Body Name,Trans.date,Department Code,Department,Expense Area Code,Expense Area,Expense type code,Expense type,Amount Paid (�),Supplier name,Extended description,TransNo,Period
Rother District Council,10/05/2021,091HOUSING,Housing and Community Services,20206,UK Resettlement (Syrians),D2513,Hired and Contracted services,769.94,Lloyds Bank,Hired and contracted services - Syrian Misc,2032035,202201
Rother District Council,10/05/2021,101RESOURCES,Resources,20239,Computer Services,D2635,Computer Licences,9.99,Lloyds Bank,Computer Licences - Domain Name Renewal,2032037,202201
Rother District Council,10/05/2021,101RESOURCES,Resources,20239,Computer Services,D2635,Computer Licences,155.88,Lloyds Bank,Computer Licences - Domain Name Renewal,2032037,202201
Rother District Council,10/05/2021,101RESOURCES,Resources,20239,Computer Services,D2635,Computer Licences,39.96,Lloyds Bank,Computer Licences - Domain Name Renewal,2032037,202201
Rother District Council,10/05/2021,101RESOURCES,Resources,20239,Computer Services,D2633,Computer Equipment,710.13,Lloyds Bank,Computer Equipment - Computer peripherals,2032036,202201
Rother District Council,10/05/2021,081ACQUISIT,"Acquisitions, Transformation and Regeneration",20144,Property Management,D2518,Advertising,37.50,Lloyds Bank,Advertising - ADVERT WEBSITE,2032037,202201
Rother District Council,10/05/2021,101RESOURCES,Resources,20239,Computer Services,D2633,Computer Equipment,186.43,Lloyds Bank,Computer Equipment,2032036,202201
Rother District Council,08/06/2021,999NOREPORT,Resources,90000,Balance sheet all accounts,P1105,Owed by - Alliance Homes (Rother) Ltd,"4,350.00",Trowers & Hamlins LLP,Owed by - Alliance Homes (Rother) Ltd - purchases,2025277,202201
Rother District Council,12/07/2021,101RESOURCES,Resources,20209,Corporate management,D2513,Hired and Contracted services,46.69,Lloyds Bank,Bank Charges,2032015,202201
Rother District Council,14/07/2021,091HOUSING,Housing and Community Services,20204,Housing Administration Account,D2513,Hired and Contracted services,6.51,The Housing Ombudsman,Hired and contracted services - Service fee paid,2032355,202201
Rother District Council,19/07/2021,031RESOURCES,Chief Executive & Corporate Core,20170,Communications-Postages,D2626,Postages,168.91,Royal Mail Group Ltd,Postages - Response Service-Royal Mail Chg,2031993,202201
Rother District Council,09/08/2021,091HOUSING,Housing and Community Services,20236,Customer Services and Development,A2203,Training,468.00,Lloyds Bank,Training,2032043,202201
Rother District Council,09/08/2021,091HOUSING,Housing and Community Services,20138,Residual Highway Services,B1100,Repairs to Premises,84.40,Lloyds Bank,Repairs to Premises - Purchase of Materials - Build Maint,2032042,202201
Rother District Council,09/08/2021,031RESOURCES,Chief Executive & Corporate Core,20173,Administrative Offices - Town Hall,D2513,Hired and Contracted services,37.31,Lloyds Bank,Hired and contracted services - web site HOST FEE,2032038,202201
Rother District Council,09/08/2021,091HOUSING,Housing and Community Services,20206,UK Resettlement (Syrians),D2513,Hired and Contracted services,165.07,Lloyds Bank,Hired and contracted services - Syrian Misc,2032039,202201
Rother District Council,09/08/2021,101RESOURCES,Resources,20239,Computer Services,D2635,Computer Licences,0.99,Lloyds Bank,Computer Licences - Domain Name Renewal,2032044,202201
Rother District Council,09/08/2021,101RESOURCES,Resources,20239,Computer Services,D2633,Computer Equipment,430.12,Lloyds Bank,Computer Equipment - Computer peripherals,2032041,202201
Rother District Council,09/08/2021,091HOUSING,Housing and Community Services,20120,Neighbourhood Services,D2513,Hired and Contracted services,25.00,Lloyds Bank,Car Parking - On Street Car Parking,2032041,202201
Rother District Council,09/08/2021,091HOUSING,Housing and Community Services,20145,Maintenance Services,D1201,Equipment & Materials,252.00,Lloyds Bank,Equipment & Materials,2032042,202201
Rother District Council,10/08/2021,101RESOURCES,Resources,20209,Corporate management,D2513,Hired and Contracted services,50.52,Lloyds Bank,Bank Charges,2032018,202201
Rother District Council,09/09/2021,081ACQUISIT,"Acquisitions, Transformation and Regeneration",20122,Economic Development,A2203,Training,289.00,Lloyds Bank,Training,2032047,202201
Rother District Council,09/09/2021,071STRAT,Strategy and Planning,20246,Planning Applications,A2203,Training,180.00,Lloyds Bank,Training,2032045,202201
Rother District Council,09/09/2021,031RESOURCES,Chief Executive & Corporate Core,20173,Administrative Offices - Town Hall,B1100,Repairs to Premises,530.40,Lloyds Bank,Repairs to Premises - Purchase of Materials - Build Maint,2032051,202201
Rother District Council,09/09/2021,091HOUSING,Housing and Community Services,20236,Customer Services and Development,D2626,Postages,15.00,Lloyds Bank,Postages - Carriage of Supplies,2032052,202201
Rother District Council,09/09/2021,091HOUSING,Housing and Community Services,20206,UK Resettlement (Syrians),D2513,Hired and Contracted services,111.00,Lloyds Bank,Hired and contracted services - Syrian Misc,2032049,202201
Rother District Council,09/09/2021,091HOUSING,Housing and Community Services,20236,Customer Services and Development,D2420,General office supplies (Stationery purchased from ext suppliers),242.50,Lloyds Bank,General office supplies - Stationery,2032052,202201
Rother District Council,09/09/2021,101RESOURCES,Resources,20239,Computer Services,D2635,Computer Licences,19.98,Lloyds Bank,Computer Licences - Domain Name Renewal,2032045,202201
Rother District Council,09/09/2021,101RESOURCES,Resources,20239,Computer Services,D2633,Computer Equipment,321.30,Lloyds Bank,Computer Equipment - Computer peripherals,2032053,202201
Rother District Council,09/09/2021,999NOREPORT,Resources,90000,Balance sheet all accounts,P1105,Owed by - Alliance Homes (Rother) Ltd,678.84,Lloyds Bank,Owed by - Alliance Homes (Rother) Ltd,2032047,202201
Rother District Council,10/09/2021,101RESOURCES,Resources,20209,Corporate management,D2513,Hired and Contracted services,41.27,Lloyds Bank,Bank Charges,2032010,202201
Rother District Council,05/10/2021,101RESOURCES,Resources,20209,Corporate management,D2513,Hired and Contracted services,61.00,Lloyds Bank,Bank Charges,2032016,202201
Rother District Council,11/10/2021,031RESOURCES,Chief Executive & Corporate Core,20171,Human Resources,A2203,Training,52.50,Lloyds Bank,Training,2032079,202201
Rother District Council,11/10/2021,031RESOURCES,Chief Executive & Corporate Core,20173,Administrative Offices - Town Hall,B1100,Repairs to Premises,147.28,Lloyds Bank,Repairs to Premises - Purchase of Materials - Build Maint,2032079,202201
Rother District Council,11/10/2021,031RESOURCES,Chief Executive & Corporate Core,20173,Administrative Offices - Town Hall,B1100,Repairs to Premises,169.84,Lloyds Bank,Repairs to Premises - Purchase of Materials - Build Maint,2032079,202201
Rother District Council,11/10/2021,091HOUSING,Housing and Community Services,20206,UK Resettlement (Syrians),D2513,Hired and Contracted services,70.50,Lloyds Bank,Hired and contracted services - Syrian Resettlement Programme-Travel,2032069,202201
Rother District Council,11/10/2021,091HOUSING,Housing and Community Services,20206,UK Resettlement (Syrians),D2513,Hired and Contracted services,"1,323.00",Lloyds Bank,Hired and contracted services - Syrian Resettlement Programme-Travel,2032091,202201
Rother District Council,11/10/2021,091HOUSING,Housing and Community Services,20206,UK Resettlement (Syrians),D2513,Hired and Contracted services,99.79,Lloyds Bank,Hired and contracted services - Syrian Misc,2032076,202201
Rother District Council,11/10/2021,091HOUSING,Housing and Community Services,20206,UK Resettlement (Syrians),D2513,Hired and Contracted services,305.82,Lloyds Bank,Hired and contracted services - Syrian Misc,2032091,202201
Rother District Council,11/10/2021,091HOUSING,Housing and Community Services,20206,UK Resettlement (Syrians),D2513,Hired and Contracted services,-1.97,Lloyds Bank,Hired and contracted services - Syrian Misc,2032091,202201
Rother District Council,11/10/2021,091HOUSING,Housing and Community Services,20204,Housing Administration Account,D2513,Hired and Contracted services,23.00,Lloyds Bank,Hired and contracted services - Service fee paid,2032076,202201
Rother District Council,11/10/2021,091HOUSING,Housing and Community Services,20306,Afghan Relocation Assistance Policy,D2513,Hired and Contracted services,6.64,Lloyds Bank,Hired and contracted services - Afghan-Education-Exempt VAT,2032067,202201
Rother District Council,11/10/2021,091HOUSING,Housing and Community Services,20306,Afghan Relocation Assistance Policy,D2513,Hired and Contracted services,6.00,Lloyds Bank,Hired and contracted services - Afghan Resettlement Programme-Travel,2032076,202201
Rother District Council,11/10/2021,091HOUSING,Housing and Community Services,20306,Afghan Relocation Assistance Policy,D2513,Hired and Contracted services,259.00,Lloyds Bank,Hired and contracted services - Afghan Resettlement Programme-Furniture,2032076,202201
Rother District Council,11/10/2021,091HOUSING,Housing and Community Services,20306,Afghan Relocation Assistance Policy,D2513,Hired and Contracted services,533.71,Lloyds Bank,Hired and contracted services - Afghan Misc,2032076,202201
Rother District Council,11/10/2021,091HOUSING,Housing and Community Services,20306,Afghan Relocation Assistance Policy,D2513,Hired and Contracted services,239.13,Lloyds Bank,Hired and contracted services - Afghan Misc,2032091,202201
Rother District Council,11/10/2021,091HOUSING,Housing and Community Services,20306,Afghan Relocation Assistance Policy,D2513,Hired and Contracted services,-1.60,Lloyds Bank,Hired and contracted services - Afghan Misc,2032091,202201
Rother District Council,11/10/2021,041ENVIRON,Environmental Services,32133,EH Food Hyg / Idc / Water Purity R + W Partnership,D2420,General office supplies (Stationery purchased from ext suppliers),95.97,Lloyds Bank,General office supplies - Stationery,2032071,202201
Rother District Council,11/10/2021,031RESOURCES,Chief Executive & Corporate Core,20276,COVID19 RDC expenditure,D1201,Equipment & Materials,318.93,Lloyds Bank,Equipment & materials - Miscellaneous,2032087,202201
Rother District Council,11/10/2021,031RESOURCES,Chief Executive & Corporate Core,20276,COVID19 RDC expenditure,D1201,Equipment & Materials,36.44,Lloyds Bank,Equipment & materials - Miscellaneous,2032087,202201
Rother District Council,11/10/2021,091HOUSING,Housing and Community Services,20236,Customer Services and Development,D1201,Equipment & Materials,193.06,Lloyds Bank,Equipment & materials - Miscellaneous,2032087,202201
Rother District Council,11/10/2021,101RESOURCES,Resources,20239,Computer Services,D2635,Computer Licences,9.99,Lloyds Bank,Computer Licences - Domain Name Renewal,2032071,202201
Rother District Council,11/10/2021,101RESOURCES,Resources,20239,Computer Services,D2635,Computer Licences,19.98,Lloyds Bank,Computer Licences - Domain Name Renewal,2032071,202201
Rother District Council,11/10/2021,101RESOURCES,Resources,20239,Computer Services,D2633,Computer Equipment,336.41,Lloyds Bank,Computer Equipment - Computer peripherals,2032082,202201
Rother District Council,11/10/2021,091HOUSING,Housing and Community Services,20111,Rye Sports Centre & Pool,D1203,Books And Publications,76.67,Lloyds Bank,Books and Publications - general,2032071,202201
Rother District Council,11/10/2021,101RESOURCES,Resources,20209,Corporate management,D2513,Hired and Contracted services,38.94,Lloyds Bank,Bank Charges,2032007,202201
Rother District Council,11/10/2021,091HOUSING,Housing and Community Services,20204,Housing Administration Account,D2514,Accommodation Costs,70.10,Lloyds Bank,Accommodation Costs - Homelessness services Temp Accom - No VAT,2032076,202201
Rother District Council,11/10/2021,031RESOURCES,Chief Executive & Corporate Core,20156,Representing Local Interest,D2736,Chairmans Allowance,50.00,Lloyds Bank,Chairmans Allowance,2032082,202201
Rother District Council,11/10/2021,031RESOURCES,Chief Executive & Corporate Core,20156,Representing Local Interest,D2737,Vice Chairmans Allowance,50.00,Lloyds Bank,Vice Chairmans Allowance,2032082,202201
Rother District Council,11/10/2021,091HOUSING,Housing and Community Services,20145,Maintenance Services,D1201,Equipment & Materials,39.99,Lloyds Bank,Equipment & Materials,2032079,202201
Rother District Council,11/10/2021,101RESOURCES,Resources,20239,Computer Services,D2626,Postages,116.30,Lloyds Bank,Postages,2032082,202201
Rother District Council,11/10/2021,101RESOURCES,Resources,20239,Computer Services,D2633,Computer Equipment,276.78,Lloyds Bank,Computer Equipment,2032082,202201
Rother District Council,15/10/2021,091HOUSING,Housing and Community Services,20114,Bexhill Parks & Open Spaces,B1100,Repairs to Premises,540.00,Languard Ltd,Repairs to Premises - Parks- Landscaping Works,2031951,202201
Rother District Council,03/11/2021,091HOUSING,Housing and Community Services,20109,Sports Development,D2927,Services Facilitated by External Grants,605.00,De La Warr Pavilion (Enterprise) Ltd,Services Facilitated by External - Grants-Sports Development,2031807,202201
Rother District Council,09/11/2021,091HOUSING,Housing and Community Services,20206,UK Resettlement (Syrians),D2513,Hired and Contracted services,111.00,Lloyds Bank,Hired and contracted services - Syrian Resettlement Programme-Travel,2032114,202201
Rother District Council,09/11/2021,091HOUSING,Housing and Community Services,20206,UK Resettlement (Syrians),D2513,Hired and Contracted services,186.62,Lloyds Bank,Hired and contracted services - Syrian Misc,2032116,202201
Rother District Council,09/11/2021,091HOUSING,Housing and Community Services,20206,UK Resettlement (Syrians),D2513,Hired and Contracted services,27.30,Lloyds Bank,Hired and contracted services - Syrian Misc,2032116,202201
Rother District Council,09/11/2021,101RESOURCES,Resources,20216,Cost Of Collection,D2513,Hired and Contracted services,1.50,Lloyds Bank,Hired and contracted services - Personal Location Fees-Council Tax,2032118,202201
Rother District Council,09/11/2021,091HOUSING,Housing and Community Services,20306,Afghan Relocation Assistance Policy,D2513,Hired and Contracted services,-0.69,Lloyds Bank,Hired and contracted services - Afghan Misc,2032116,202201
Rother District Council,09/11/2021,091HOUSING,Housing and Community Services,20306,Afghan Relocation Assistance Policy,D2513,Hired and Contracted services,108.25,Lloyds Bank,Hired and contracted services - Afghan Misc,2032116,202201
Rother District Council,09/11/2021,091HOUSING,Housing and Community Services,20306,Afghan Relocation Assistance Policy,D2513,Hired and Contracted services,412.91,Lloyds Bank,Hired and contracted services - Afghan Misc,2032116,202201
Rother District Council,09/11/2021,091HOUSING,Housing and Community Services,20236,Customer Services and Development,D1201,Equipment & Materials,48.12,Lloyds Bank,Equipment & materials - Miscellaneous,2032117,202201
Rother District Council,09/11/2021,091HOUSING,Housing and Community Services,20236,Customer Services and Development,D1201,Equipment & Materials,20.97,Lloyds Bank,Equipment & materials - Miscellaneous,2032117,202201
Rother District Council,09/11/2021,101RESOURCES,Resources,20239,Computer Services,D2633,Computer Equipment,373.55,Lloyds Bank,Computer Equipment - Computer peripherals,2032113,202201
Rother District Council,09/11/2021,091HOUSING,Housing and Community Services,20120,Neighbourhood Services,D2513,Hired and Contracted services,175.00,Lloyds Bank,Car Parking - On Street Car Parking,2032115,202201
Rother District Council,09/11/2021,091HOUSING,Housing and Community Services,20204,Housing Administration Account,D2513,Hired and Contracted services,75.00,Lloyds Bank,Car Parking - On Street Car Parking,2032112,202201
Rother District Council,09/11/2021,091HOUSING,Housing and Community Services,20145,Maintenance Services,D2513,Hired and Contracted services,100.00,Lloyds Bank,Car Parking - On Street Car Parking,2032115,202201
Rother District Council,09/11/2021,101RESOURCES,Resources,20239,Computer Services,D1203,Books And Publications,72.06,Lloyds Bank,Books and Publications - general,2032113,202201
Rother District Council,09/11/2021,091HOUSING,Housing and Community Services,20202,Rother Tenant Finder (prev Rother Letting Service),D2513,Hired and Contracted services,2.00,Lloyds Bank,Hired and Contracted services,2032112,202201
Rother District Council,09/11/2021,091HOUSING,Housing and Community Services,20204,Housing Administration Account,D2513,Hired and Contracted services,7.99,Lloyds Bank,Hired and Contracted services,2032112,202201
Rother District Council,09/11/2021,091HOUSING,Housing and Community Services,20145,Maintenance Services,D1201,Equipment & Materials,162.00,Lloyds Bank,Equipment & Materials,2032115,202201
Rother District Council,09/11/2021,091HOUSING,Housing and Community Services,20145,Maintenance Services,D1201,Equipment & Materials,57.88,Lloyds Bank,Equipment & Materials,2032115,202201
Rother District Council,09/11/2021,091HOUSING,Housing and Community Services,20145,Maintenance Services,D1201,Equipment & Materials,170.88,Lloyds Bank,Equipment & Materials,2032115,202201
Rother District Council,09/11/2021,101RESOURCES,Resources,20239,Computer Services,D2633,Computer Equipment,41.74,Lloyds Bank,Computer Equipment,2032113,202201
Rother District Council,22/11/2021,041ENVIRON,Environmental Services,32134,EH Pollution R + W Partnership,D1201,Equipment & Materials,474.22,We Care 4 Air Ltd,Equipment & Materials - EnvH- Air Quality Maintenance Contr,2033629,202203
Rother District Council,09/12/2021,091HOUSING,Housing and Community Services,20261,"TA Purchases (prev - 41 Jameson Mews, Bexhill on Sea)",B1100,Repairs to Premises,12.99,Lloyds Bank,Repairs to Premises - Repairs/Maintenance - various,2032566,202202
Rother District Council,09/12/2021,091HOUSING,Housing and Community Services,20200,Housing Needs - HB (Housing Benefit),C2335,Public transport,46.10,Lloyds Bank,Public Transport - Train tickets,2032569,202202
Rother District Council,09/12/2021,081ACQUISIT,"Acquisitions, Transformation and Regeneration",20343,Rother Community Lottery,D2523,Licences,235.00,Lloyds Bank,Licenses - Lottery gambling licence,2032579,202202
Rother District Council,09/12/2021,091HOUSING,Housing and Community Services,20206,UK Resettlement (Syrians),D2513,Hired and Contracted services,"1,568.40",Lloyds Bank,Hires and contracted services - Syrian-Bus Pass,2032571,202202
Rother District Council,09/12/2021,091HOUSING,Housing and Community Services,20206,UK Resettlement (Syrians),D2513,Hired and Contracted services,625.30,Lloyds Bank,Hired and contracted services - Syrian Misc,2032571,202202
Rother District Council,09/12/2021,091HOUSING,Housing and Community Services,20201,Household Support Fund (HFS) from 202108,D2513,Hired and Contracted services,"1,000.00",Lloyds Bank,Hired and contracted services - Service fee paid,2032566,202202
Rother District Council,09/12/2021,091HOUSING,Housing and Community Services,20201,Household Support Fund (HFS) from 202108,D2513,Hired and Contracted services,"3,000.00",Lloyds Bank,Hired and contracted services - Service fee paid,2032569,202202
Rother District Council,09/12/2021,091HOUSING,Housing and Community Services,20235,Rye Community Help Point,D2513,Hired and Contracted services,101.77,Lloyds Bank,Hired and contracted services - Service fee paid,2032576,202202
Rother District Council,09/12/2021,031RESOURCES,Chief Executive & Corporate Core,20276,COVID19 RDC expenditure,D2513,Hired and Contracted services,197.05,Lloyds Bank,Hired and Contracted Services - Housing Misc Costs relating to Covid 19,2032571,202202
Rother District Council,09/12/2021,031RESOURCES,Chief Executive & Corporate Core,20159,Corporate Policy Making,D2513,Hired and Contracted services,61.66,Lloyds Bank,Hired and contracted services - Equipment for Meetings,2032576,202202
Rother District Council,09/12/2021,091HOUSING,Housing and Community Services,20306,Afghan Relocation Assistance Policy,D2513,Hired and Contracted services,66.70,Lloyds Bank,Hired and contracted services - Afghan-Education-Exempt VAT,2032571,202202
Rother District Council,09/12/2021,091HOUSING,Housing and Community Services,20306,Afghan Relocation Assistance Policy,D2513,Hired and Contracted services,210.95,Lloyds Bank,Hired and contracted services - Afghan Misc,2032571,202202
Rother District Council,09/12/2021,041ENVIRON,Environmental Services,32144,EH Environmental Services Admin R + W Partnership,D2420,General office supplies (Stationery purchased from ext suppliers),49.98,Lloyds Bank,General office supplies - Stationery,2032567,202202
Rother District Council,09/12/2021,101RESOURCES,Resources,20239,Computer Services,D2420,General office supplies (Stationery purchased from ext suppliers),18.75,Lloyds Bank,General office supplies - Stationery,2032568,202202
Rother District Council,09/12/2021,101RESOURCES,Resources,20239,Computer Services,D2420,General office supplies (Stationery purchased from ext suppliers),162.47,Lloyds Bank,General office supplies - Stationery,2032568,202202
Rother District Council,09/12/2021,091HOUSING,Housing and Community Services,20236,Customer Services and Development,D1206,Furniture & Fittings,80.79,Lloyds Bank,Furniture & Fittings - Purchase of office equipment,2032576,202202
Rother District Council,09/12/2021,101RESOURCES,Resources,20239,Computer Services,D2633,Computer Equipment,394.99,Lloyds Bank,Computer Equipment - Computer peripherals,2032568,202202
Rother District Council,09/12/2021,101RESOURCES,Resources,20239,Computer Services,D2633,Computer Equipment,552.98,Lloyds Bank,Computer Equipment - Computer peripherals,2032568,202202
Rother District Council,09/12/2021,101RESOURCES,Resources,20239,Computer Services,D2633,Computer Equipment,119.86,Lloyds Bank,Computer Equipment - Carry Case,2032568,202202
Rother District Council,09/12/2021,091HOUSING,Housing and Community Services,20204,Housing Administration Account,D2513,Hired and Contracted services,-7.99,Lloyds Bank,Hired and Contracted services,2032566,202202
Rother District Council,09/12/2021,091HOUSING,Housing and Community Services,20145,Maintenance Services,D2513,Hired and Contracted services,13.34,Lloyds Bank,Hired and Contracted services,2032570,202202
Rother District Council,09/12/2021,101RESOURCES,Resources,20239,Computer Services,D2633,Computer Equipment,3.36,Lloyds Bank,Computer Equipment,2032568,202202
Rother District Council,09/12/2021,999NOREPORT,Resources,90000,Balance sheet all accounts,P1105,Owed by - Alliance Homes (Rother) Ltd,13.00,Lloyds Bank,Owed by - Alliance Homes (Rother) Ltd,2032577,202202
Rother District Council,13/12/2021,041ENVIRON,Environmental Services,20126,Sub Standard Housing,D2513,Hired and Contracted services,67.50,Alfa Electric Ltd,Hired and contracted services - Service fee paid,2033031,202202
Rother District Council,14/12/2021,081ACQUISIT,"Acquisitions, Transformation and Regeneration",20144,Property Management,D2513,Hired and Contracted services,"1,750.00",REDACTED PERSONAL DATA,Hired and contracted services - Service fee paid,2032230,202201
Rother District Council,14/12/2021,081ACQUISIT,"Acquisitions, Transformation and Regeneration",20144,Property Management,D2513,Hired and Contracted services,"1,750.00",REDACTED PERSONAL DATA,Hired and contracted services - Service fee paid,2032231,202201
Rother District Council,21/12/2021,031RESOURCES,Chief Executive & Corporate Core,20171,Human Resources,D2513,Hired and Contracted services,47.85,Value Products Ltd,Hired and Contracted Services - Health and Safety Act Equipment risk assessment,2032123,202201
Rother District Council,31/12/2021,091HOUSING,Housing and Community Services,20200,Housing Needs - HB (Housing Benefit),D2513,Hired and Contracted services,35.00,NowMedical,Hired and contracted services - Service fee paid,2032098,202201
Rother District Council,31/12/2021,999NOREPORT,Chief Executive & Corporate Core,70759,Capital - Town Hall Renaissance Project,N1004,Architects & Consultant Fees,"12,000.00",Ingleton Wood LLP,Architects & Consultant Fees Capital-Architect and Conslt Fees,2032808,202202
Rother District Council,07/01/2022,091HOUSING,Housing and Community Services,20114,Bexhill Parks & Open Spaces,B1100,Repairs to Premises,12.80,Saint-Gobain Building Distribution Ltd t/a Jewson,Repairs to Premises - Purchase of Materials - Build Maint,2033119,202202
Rother District Council,10/01/2022,081ACQUISIT,"Acquisitions, Transformation and Regeneration",20101,Cultural Development,D2922,Subscriptions,87.51,Lloyds Bank,Subscriptions - Subscription to Organisations,2032414,202202
Rother District Council,10/01/2022,091HOUSING,Housing and Community Services,20206,UK Resettlement (Syrians),D2513,Hired and Contracted services,222.00,Lloyds Bank,Hired and contracted services - Syrian Resettlement Programme-Travel,2032412,202201
Rother District Council,10/01/2022,091HOUSING,Housing and Community Services,20206,UK Resettlement (Syrians),D2513,Hired and Contracted services,18.93,Lloyds Bank,Hired and contracted services - Syrian Misc,2032412,202201
Rother District Council,10/01/2022,091HOUSING,Housing and Community Services,20201,Household Support Fund (HFS) from 202108,D2513,Hired and Contracted services,20.00,Lloyds Bank,Hired and contracted services - Service fee paid,2032410,202201
Rother District Council,10/01/2022,091HOUSING,Housing and Community Services,20304,Housing First,D2513,Hired and Contracted services,60.69,Lloyds Bank,Hired and contracted services - Service fee paid,2032410,202201
Rother District Council,10/01/2022,091HOUSING,Housing and Community Services,20202,Rother Tenant Finder (prev Rother Letting Service),D2513,Hired and Contracted services,2.00,Lloyds Bank,Hired and contracted services - Service fee paid,2032410,202201
Rother District Council,10/01/2022,091HOUSING,Housing and Community Services,20264,Property Maintenance Team,D2513,Hired and Contracted services,23.00,Lloyds Bank,Hired and contracted services - Service fee paid,2032410,202201
Rother District Council,10/01/2022,091HOUSING,Housing and Community Services,20306,Afghan Relocation Assistance Policy,D2513,Hired and Contracted services,229.70,Lloyds Bank,Hired and contracted services - Afghan Resettlement Programme-Travel,2032412,202201
Rother District Council,10/01/2022,091HOUSING,Housing and Community Services,20306,Afghan Relocation Assistance Policy,D2513,Hired and Contracted services,38.06,Lloyds Bank,Hired and contracted services - Afghan Misc,2032412,202201
Rother District Council,10/01/2022,041ENVIRON,Environmental Services,32144,EH Environmental Services Admin R + W Partnership,D1201,Equipment & Materials,59.97,Lloyds Bank,Equipment & materials - Miscellaneous,2032413,202201
Rother District Council,10/01/2022,091HOUSING,Housing and Community Services,20236,Customer Services and Development,D1201,Equipment & Materials,147.44,Lloyds Bank,Equipment & materials - Miscellaneous,2032416,202201
Rother District Council,10/01/2022,091HOUSING,Housing and Community Services,20236,Customer Services and Development,D1201,Equipment & Materials,2.50,Lloyds Bank,Equipment & materials - Miscellaneous,2032416,202201
Rother District Council,10/01/2022,081ACQUISIT,"Acquisitions, Transformation and Regeneration",20136,Regeneration,D2635,Computer Licences,81.94,Lloyds Bank,Computer Licences - Domain Name Renewal,2032414,202202
Rother District Council,10/01/2022,101RESOURCES,Resources,20239,Computer Services,D2635,Computer Licences,15.99,Lloyds Bank,Computer Licences - Domain Name Renewal,2032414,202202
Rother District Council,10/01/2022,101RESOURCES,Resources,20239,Computer Services,D2635,Computer Licences,15.99,Lloyds Bank,Computer Licences - Domain Name Renewal,2032414,202202
Rother District Council,10/01/2022,101RESOURCES,Resources,20209,Corporate management,D2513,Hired and Contracted services,45.44,Lloyds Bank,Bank Charges,2032013,202201
Rother District Council,10/01/2022,031RESOURCES,Chief Executive & Corporate Core,20156,Representing Local Interest,D1201,Equipment & Materials,"1,491.50",Lloyds Bank,Equipment & Materials,2032417,202202
Rother District Council,10/01/2022,091HOUSING,Housing and Community Services,20200,Housing Needs - HB (Housing Benefit),D2514,Accommodation Costs,228.38,Lloyds Bank,Accommodation Costs,2032417,202202
Rother District Council,10/01/2022,091HOUSING,Housing and Community Services,20200,Housing Needs - HB (Housing Benefit),D2514,Accommodation Costs,211.95,Lloyds Bank,Accommodation Costs,2032417,202202
Rother District Council,10/01/2022,101RESOURCES,Resources,20239,Computer Services,D2626,Postages,2.00,Lloyds Bank,Postages,2032415,202202
Rother District Council,10/01/2022,101RESOURCES,Resources,20239,Computer Services,D2626,Postages,6.74,Lloyds Bank,Postages,2032415,202202
Rother District Council,10/01/2022,101RESOURCES,Resources,20239,Computer Services,D2635,Computer Licences,4.56,Lloyds Bank,Computer Licences,2032415,202202
Rother District Council,14/01/2022,091HOUSING,Housing and Community Services,20329,Rough Sleeping Initiative,D2514,Accommodation Costs,"1,215.00",Key Property Solutions Guaranteed Ltd,Accommodation Costs,2030016,202201
Rother District Council,27/01/2022,091HOUSING,Housing and Community Services,20261,"TA Purchases (prev - 41 Jameson Mews, Bexhill on Sea)",B1100,Repairs to Premises,17.82,Colours Timber Ltd,Repairs to Premises - Purchase of Materials - Build Maint,2032625,202202
Rother District Council,28/01/2022,999NOREPORT,Housing and Community Services,70751,Capital - Temporary Accommodation,D2513,Hired and Contracted services,"5,789.00",THE PELHAM CIO,Hired and contracted services - Service fee paid,2033130,202202
Rother District Council,31/01/2022,101RESOURCES,Resources,20209,Corporate management,D2513,Hired and Contracted services,21.82,allpay.net Ltd,Hired and contracted services - Allpay Card/Rep/Let Chrg - Vatable,2032022,202201
Rother District Council,31/01/2022,101RESOURCES,Resources,20209,Corporate management,D2513,Hired and Contracted services,11.50,allpay.net Ltd,Hired and contracted services - Allpay Card/Rep/Let Chrg - Vatable,2032023,202201
Rother District Council,31/01/2022,101RESOURCES,Resources,20209,Corporate management,D2513,Hired and Contracted services,31.56,allpay.net Ltd,Hired and contracted services - Allpay Card/Rep/Let Chrg - Vatable,2032024,202201
Rother District Council,31/01/2022,999NOREPORT,Housing and Community Services,70762,Capital - Bexhill Promenade Shelter One,N1008,Equipment,709.29,Alfa Electric Ltd,Capital - Purchase of Equipment,2031885,202201
Rother District Council,31/01/2022,999NOREPORT,Housing and Community Services,70762,Capital - Bexhill Promenade Shelter One,N1008,Equipment,198.67,Alfa Electric Ltd,Capital - Purchase of Equipment,2031886,202201
Rother District Council,31/01/2022,101RESOURCES,Resources,20209,Corporate management,D2513,Hired and Contracted services,864.43,allpay.net Ltd,Bank Charges,2032025,202201
Rother District Council,01/02/2022,999NOREPORT,Housing and Community Services,70751,Capital - Temporary Accommodation,D2513,Hired and Contracted services,850.00,Meridian Surveyors,Hired and contracted services - AONB Management,2031848,202201
Rother District Council,01/02/2022,999NOREPORT,Housing and Community Services,70751,Capital - Temporary Accommodation,D2513,Hired and Contracted services,850.00,Meridian Surveyors,Hired and contracted services - AONB Management,2031849,202201
Rother District Council,02/02/2022,101RESOURCES,Resources,20242,Communications-Phones,D2621,Telephones,25.72,TalkTalk Communications Ltd T/A TalkTalk Business,Telephones - Leased Line Rental,2032001,202201
Rother District Council,08/02/2022,091HOUSING,Housing and Community Services,20128,Public Conveniences,B1100,Repairs to Premises,"3,697.95",Ecoprod Technique,Repairs to Premises - PCs maintenance paid by S106 money,2032626,202202
Rother District Council,08/02/2022,031RESOURCES,Chief Executive & Corporate Core,20171,Human Resources,D2513,Hired and Contracted services,275.00,Staywell Occupational Health Ltd,Hired and contracted services - Occupational Health,2032124,202201
Rother District Council,08/02/2022,091HOUSING,Housing and Community Services,20261,"TA Purchases (prev - 41 Jameson Mews, Bexhill on Sea)",B2202,Gas,59.73,Shell Energy Retail Ltd,Gas - Gas Charges,2031805,202201
Rother District Council,08/02/2022,091HOUSING,Housing and Community Services,20261,"TA Purchases (prev - 41 Jameson Mews, Bexhill on Sea)",B2201,Electricity,75.43,Shell Energy Retail Ltd,Electricity - Electricity Charges,2031805,202201
Rother District Council,09/02/2022,091HOUSING,Housing and Community Services,20202,Rother Tenant Finder (prev Rother Letting Service),A2203,Training,741.00,Lloyds Bank,Training,2033716,202203
Rother District Council,09/02/2022,091HOUSING,Housing and Community Services,20261,"TA Purchases (prev - 41 Jameson Mews, Bexhill on Sea)",B1100,Repairs to Premises,1.20,Lloyds Bank,Repairs to Premises - Repairs Doors,2033727,202203
Rother District Council,09/02/2022,091HOUSING,Housing and Community Services,20114,Bexhill Parks & Open Spaces,B1100,Repairs to Premises,30.93,Lloyds Bank,Repairs to Premises - Purchase of Materials - Build Maint,2033719,202203
Rother District Council,09/02/2022,091HOUSING,Housing and Community Services,20206,UK Resettlement (Syrians),D2513,Hired and Contracted services,962.20,Lloyds Bank,Hires and contracted services - Syrian-Bus Pass,2033720,202203
Rother District Council,09/02/2022,091HOUSING,Housing and Community Services,20206,UK Resettlement (Syrians),D2513,Hired and Contracted services,3.00,Lloyds Bank,Hired and contracted services - Syrian Misc,2033717,202203
Rother District Council,09/02/2022,091HOUSING,Housing and Community Services,20206,UK Resettlement (Syrians),D2513,Hired and Contracted services,1.40,Lloyds Bank,Hired and contracted services - Syrian Misc,2033720,202203
Rother District Council,09/02/2022,091HOUSING,Housing and Community Services,20202,Rother Tenant Finder (prev Rother Letting Service),D2513,Hired and Contracted services,209.99,Lloyds Bank,Hired and contracted services - Service fee paid,2033716,202203
Rother District Council,09/02/2022,091HOUSING,Housing and Community Services,20202,Rother Tenant Finder (prev Rother Letting Service),D2513,Hired and Contracted services,170.00,Lloyds Bank,Hired and contracted services - Service fee paid,2033727,202203
Rother District Council,09/02/2022,031RESOURCES,Chief Executive & Corporate Core,20171,Human Resources,D2513,Hired and Contracted services,108.29,Lloyds Bank,Hired and Contracted Services - Health and Safety Act Equipment risk assessment,2033719,202203
Rother District Council,09/02/2022,091HOUSING,Housing and Community Services,20306,Afghan Relocation Assistance Policy,D2513,Hired and Contracted services,300.00,Lloyds Bank,Hired and contracted services - Afghan Misc,2033717,202203
Rother District Council,09/02/2022,091HOUSING,Housing and Community Services,20306,Afghan Relocation Assistance Policy,D2513,Hired and Contracted services,433.65,Lloyds Bank,Hired and contracted services - Afghan Misc,2033720,202203
Rother District Council,09/02/2022,041ENVIRON,Environmental Services,32134,EH Pollution R + W Partnership,D1201,Equipment & Materials,266.97,Lloyds Bank,Equipment & Materials - EnvH- Pollution Equipment,2033729,202203
Rother District Council,09/02/2022,101RESOURCES,Resources,20239,Computer Services,D2635,Computer Licences,15.99,Lloyds Bank,Computer Licences - Domain Name Renewal,2033729,202203
Rother District Council,09/02/2022,101RESOURCES,Resources,20239,Computer Services,D2635,Computer Licences,15.99,Lloyds Bank,Computer Licences - Domain Name Renewal,2033729,202203
Rother District Council,09/02/2022,101RESOURCES,Resources,20239,Computer Services,D2633,Computer Equipment,783.97,Lloyds Bank,Computer Equipment - Computer peripherals,2033722,202203
Rother District Council,09/02/2022,101RESOURCES,Resources,20239,Computer Services,D2631,Computer Equip Maintenance,86.66,Lloyds Bank,Computer Equip Maintenance - IT EQUIP MAINT-Air Conditioning,2033722,202203
Rother District Council,09/02/2022,091HOUSING,Housing and Community Services,20145,Maintenance Services,D2352,Clothing and Uniforms,152.26,Lloyds Bank,Clothing and Uniforms - Mens Protective-Other,2033719,202203
Rother District Council,09/02/2022,091HOUSING,Housing and Community Services,20120,Neighbourhood Services,D1203,Books And Publications,228.67,Lloyds Bank,Books And Publications - Reference Books/Publications,2033719,202203
Rother District Council,09/02/2022,091HOUSING,Housing and Community Services,20200,Housing Needs - HB (Housing Benefit),D2514,Accommodation Costs,99.55,Lloyds Bank,Accommodation Costs,2033718,202203
Rother District Council,09/02/2022,091HOUSING,Housing and Community Services,20200,Housing Needs - HB (Housing Benefit),D2514,Accommodation Costs,"1,120.00",Lloyds Bank,Accommodation Costs,2033718,202203
Rother District Council,09/02/2022,091HOUSING,Housing and Community Services,20200,Housing Needs - HB (Housing Benefit),D2514,Accommodation Costs,97.00,Lloyds Bank,Accommodation Costs,2033719,202203
Rother District Council,09/02/2022,091HOUSING,Housing and Community Services,20200,Housing Needs - HB (Housing Benefit),D2514,Accommodation Costs,29.99,Lloyds Bank,Accommodation Costs,2033719,202203
Rother District Council,09/02/2022,091HOUSING,Housing and Community Services,20145,Maintenance Services,D1201,Equipment & Materials,74.33,Lloyds Bank,Equipment & Materials,2033719,202203
Rother District Council,09/02/2022,101RESOURCES,Resources,20239,Computer Services,D2633,Computer Equipment,167.18,Lloyds Bank,Computer Equipment,2033722,202203
Rother District Council,09/02/2022,101RESOURCES,Resources,20239,Computer Services,D1201,Equipment & Materials,9.00,Lloyds Bank,Equipment & Materials,2033722,202203
Rother District Council,10/02/2022,101RESOURCES,Resources,20209,Corporate management,D2513,Hired and Contracted services,39.55,Lloyds Bank,Bank Charges,2032009,202201
Rother District Council,15/02/2022,031RESOURCES,Chief Executive & Corporate Core,20156,Representing Local Interest,D2513,Hired and Contracted services,275.00,Rambler Coaches Ltd,Hired and contracted services - Coach Hire for Planning Site Visits,2033627,202203
Rother District Council,15/02/2022,101RESOURCES,Resources,20239,Computer Services,D2632,Additional Computer Equipment,"6,732.90",Computacenter (UK) Ltd,Additional Computer Equipment - New PC/Computer,2030765,202202
Rother District Council,16/02/2022,999NOREPORT,Housing and Community Services,70751,Capital - Temporary Accommodation,D2513,Hired and Contracted services,550.00,Acoustic Associates Sussex Ltd,Hired and contracted services - AONB Management,2032269,202201
Rother District Council,17/02/2022,091HOUSING,Housing and Community Services,20128,Public Conveniences,B1100,Repairs to Premises,598.67,Alfa Electric Ltd,Repairs to Premises - Repairs - Electrical Works,2031824,202201
Rother District Council,18/02/2022,031RESOURCES,Chief Executive & Corporate Core,20173,Administrative Offices - Town Hall,B1100,Repairs to Premises,379.69,Alfa Electric Ltd,Repairs to Premises - Repairs - Electrical Works,2031815,202201
Rother District Council,18/02/2022,091HOUSING,Housing and Community Services,20137,Car Parks,B1100,Repairs to Premises,5.55,Saint-Gobain Building Distribution Ltd t/a Jewson,Repairs to Premises - Purchase of Materials - Build Maint,2033118,202202
Rother District Council,18/02/2022,091HOUSING,Housing and Community Services,20200,Housing Needs - HB (Housing Benefit),D2514,Accommodation Costs,"1,000.00",LESSHOMELESS LTD,Accommodation Costs,2032352,202202
Rother District Council,22/02/2022,101RESOURCES,Resources,20212,Risk Management/Insurance,D2520,Insurance,"5,000.00",Zurich Insurance plc,Insurance - risk management,2031922,202201
Rother District Council,22/02/2022,081ACQUISIT,"Acquisitions, Transformation and Regeneration",20343,Rother Community Lottery,D2513,Hired and Contracted services,410.00,The Lotteries Council,Hired and contracted services - payment to The Lottery Council,2032962,202202
Rother District Council,22/02/2022,041ENVIRON,Environmental Services,32134,EH Pollution R + W Partnership,D1201,Equipment & Materials,474.22,We Care 4 Air Ltd,Equipment & Materials - EnvH- Air Quality Maintenance Contr,2033550,202203
Rother District Council,25/02/2022,081ACQUISIT,"Acquisitions, Transformation and Regeneration",20153,"Elva Business Centre, Bexhill",B1100,Repairs to Premises,80.66,Stannah Lift Services Ltd,Repairs to Premises - Specified Repairs and Works listed,2031094,202202
Rother District Council,27/02/2022,071STRAT,Strategy and Planning,20246,Planning Applications,D2509,Consultants and Other Services,225.85,Curley Consultants,Consultants and other services - Consultants Fees,2032232,202201
Rother District Council,28/02/2022,031RESOURCES,Chief Executive & Corporate Core,20159,Corporate Policy Making,D2312,Refreshments,55.00,Cascade Water Systems Ltd,Refreshments - Watercooler Service,2032423,202201
Rother District Council,28/02/2022,091HOUSING,Housing and Community Services,20200,Housing Needs - HB (Housing Benefit),D2513,Hired and Contracted services,35.00,NowMedical,Hired and contracted services - AONB Management,2032099,202201
Rother District Council,28/02/2022,101RESOURCES,Resources,20209,Corporate management,D2513,Hired and Contracted services,430.22,allpay.net Ltd,Hired and contracted services - Allpay Card/Rep/Let Chrg - Vatable,2032026,202201
Rother District Council,28/02/2022,101RESOURCES,Resources,20209,Corporate management,D2513,Hired and Contracted services,16.31,allpay.net Ltd,Hired and contracted services - Allpay Card/Rep/Let Chrg - Vatable,2032027,202201
Rother District Council,28/02/2022,101RESOURCES,Resources,20209,Corporate management,D2513,Hired and Contracted services,11.00,allpay.net Ltd,Hired and contracted services - Allpay Card/Rep/Let Chrg - Vatable,2032028,202201
Rother District Council,28/02/2022,101RESOURCES,Resources,20209,Corporate management,D2513,Hired and Contracted services,18.90,allpay.net Ltd,Hired and contracted services - Allpay Card/Rep/Let Chrg - Vatable,2032029,202201
Rother District Council,28/02/2022,091HOUSING,Housing and Community Services,20306,Afghan Relocation Assistance Policy,D2513,Hired and Contracted services,620.00,REDACTED PERSONAL DATA,Hired and contracted services - Afghan Misc,2031878,202201
Rother District Council,28/02/2022,041ENVIRON,Environmental Services,32136,EH Pest Control R + W Partnership,C1104,Derv,3.80,Allstar Business Solutions,Derv - Fuel Service fee payable on fuel cards,2032020,202201
Rother District Council,28/02/2022,999NOREPORT,Chief Executive & Corporate Core,70759,Capital - Town Hall Renaissance Project,N1004,Architects & Consultant Fees,"5,000.00",Ingleton Wood LLP,Architects & Consultant Fees Capital-Architect and Conslt Fees,2032809,202202
Rother District Council,28/02/2022,101RESOURCES,Resources,20239,Computer Services,D2632,Additional Computer Equipment,599.90,Computacenter (UK) Ltd,Additional Computer Equipment - New PC/Computer,2031018,202202
Rother District Council,28/02/2022,041ENVIRON,Environmental Services,32136,EH Pest Control R + W Partnership,C1104,Derv,52.51,Allstar Business Solutions,Derv,2032020,202201
Rother District Council,28/02/2022,041ENVIRON,Environmental Services,32136,EH Pest Control R + W Partnership,C1104,Derv,50.01,Allstar Business Solutions,Derv,2032020,202201
Rother District Council,28/02/2022,091HOUSING,Housing and Community Services,20145,Maintenance Services,C1104,Derv,58.33,Allstar Business Solutions,Derv,2032020,202201
Rother District Council,28/02/2022,091HOUSING,Housing and Community Services,20145,Maintenance Services,C1104,Derv,37.08,Allstar Business Solutions,Derv,2032020,202201
Rother District Council,28/02/2022,091HOUSING,Housing and Community Services,20145,Maintenance Services,C1104,Derv,89.54,Allstar Business Solutions,Derv,2032020,202201
Rother District Council,28/02/2022,091HOUSING,Housing and Community Services,20145,Maintenance Services,C1104,Derv,91.21,Allstar Business Solutions,Derv,2032020,202201
Rother District Council,01/03/2022,081ACQUISIT,"Acquisitions, Transformation and Regeneration",20118,Tourism,D2517,Marketing,470.00,Taris de Mann T/A Taris� Tipples,Marketing - Projects,2031851,202201
Rother District Council,01/03/2022,101RESOURCES,Resources,20209,Corporate management,D2513,Hired and Contracted services,20.00,Lloyds Bank,Bank Charges,2033523,202203
Rother District Council,01/03/2022,101RESOURCES,Resources,20209,Corporate management,D2513,Hired and Contracted services,25.00,Lloyds Bank,Bank Charges,2033524,202203
Rother District Council,02/03/2022,101RESOURCES,Resources,20242,Communications-Phones,D2621,Telephones,25.72,TalkTalk Communications Ltd T/A TalkTalk Business,Telephones - Leased Line Rental,2032002,202201
Rother District Council,02/03/2022,031RESOURCES,Chief Executive & Corporate Core,20176,Administrative Offices - Print Room,B1100,Repairs to Premises,90.00,Black Sheep Engineering Ltd,Repairs to Premises - Fire Alarm System Maintenance,2032312,202201
Rother District Council,03/03/2022,041ENVIRON,Environmental Services,32143,EH Licenses and Registration R + W Partnership,D2513,Hired and Contracted services,444.07,Fairfield House Veterinary Surgery,Hired and contracted services - EnvH-Veterinary Services for Licens,2032109,202201
Rother District Council,03/03/2022,091HOUSING,Housing and Community Services,20200,Housing Needs - HB (Housing Benefit),D2508,Removals and Storage,120.00,Express Removals Worldwide Ltd,Removals and Storage,2031950,202201
Rother District Council,04/03/2022,071STRAT,Strategy and Planning,20246,Planning Applications,D2509,Consultants and Other Services,215.46,Curley Consultants,Consultants and other services - Consultants Fees,2032233,202201
Rother District Council,05/03/2022,101RESOURCES,Resources,20216,Cost Of Collection,D2513,Hired and Contracted services,878.36,DSI Billing Services Ltd,Hired and contracted services - DSI Billing Printing,2032111,202202
Rother District Council,05/03/2022,091HOUSING,Housing and Community Services,20108,Bexhill Promenade & Foreshore,B2201,Electricity,2.79,Ecotricity Ltd,Electricity - Electricity Charges,2032524,202202
Rother District Council,05/03/2022,091HOUSING,Housing and Community Services,20108,Bexhill Promenade & Foreshore,B2201,Electricity,4.54,Ecotricity Ltd,Electricity - Electricity Charges,2032526,202202
Rother District Council,05/03/2022,091HOUSING,Housing and Community Services,20108,Bexhill Promenade & Foreshore,B2201,Electricity,9.86,Ecotricity Ltd,Electricity - Electricity Charges,2032527,202202
Rother District Council,05/03/2022,091HOUSING,Housing and Community Services,20114,Bexhill Parks & Open Spaces,B2201,Electricity,30.57,Ecotricity Ltd,Electricity - Electricity Charges,2032519,202202
Rother District Council,05/03/2022,091HOUSING,Housing and Community Services,20137,Car Parks,B2201,Electricity,51.55,Ecotricity Ltd,Electricity - Electricity Charges,2032520,202202
Rother District Council,05/03/2022,091HOUSING,Housing and Community Services,20138,Residual Highway Services,B2201,Electricity,42.90,Ecotricity Ltd,Electricity - Electricity Charges,2032520,202202
Rother District Council,05/03/2022,091HOUSING,Housing and Community Services,20137,Car Parks,B2201,Electricity,7.28,Ecotricity Ltd,Electricity - Electricity Charges,2032522,202202
Rother District Council,05/03/2022,091HOUSING,Housing and Community Services,20138,Residual Highway Services,B2201,Electricity,6.06,Ecotricity Ltd,Electricity - Electricity Charges,2032522,202202
Rother District Council,05/03/2022,091HOUSING,Housing and Community Services,20137,Car Parks,B2201,Electricity,17.66,Ecotricity Ltd,Electricity - Electricity Charges,2032524,202202
Rother District Council,05/03/2022,091HOUSING,Housing and Community Services,20138,Residual Highway Services,B2201,Electricity,2.79,Ecotricity Ltd,Electricity - Electricity Charges,2032524,202202
Rother District Council,05/03/2022,091HOUSING,Housing and Community Services,20137,Car Parks,B2201,Electricity,28.79,Ecotricity Ltd,Electricity - Electricity Charges,2032526,202202
Rother District Council,05/03/2022,091HOUSING,Housing and Community Services,20138,Residual Highway Services,B2201,Electricity,4.55,Ecotricity Ltd,Electricity - Electricity Charges,2032526,202202
Rother District Council,05/03/2022,091HOUSING,Housing and Community Services,20137,Car Parks,B2201,Electricity,62.49,Ecotricity Ltd,Electricity - Electricity Charges,2032527,202202
Rother District Council,05/03/2022,091HOUSING,Housing and Community Services,20138,Residual Highway Services,B2201,Electricity,9.87,Ecotricity Ltd,Electricity - Electricity Charges,2032527,202202
Rother District Council,05/03/2022,041ENVIRON,Environmental Services,20129,Community Safety - CCTV costs only,B2201,Electricity,386.47,Ecotricity Ltd,Electricity - Electricity Charges,2032520,202202
Rother District Council,05/03/2022,041ENVIRON,Environmental Services,20129,Community Safety - CCTV costs only,B2201,Electricity,54.61,Ecotricity Ltd,Electricity - Electricity Charges,2032522,202202
Rother District Council,06/03/2022,091HOUSING,Housing and Community Services,20304,Housing First,B2201,Electricity,34.98,EON Next,Electricity - Electricity Charges,2032134,202201
Rother District Council,06/03/2022,071STRAT,Strategy and Planning,20246,Planning Applications,D2509,Consultants and Other Services,205.92,Curley Consultants,Consultants and other services - Consultants Fees,2032234,202201
Rother District Council,07/03/2022,999NOREPORT,Environmental Services,70706,Capital - Disabled Facilities Grant,N1012,Capital Advances,"3,415.19",REDACTED PERSONAL DATA,Capital Advances Disabled Facilities Grant,2032083,202201
Rother District Council,07/03/2022,101RESOURCES,Resources,20209,Corporate management,D2513,Hired and Contracted services,65.00,Lloyds Bank,Bank Charges,2032019,202201
Rother District Council,08/03/2022,999NOREPORT,Resources,90000,Balance sheet all accounts,P1105,Owed by - Alliance Homes (Rother) Ltd,"1,831.20",Zurich Insurance plc,Owed by - Alliance Homes (Rother) Ltd - purchases,2031966,202201
Rother District Council,08/03/2022,101RESOURCES,Resources,20212,Risk Management/Insurance,D2520,Insurance,"2,160.78",Zurich Insurance plc,Insurance - Fidelity Guarantee,2031967,202201
Rother District Council,08/03/2022,101RESOURCES,Resources,20212,Risk Management/Insurance,D2520,Insurance,"6,048.28",Zurich Insurance plc,Insurance - Engineering Inspections,2031970,202201
Rother District Council,08/03/2022,091HOUSING,Housing and Community Services,20261,"TA Purchases (prev - 41 Jameson Mews, Bexhill on Sea)",B2202,Gas,49.48,Shell Energy Retail Ltd,Gas - Gas Charges,2031887,202201
Rother District Council,08/03/2022,091HOUSING,Housing and Community Services,20261,"TA Purchases (prev - 41 Jameson Mews, Bexhill on Sea)",B2201,Electricity,65.10,Shell Energy Retail Ltd,Electricity - Electricity Charges,2031887,202201
Rother District Council,09/03/2022,101RESOURCES,Resources,20242,Communications-Phones,D2621,Telephones,67.50,TalkTalk Communications Ltd T/A TalkTalk Business,Telephones - Leased Line Rental,2032971,202203
Rother District Council,09/03/2022,081ACQUISIT,"Acquisitions, Transformation and Regeneration",20232,Nlpg-E-Government,D2635,Computer Licences,"1,912.50",GGP Systems Ltd,Computer Licences - GIS System,2032000,202201
Rother District Council,10/03/2022,031RESOURCES,Chief Executive & Corporate Core,20156,Representing Local Interest,D2312,Refreshments,40.00,UK Vending Ltd,Refreshments - Plastic Cups,2031921,202201
Rother District Council,10/03/2022,091HOUSING,Housing and Community Services,20304,Housing First,D2513,Hired and Contracted services,30.00,A&A Cleaning & Property Services Ltd,Hired and contracted services - Service fee paid,2031913,202201
Rother District Council,10/03/2022,071STRAT,Strategy and Planning,20249,Planning Appeals,D2513,Hired and Contracted services,779.92,REDACTED PERSONAL DATA,Hired and contracted services - Appeal Costs,2032266,202201
Rother District Council,10/03/2022,071STRAT,Strategy and Planning,20249,Planning Appeals,D2513,Hired and Contracted services,"4,444.10",REDACTED PERSONAL DATA,Hired and contracted services - Appeal Costs,2032266,202201
Rother District Council,10/03/2022,091HOUSING,Housing and Community Services,20206,UK Resettlement (Syrians),D2513,Hired and Contracted services,-3.29,Migrant Help Trading Ltd t/a Clear Voice,Hired and contracted services - Afghan-Translation Services,2032503,202203
Rother District Council,10/03/2022,101RESOURCES,Resources,20209,Corporate management,D2513,Hired and Contracted services,192.90,Lloyds Bank,Bank Charges,2033525,202203
Rother District Council,11/03/2022,091HOUSING,Housing and Community Services,20128,Public Conveniences,B1100,Repairs to Premises,256.67,Alfa Electric Ltd,Repairs to Premises - Repairs - Electrical Works,2031808,202201
Rother District Council,11/03/2022,031RESOURCES,Chief Executive & Corporate Core,20171,Human Resources,D2513,Hired and Contracted services,135.00,Staywell Occupational Health Ltd,Hired and contracted services - Occupational Health,2033124,202202
Rother District Council,11/03/2022,081ACQUISIT,"Acquisitions, Transformation and Regeneration",20267,Property Investment Strategy - 18-40 Beeching Road ( Land and Buildings),B2202,Gas,56.56,Gazprom Marketing & Trading Retail Ltd,Gas - Gas Charges,2031794,202201
Rother District Council,11/03/2022,071STRAT,Strategy and Planning,20246,Planning Applications,D2509,Consultants and Other Services,199.60,Curley Consultants,Consultants and other services - Consultants Fees,2032235,202201
Rother District Council,13/03/2022,091HOUSING,Housing and Community Services,20200,Housing Needs - HB (Housing Benefit),D2514,Accommodation Costs,150.00,A A H Yahya T/A TAP Temporary Accommodation Providers Ltd,Accommodation Costs,2031745,202201
Rother District Council,13/03/2022,091HOUSING,Housing and Community Services,20200,Housing Needs - HB (Housing Benefit),D2514,Accommodation Costs,300.00,A A H Yahya T/A TAP Temporary Accommodation Providers Ltd,Accommodation Costs,2031745,202201
Rother District Council,13/03/2022,091HOUSING,Housing and Community Services,20200,Housing Needs - HB (Housing Benefit),D2514,Accommodation Costs,385.00,A A H Yahya T/A TAP Temporary Accommodation Providers Ltd,Accommodation Costs,2031745,202201
Rother District Council,13/03/2022,091HOUSING,Housing and Community Services,20200,Housing Needs - HB (Housing Benefit),D2514,Accommodation Costs,350.00,A A H Yahya T/A TAP Temporary Accommodation Providers Ltd,Accommodation Costs,2031745,202201
Rother District Council,13/03/2022,091HOUSING,Housing and Community Services,20200,Housing Needs - HB (Housing Benefit),D2514,Accommodation Costs,385.00,A A H Yahya T/A TAP Temporary Accommodation Providers Ltd,Accommodation Costs,2031304,202202
Rother District Council,13/03/2022,091HOUSING,Housing and Community Services,20200,Housing Needs - HB (Housing Benefit),D2514,Accommodation Costs,200.00,A A H Yahya T/A TAP Temporary Accommodation Providers Ltd,Accommodation Costs,2031304,202202
Rother District Council,13/03/2022,091HOUSING,Housing and Community Services,20200,Housing Needs - HB (Housing Benefit),D2514,Accommodation Costs,385.00,A A H Yahya T/A TAP Temporary Accommodation Providers Ltd,Accommodation Costs,2031304,202202
Rother District Council,13/03/2022,091HOUSING,Housing and Community Services,20200,Housing Needs - HB (Housing Benefit),D2514,Accommodation Costs,350.00,A A H Yahya T/A TAP Temporary Accommodation Providers Ltd,Accommodation Costs,2031304,202202
Rother District Council,13/03/2022,091HOUSING,Housing and Community Services,20329,Rough Sleeping Initiative,D2514,Accommodation Costs,385.00,A A H Yahya T/A TAP Temporary Accommodation Providers Ltd,Accommodation Costs,2031745,202201
Rother District Council,13/03/2022,091HOUSING,Housing and Community Services,20329,Rough Sleeping Initiative,D2514,Accommodation Costs,385.00,A A H Yahya T/A TAP Temporary Accommodation Providers Ltd,Accommodation Costs,2031745,202201
Rother District Council,13/03/2022,091HOUSING,Housing and Community Services,20329,Rough Sleeping Initiative,D2514,Accommodation Costs,350.00,A A H Yahya T/A TAP Temporary Accommodation Providers Ltd,Accommodation Costs,2031304,202202
Rother District Council,13/03/2022,091HOUSING,Housing and Community Services,20329,Rough Sleeping Initiative,D2514,Accommodation Costs,385.00,A A H Yahya T/A TAP Temporary Accommodation Providers Ltd,Accommodation Costs,2031304,202202
Rother District Council,13/03/2022,101RESOURCES,Resources,20242,Communications-Phones,D2621,Telephones,605.83,O2 (UK) Ltd,Telephones,2032929,202202
Rother District Council,13/03/2022,101RESOURCES,Resources,20242,Communications-Phones,D2621,Telephones,55.00,O2 (UK) Ltd,Telephones,2032930,202202
Rother District Council,13/03/2022,101RESOURCES,Resources,20242,Communications-Phones,D2621,Telephones,110.00,O2 (UK) Ltd,Telephones,2032931,202202
Rother District Council,13/03/2022,101RESOURCES,Resources,20242,Communications-Phones,D2621,Telephones,110.00,O2 (UK) Ltd,Telephones,2032932,202202
Rother District Council,13/03/2022,101RESOURCES,Resources,20242,Communications-Phones,D2621,Telephones,326.00,O2 (UK) Ltd,Telephones,2032933,202202
Rother District Council,13/03/2022,101RESOURCES,Resources,20242,Communications-Phones,D2621,Telephones,548.00,O2 (UK) Ltd,Telephones,2032934,202202
Rother District Council,14/03/2022,091HOUSING,Housing and Community Services,20206,UK Resettlement (Syrians),D2513,Hired and Contracted services,"1,400.00",The Eggtooth Project,Hired and contracted services - Syrian Misc,2033300,202203
Rother District Council,14/03/2022,091HOUSING,Housing and Community Services,20114,Bexhill Parks & Open Spaces,D1201,Equipment & Materials,"1,078.08",First Fence Ltd,Equipment & Materials - Parks- Fencing Products,2032063,202201
Rother District Council,14/03/2022,091HOUSING,Housing and Community Services,20200,Housing Needs - HB (Housing Benefit),D2513,Hired and Contracted services,132.00,Movers of Sussex LTD,Hired and Contracted services,2033030,202202
Rother District Council,15/03/2022,999NOREPORT,Housing and Community Services,70751,Capital - Temporary Accommodation,D2513,Hired and Contracted services,450.00,A&A Cleaning & Property Services Ltd,Hired and contracted services - Service fee paid,2032436,202201
Rother District Council,15/03/2022,041ENVIRON,Environmental Services,32136,EH Pest Control R + W Partnership,C1104,Derv,3.80,Allstar Business Solutions,Derv - Fuel Service fee payable on fuel cards,2032900,202202
Rother District Council,15/03/2022,999NOREPORT,Housing and Community Services,70714,Capital - Grants Halls and Community Projects,N1011,Capital Grants,"5,000.00",Bexhill Cricket Club,Capital Grants - Community Grants Scheme,2032633,202202
Rother District Council,15/03/2022,091HOUSING,Housing and Community Services,20200,Housing Needs - HB (Housing Benefit),D2514,Accommodation Costs,3.72,Eastbourne Borough Council,Accommodation Costs,2031798,202201
Rother District Council,15/03/2022,041ENVIRON,Environmental Services,32136,EH Pest Control R + W Partnership,C1104,Derv,51.67,Allstar Business Solutions,Derv,2032900,202202
Rother District Council,15/03/2022,041ENVIRON,Environmental Services,32136,EH Pest Control R + W Partnership,C1104,Derv,56.68,Allstar Business Solutions,Derv,2032900,202202
Rother District Council,15/03/2022,091HOUSING,Housing and Community Services,20145,Maintenance Services,C1104,Derv,70.00,Allstar Business Solutions,Derv,2032900,202202
Rother District Council,15/03/2022,091HOUSING,Housing and Community Services,20145,Maintenance Services,C1104,Derv,85.00,Allstar Business Solutions,Derv,2032900,202202
Rother District Council,15/03/2022,091HOUSING,Housing and Community Services,20145,Maintenance Services,C1104,Derv,47.50,Allstar Business Solutions,Derv,2032900,202202
Rother District Council,16/03/2022,091HOUSING,Housing and Community Services,20108,Bexhill Promenade & Foreshore,E2302,Third party payment private contractors,"20,000.00",CMJ Joinery (Southern) Ltd,Third party payment private contractors - Payments to Contractor,2031974,202201
Rother District Council,16/03/2022,091HOUSING,Housing and Community Services,20108,Bexhill Promenade & Foreshore,E2302,Third party payment private contractors,"3,110.00",CMJ Joinery (Southern) Ltd,Third party payment private contractors - Payments to Contractor,2031974,202201
Rother District Council,16/03/2022,101RESOURCES,Resources,20213,Procurement Strategy,E1101,Third party payment other LAs,"35,000.00",Wealden District Council,Third party payment other LAs - East Sussex Hub,2031391,202201
Rother District Council,17/03/2022,999NOREPORT,Housing and Community Services,70751,Capital - Temporary Accommodation,D2513,Hired and Contracted services,"4,070.00",REDACTED PERSONAL DATA,Hired and contracted services - AONB Management,2031837,202201
Rother District Council,18/03/2022,081ACQUISIT,"Acquisitions, Transformation and Regeneration",20338,7-12 Beeching Road Studios ( Regeneration Project ),D2513,Hired and Contracted services,493.36,Alfa Electric Ltd,Hired and contracted services - Service fee paid,2031888,202201
Rother District Council,18/03/2022,081ACQUISIT,"Acquisitions, Transformation and Regeneration",20338,7-12 Beeching Road Studios ( Regeneration Project ),D2513,Hired and Contracted services,619.66,Alfa Electric Ltd,Hired and contracted services - Service fee paid,2031889,202201
Rother District Council,18/03/2022,081ACQUISIT,"Acquisitions, Transformation and Regeneration",20338,7-12 Beeching Road Studios ( Regeneration Project ),D2513,Hired and Contracted services,192.34,Alfa Electric Ltd,Hired and contracted services - Service fee paid,2031890,202201
Rother District Council,18/03/2022,081ACQUISIT,"Acquisitions, Transformation and Regeneration",20338,7-12 Beeching Road Studios ( Regeneration Project ),D2513,Hired and Contracted services,255.67,Alfa Electric Ltd,Hired and contracted services - Service fee paid,2031891,202201
Rother District Council,18/03/2022,081ACQUISIT,"Acquisitions, Transformation and Regeneration",20338,7-12 Beeching Road Studios ( Regeneration Project ),D2513,Hired and Contracted services,329.71,Alfa Electric Ltd,Hired and contracted services - Service fee paid,2031892,202201
Rother District Council,18/03/2022,081ACQUISIT,"Acquisitions, Transformation and Regeneration",20338,7-12 Beeching Road Studios ( Regeneration Project ),D2513,Hired and Contracted services,339.96,Alfa Electric Ltd,Hired and contracted services - Service fee paid,2031893,202201
Rother District Council,18/03/2022,081ACQUISIT,"Acquisitions, Transformation and Regeneration",20338,7-12 Beeching Road Studios ( Regeneration Project ),D2513,Hired and Contracted services,383.34,Alfa Electric Ltd,Hired and contracted services - Service fee paid,2031894,202201
Rother District Council,18/03/2022,081ACQUISIT,"Acquisitions, Transformation and Regeneration",20338,7-12 Beeching Road Studios ( Regeneration Project ),D2513,Hired and Contracted services,437.84,Alfa Electric Ltd,Hired and contracted services - Service fee paid,2031895,202201
Rother District Council,18/03/2022,031RESOURCES,Chief Executive & Corporate Core,20156,Representing Local Interest,D2513,Hired and Contracted services,44.00,Brede Village Hall,Hired and contracted services - Hire of Meeting Room,2031806,202201
Rother District Council,19/03/2022,091HOUSING,Housing and Community Services,20109,Sports Development,D2923,Grants made,250.00,Table Tennis Rother,Grants made - Active Sussex Project workforce dev.,2032245,202201
Rother District Council,19/03/2022,091HOUSING,Housing and Community Services,20261,"TA Purchases (prev - 41 Jameson Mews, Bexhill on Sea)",B2202,Gas,77.28,Bulb Energy Ltd,Gas - Gas Charges,2032138,202201
Rother District Council,19/03/2022,091HOUSING,Housing and Community Services,20200,Housing Needs - HB (Housing Benefit),D2508,Removals and Storage,136.48,Safestore,Removals and Storage,2031479,202201
Rother District Council,19/03/2022,091HOUSING,Housing and Community Services,20200,Housing Needs - HB (Housing Benefit),D2508,Removals and Storage,31.00,Safestore,Removals and Storage,2031479,202201
Rother District Council,20/03/2022,091HOUSING,Housing and Community Services,20261,"TA Purchases (prev - 41 Jameson Mews, Bexhill on Sea)",B2201,Electricity,5.22,SP Energy Retail Ltd (Scottish Power),Gas - Gas Charges,2032283,202201
Rother District Council,21/03/2022,091HOUSING,Housing and Community Services,20114,Bexhill Parks & Open Spaces,B1100,Repairs to Premises,164.99,Four Seasons Plastics,Repairs to Premises - Purchase of Materials - Build Maint,2031924,202201
Rother District Council,21/03/2022,091HOUSING,Housing and Community Services,20137,Car Parks,B1100,Repairs to Premises,21.65,Trade UK Account (Screwfix & B&Q),Repairs to Premises - Purchase of Materials - Build Maint,2032177,202201
Rother District Council,21/03/2022,081ACQUISIT,"Acquisitions, Transformation and Regeneration",20153,"Elva Business Centre, Bexhill",B1100,Repairs to Premises,550.00,JS Wadeson Cleaning Services Ltd,Repairs to Premises - Empty gully and jet drain,2031601,202201
Rother District Council,21/03/2022,999NOREPORT,Housing and Community Services,70751,Capital - Temporary Accommodation,D2513,Hired and Contracted services,436.00,St Leonards Glass Co,Hired and contracted services - AONB Management,2031883,202201
Rother District Council,21/03/2022,071STRAT,Strategy and Planning,20246,Planning Applications,D2509,Consultants and Other Services,226.16,Curley Consultants,Consultants and other services - Consultants Fees,2032236,202201
Rother District Council,21/03/2022,031RESOURCES,Chief Executive & Corporate Core,20158,Committee Service General Exp,D2635,Computer Licences,"14,050.80",Civica UK Ltd,Computer Licences - Computer Licence Renewal,2032034,202201
Rother District Council,22/03/2022,041ENVIRON,Environmental Services,32134,EH Pollution R + W Partnership,D2922,Subscriptions,335.00,Environmental Protection UK,Subscriptions - Subscription to Organisations,2031875,202201
Rother District Council,22/03/2022,091HOUSING,Housing and Community Services,20132,Street & Beach Cleansing,D1201,Equipment & Materials,43.55,Trade Paints Ltd,Repairs to Premises - Purchase of Materials - Build Maint,2031952,202201
Rother District Council,22/03/2022,081ACQUISIT,"Acquisitions, Transformation and Regeneration",20118,Tourism,D2517,Marketing,"1,000.00",18 Hours Ltd,Marketing - Projects,2031853,202201
Rother District Council,22/03/2022,091HOUSING,Housing and Community Services,20261,"TA Purchases (prev - 41 Jameson Mews, Bexhill on Sea)",B2202,Gas,259.52,SP Energy Retail Ltd (Scottish Power),Gas - Gas Charges,2031792,202201
Rother District Council,23/03/2022,091HOUSING,Housing and Community Services,20261,"TA Purchases (prev - 41 Jameson Mews, Bexhill on Sea)",B2421,Water,81.81,South East Water Ltd,Water - Water Charges,2031796,202201
Rother District Council,23/03/2022,091HOUSING,Housing and Community Services,20261,"TA Purchases (prev - 41 Jameson Mews, Bexhill on Sea)",B2421,Water,159.95,South East Water Ltd,Water - Water Charges,2031797,202201
Rother District Council,23/03/2022,091HOUSING,Housing and Community Services,20137,Car Parks,B2422,Sewerage,34.46,Scottish Water Business Stream Limited,Sewerage - Sewerage Charges,2031793,202201
Rother District Council,23/03/2022,091HOUSING,Housing and Community Services,20137,Car Parks,B2422,Sewerage,34.46,Scottish Water Business Stream Limited,Sewerage - Sewerage Charges,2031795,202201
Rother District Council,23/03/2022,091HOUSING,Housing and Community Services,20261,"TA Purchases (prev - 41 Jameson Mews, Bexhill on Sea)",B2421,Water,96.20,South East Water Ltd,Sewerage - Sewerage Charges,2031796,202201
Rother District Council,23/03/2022,091HOUSING,Housing and Community Services,20261,"TA Purchases (prev - 41 Jameson Mews, Bexhill on Sea)",B2422,Sewerage,177.55,South East Water Ltd,Sewerage - Sewerage Charges,2031797,202201
Rother District Council,23/03/2022,091HOUSING,Housing and Community Services,20206,UK Resettlement (Syrians),D2513,Hired and Contracted services,"2,943.74",HFS - Hastings Furniture Service Ltd,Hired and contracted services - Syrian Misc,2031879,202201
Rother District Council,23/03/2022,081ACQUISIT,"Acquisitions, Transformation and Regeneration",20308,Amherst Road,B2202,Gas,411.37,Laser Energy Buying Group (Kent County Council Commercial Services),Gas - Gas Charges,2033061,202202
Rother District Council,23/03/2022,031RESOURCES,Chief Executive & Corporate Core,20176,Administrative Offices - Print Room,B2202,Gas,129.72,Laser Energy Buying Group (Kent County Council Commercial Services),Gas - Gas Charges,2033061,202202
Rother District Council,23/03/2022,081ACQUISIT,"Acquisitions, Transformation and Regeneration",20154,Committee Property Account,B2202,Gas,11.48,Laser Energy Buying Group (Kent County Council Commercial Services),Gas - Gas Charges,2033061,202202
Rother District Council,23/03/2022,031RESOURCES,Chief Executive & Corporate Core,20173,Administrative Offices - Town Hall,B2202,Gas,"1,187.82",Laser Energy Buying Group (Kent County Council Commercial Services),Gas - Gas Charges,2033061,202202
Rother District Council,23/03/2022,081ACQUISIT,"Acquisitions, Transformation and Regeneration",20308,Amherst Road,B2201,Electricity,808.11,Laser Energy Buying Group (Kent County Council Commercial Services),Electricity - Electricity Charges,2033015,202202
Rother District Council,23/03/2022,091HOUSING,Housing and Community Services,20107,Camber Beach & Foreshore,B2201,Electricity,66.37,Laser Energy Buying Group (Kent County Council Commercial Services),Electricity - Electricity Charges,2033015,202202
Rother District Council,23/03/2022,091HOUSING,Housing and Community Services,20108,Bexhill Promenade & Foreshore,B2201,Electricity,62.29,Laser Energy Buying Group (Kent County Council Commercial Services),Electricity - Electricity Charges,2033015,202202
Rother District Council,23/03/2022,091HOUSING,Housing and Community Services,20107,Camber Beach & Foreshore,B2201,Electricity,29.62,Laser Energy Buying Group (Kent County Council Commercial Services),Electricity - Electricity Charges,2033015,202202
Rother District Council,23/03/2022,091HOUSING,Housing and Community Services,20108,Bexhill Promenade & Foreshore,B2201,Electricity,20.15,Laser Energy Buying Group (Kent County Council Commercial Services),Electricity - Electricity Charges,2033015,202202
Rother District Council,23/03/2022,091HOUSING,Housing and Community Services,20108,Bexhill Promenade & Foreshore,B2201,Electricity,20.16,Laser Energy Buying Group (Kent County Council Commercial Services),Electricity - Electricity Charges,2033015,202202
Rother District Council,23/03/2022,091HOUSING,Housing and Community Services,20108,Bexhill Promenade & Foreshore,B2201,Electricity,32.13,Laser Energy Buying Group (Kent County Council Commercial Services),Electricity - Electricity Charges,2033015,202202
Rother District Council,23/03/2022,091HOUSING,Housing and Community Services,20108,Bexhill Promenade & Foreshore,B2201,Electricity,28.27,Laser Energy Buying Group (Kent County Council Commercial Services),Electricity - Electricity Charges,2033015,202202
Rother District Council,23/03/2022,091HOUSING,Housing and Community Services,20108,Bexhill Promenade & Foreshore,B2201,Electricity,20.89,Laser Energy Buying Group (Kent County Council Commercial Services),Electricity - Electricity Charges,2033015,202202
Rother District Council,23/03/2022,091HOUSING,Housing and Community Services,20108,Bexhill Promenade & Foreshore,B2201,Electricity,34.36,Laser Energy Buying Group (Kent County Council Commercial Services),Electricity - Electricity Charges,2033015,202202
Rother District Council,23/03/2022,091HOUSING,Housing and Community Services,20108,Bexhill Promenade & Foreshore,B2201,Electricity,27.28,Laser Energy Buying Group (Kent County Council Commercial Services),Electricity - Electricity Charges,2033015,202202
Rother District Council,23/03/2022,091HOUSING,Housing and Community Services,20108,Bexhill Promenade & Foreshore,B2201,Electricity,30.88,Laser Energy Buying Group (Kent County Council Commercial Services),Electricity - Electricity Charges,2033015,202202
Rother District Council,23/03/2022,091HOUSING,Housing and Community Services,20114,Bexhill Parks & Open Spaces,B2201,Electricity,37.92,Laser Energy Buying Group (Kent County Council Commercial Services),Electricity - Electricity Charges,2033015,202202
Rother District Council,23/03/2022,091HOUSING,Housing and Community Services,20114,Bexhill Parks & Open Spaces,B2201,Electricity,29.05,Laser Energy Buying Group (Kent County Council Commercial Services),Electricity - Electricity Charges,2033015,202202
Rother District Council,23/03/2022,091HOUSING,Housing and Community Services,20114,Bexhill Parks & Open Spaces,B2201,Electricity,42.78,Laser Energy Buying Group (Kent County Council Commercial Services),Electricity - Electricity Charges,2033015,202202
Rother District Council,23/03/2022,091HOUSING,Housing and Community Services,20114,Bexhill Parks & Open Spaces,B2201,Electricity,23.24,Laser Energy Buying Group (Kent County Council Commercial Services),Electricity - Electricity Charges,2033015,202202
Rother District Council,23/03/2022,091HOUSING,Housing and Community Services,20115,Rye Area Parks & Gardens,B2201,Electricity,29.24,Laser Energy Buying Group (Kent County Council Commercial Services),Electricity - Electricity Charges,2033015,202202
Rother District Council,23/03/2022,091HOUSING,Housing and Community Services,20114,Bexhill Parks & Open Spaces,B2201,Electricity,26.21,Laser Energy Buying Group (Kent County Council Commercial Services),Electricity - Electricity Charges,2033015,202202
Rother District Council,23/03/2022,091HOUSING,Housing and Community Services,20115,Rye Area Parks & Gardens,B2201,Electricity,13.68,Laser Energy Buying Group (Kent County Council Commercial Services),Electricity - Electricity Charges,2033015,202202
Rother District Council,23/03/2022,091HOUSING,Housing and Community Services,20114,Bexhill Parks & Open Spaces,B2201,Electricity,31.13,Laser Energy Buying Group (Kent County Council Commercial Services),Electricity - Electricity Charges,2033015,202202
Rother District Council,23/03/2022,091HOUSING,Housing and Community Services,20128,Public Conveniences,B2201,Electricity,25.08,Laser Energy Buying Group (Kent County Council Commercial Services),Electricity - Electricity Charges,2033015,202202
Rother District Council,23/03/2022,091HOUSING,Housing and Community Services,20128,Public Conveniences,B2201,Electricity,40.39,Laser Energy Buying Group (Kent County Council Commercial Services),Electricity - Electricity Charges,2033015,202202
Rother District Council,23/03/2022,091HOUSING,Housing and Community Services,20128,Public Conveniences,B2201,Electricity,30.11,Laser Energy Buying Group (Kent County Council Commercial Services),Electricity - Electricity Charges,2033015,202202
Rother District Council,23/03/2022,091HOUSING,Housing and Community Services,20128,Public Conveniences,B2201,Electricity,25.11,Laser Energy Buying Group (Kent County Council Commercial Services),Electricity - Electricity Charges,2033015,202202
Rother District Council,23/03/2022,091HOUSING,Housing and Community Services,20128,Public Conveniences,B2201,Electricity,151.76,Laser Energy Buying Group (Kent County Council Commercial Services),Electricity - Electricity Charges,2033015,202202
Rother District Council,23/03/2022,091HOUSING,Housing and Community Services,20128,Public Conveniences,B2201,Electricity,110.75,Laser Energy Buying Group (Kent County Council Commercial Services),Electricity - Electricity Charges,2033015,202202
Rother District Council,23/03/2022,091HOUSING,Housing and Community Services,20128,Public Conveniences,B2201,Electricity,47.16,Laser Energy Buying Group (Kent County Council Commercial Services),Electricity - Electricity Charges,2033015,202202
Rother District Council,23/03/2022,091HOUSING,Housing and Community Services,20125,Coast Protection,B2201,Electricity,579.25,Laser Energy Buying Group (Kent County Council Commercial Services),Electricity - Electricity Charges,2033015,202202
Rother District Council,23/03/2022,091HOUSING,Housing and Community Services,20128,Public Conveniences,B2201,Electricity,46.61,Laser Energy Buying Group (Kent County Council Commercial Services),Electricity - Electricity Charges,2033015,202202
Rother District Council,23/03/2022,091HOUSING,Housing and Community Services,20137,Car Parks,B2201,Electricity,29.05,Laser Energy Buying Group (Kent County Council Commercial Services),Electricity - Electricity Charges,2033015,202202
Rother District Council,23/03/2022,091HOUSING,Housing and Community Services,20128,Public Conveniences,B2201,Electricity,50.22,Laser Energy Buying Group (Kent County Council Commercial Services),Electricity - Electricity Charges,2033015,202202
Rother District Council,23/03/2022,091HOUSING,Housing and Community Services,20128,Public Conveniences,B2201,Electricity,81.59,Laser Energy Buying Group (Kent County Council Commercial Services),Electricity - Electricity Charges,2033015,202202
Rother District Council,23/03/2022,091HOUSING,Housing and Community Services,20123,Cemeteries,B2201,Electricity,64.01,Laser Energy Buying Group (Kent County Council Commercial Services),Electricity - Electricity Charges,2033015,202202
Rother District Council,23/03/2022,091HOUSING,Housing and Community Services,20137,Car Parks,B2201,Electricity,34.72,Laser Energy Buying Group (Kent County Council Commercial Services),Electricity - Electricity Charges,2033015,202202
Rother District Council,23/03/2022,091HOUSING,Housing and Community Services,20128,Public Conveniences,B2201,Electricity,34.72,Laser Energy Buying Group (Kent County Council Commercial Services),Electricity - Electricity Charges,2033015,202202
Rother District Council,23/03/2022,091HOUSING,Housing and Community Services,20128,Public Conveniences,B2201,Electricity,27.35,Laser Energy Buying Group (Kent County Council Commercial Services),Electricity - Electricity Charges,2033015,202202
Rother District Council,23/03/2022,091HOUSING,Housing and Community Services,20128,Public Conveniences,B2201,Electricity,29.62,Laser Energy Buying Group (Kent County Council Commercial Services),Electricity - Electricity Charges,2033015,202202
Rother District Council,23/03/2022,091HOUSING,Housing and Community Services,20128,Public Conveniences,B2201,Electricity,81.41,Laser Energy Buying Group (Kent County Council Commercial Services),Electricity - Electricity Charges,2033015,202202
Rother District Council,23/03/2022,091HOUSING,Housing and Community Services,20128,Public Conveniences,B2201,Electricity,38.12,Laser Energy Buying Group (Kent County Council Commercial Services),Electricity - Electricity Charges,2033015,202202
Rother District Council,23/03/2022,091HOUSING,Housing and Community Services,20128,Public Conveniences,B2201,Electricity,42.47,Laser Energy Buying Group (Kent County Council Commercial Services),Electricity - Electricity Charges,2033015,202202
Rother District Council,23/03/2022,091HOUSING,Housing and Community Services,20128,Public Conveniences,B2201,Electricity,31.13,Laser Energy Buying Group (Kent County Council Commercial Services),Electricity - Electricity Charges,2033015,202202
Rother District Council,23/03/2022,091HOUSING,Housing and Community Services,20128,Public Conveniences,B2201,Electricity,40.74,Laser Energy Buying Group (Kent County Council Commercial Services),Electricity - Electricity Charges,2033015,202202
Rother District Council,23/03/2022,091HOUSING,Housing and Community Services,20128,Public Conveniences,B2201,Electricity,34.34,Laser Energy Buying Group (Kent County Council Commercial Services),Electricity - Electricity Charges,2033015,202202
Rother District Council,23/03/2022,091HOUSING,Housing and Community Services,20128,Public Conveniences,B2201,Electricity,10.69,Laser Energy Buying Group (Kent County Council Commercial Services),Electricity - Electricity Charges,2033015,202202
Rother District Council,23/03/2022,091HOUSING,Housing and Community Services,20128,Public Conveniences,B2201,Electricity,5.81,Laser Energy Buying Group (Kent County Council Commercial Services),Electricity - Electricity Charges,2033015,202202
Rother District Council,23/03/2022,091HOUSING,Housing and Community Services,20128,Public Conveniences,B2201,Electricity,104.17,Laser Energy Buying Group (Kent County Council Commercial Services),Electricity - Electricity Charges,2033015,202202
Rother District Council,23/03/2022,091HOUSING,Housing and Community Services,20128,Public Conveniences,B2201,Electricity,46.82,Laser Energy Buying Group (Kent County Council Commercial Services),Electricity - Electricity Charges,2033015,202202
Rother District Council,23/03/2022,091HOUSING,Housing and Community Services,20128,Public Conveniences,B2201,Electricity,68.73,Laser Energy Buying Group (Kent County Council Commercial Services),Electricity - Electricity Charges,2033015,202202
Rother District Council,23/03/2022,091HOUSING,Housing and Community Services,20128,Public Conveniences,B2201,Electricity,17.08,Laser Energy Buying Group (Kent County Council Commercial Services),Electricity - Electricity Charges,2033015,202202
Rother District Council,23/03/2022,091HOUSING,Housing and Community Services,20128,Public Conveniences,B2201,Electricity,45.67,Laser Energy Buying Group (Kent County Council Commercial Services),Electricity - Electricity Charges,2033015,202202
Rother District Council,23/03/2022,091HOUSING,Housing and Community Services,20128,Public Conveniences,B2201,Electricity,45.35,Laser Energy Buying Group (Kent County Council Commercial Services),Electricity - Electricity Charges,2033015,202202
Rother District Council,23/03/2022,091HOUSING,Housing and Community Services,20128,Public Conveniences,B2201,Electricity,31.37,Laser Energy Buying Group (Kent County Council Commercial Services),Electricity - Electricity Charges,2033015,202202
Rother District Council,23/03/2022,091HOUSING,Housing and Community Services,20128,Public Conveniences,B2201,Electricity,42.90,Laser Energy Buying Group (Kent County Council Commercial Services),Electricity - Electricity Charges,2033015,202202
Rother District Council,23/03/2022,091HOUSING,Housing and Community Services,20128,Public Conveniences,B2201,Electricity,25.08,Laser Energy Buying Group (Kent County Council Commercial Services),Electricity - Electricity Charges,2033015,202202
Rother District Council,23/03/2022,031RESOURCES,Chief Executive & Corporate Core,20173,Administrative Offices - Town Hall,B2201,Electricity,"2,740.27",Laser Energy Buying Group (Kent County Council Commercial Services),Electricity - Electricity Charges,2033015,202202
Rother District Council,23/03/2022,081ACQUISIT,"Acquisitions, Transformation and Regeneration",20148,Misc Land & Buildings,B2201,Electricity,25.08,Laser Energy Buying Group (Kent County Council Commercial Services),Electricity - Electricity Charges,2033015,202202
Rother District Council,23/03/2022,031RESOURCES,Chief Executive & Corporate Core,20177,Administrative Offices - Rear Depot,B2201,Electricity,66.47,Laser Energy Buying Group (Kent County Council Commercial Services),Electricity - Electricity Charges,2033015,202202
Rother District Council,23/03/2022,081ACQUISIT,"Acquisitions, Transformation and Regeneration",20155,Investment properties,B2201,Electricity,25.11,Laser Energy Buying Group (Kent County Council Commercial Services),Electricity - Electricity Charges,2033015,202202
Rother District Council,23/03/2022,081ACQUISIT,"Acquisitions, Transformation and Regeneration",20104,Ancient Monuments & Gazebo,B2201,Electricity,25.08,Laser Energy Buying Group (Kent County Council Commercial Services),Electricity - Electricity Charges,2033015,202202
Rother District Council,23/03/2022,081ACQUISIT,"Acquisitions, Transformation and Regeneration",20150,Peasmarsh Workshops,B2201,Electricity,26.87,Laser Energy Buying Group (Kent County Council Commercial Services),Electricity - Electricity Charges,2033015,202202
Rother District Council,23/03/2022,081ACQUISIT,"Acquisitions, Transformation and Regeneration",20153,"Elva Business Centre, Bexhill",B2201,Electricity,"1,276.98",Laser Energy Buying Group (Kent County Council Commercial Services),Electricity - Electricity Charges,2033015,202202
Rother District Council,23/03/2022,081ACQUISIT,"Acquisitions, Transformation and Regeneration",20148,Misc Land & Buildings,B2201,Electricity,13.68,Laser Energy Buying Group (Kent County Council Commercial Services),Electricity - Electricity Charges,2033015,202202
Rother District Council,23/03/2022,081ACQUISIT,"Acquisitions, Transformation and Regeneration",20154,Committee Property Account,B2201,Electricity,15.30,Laser Energy Buying Group (Kent County Council Commercial Services),Electricity - Electricity Charges,2033015,202202
Rother District Council,23/03/2022,081ACQUISIT,"Acquisitions, Transformation and Regeneration",20154,Committee Property Account,B2201,Electricity,15.30,Laser Energy Buying Group (Kent County Council Commercial Services),Electricity - Electricity Charges,2033015,202202
Rother District Council,23/03/2022,081ACQUISIT,"Acquisitions, Transformation and Regeneration",20154,Committee Property Account,B2201,Electricity,15.31,Laser Energy Buying Group (Kent County Council Commercial Services),Electricity - Electricity Charges,2033015,202202
Rother District Council,23/03/2022,081ACQUISIT,"Acquisitions, Transformation and Regeneration",20154,Committee Property Account,B2201,Electricity,15.30,Laser Energy Buying Group (Kent County Council Commercial Services),Electricity - Electricity Charges,2033015,202202
Rother District Council,23/03/2022,081ACQUISIT,"Acquisitions, Transformation and Regeneration",20154,Committee Property Account,B2201,Electricity,40.31,Laser Energy Buying Group (Kent County Council Commercial Services),Electricity - Electricity Charges,2033015,202202
Rother District Council,23/03/2022,081ACQUISIT,"Acquisitions, Transformation and Regeneration",20154,Committee Property Account,B2201,Electricity,40.31,Laser Energy Buying Group (Kent County Council Commercial Services),Electricity - Electricity Charges,2033015,202202
Rother District Council,23/03/2022,081ACQUISIT,"Acquisitions, Transformation and Regeneration",20154,Committee Property Account,B2201,Electricity,40.31,Laser Energy Buying Group (Kent County Council Commercial Services),Electricity - Electricity Charges,2033015,202202
Rother District Council,23/03/2022,081ACQUISIT,"Acquisitions, Transformation and Regeneration",20154,Committee Property Account,B2201,Electricity,40.31,Laser Energy Buying Group (Kent County Council Commercial Services),Electricity - Electricity Charges,2033015,202202
Rother District Council,23/03/2022,081ACQUISIT,"Acquisitions, Transformation and Regeneration",20154,Committee Property Account,B2201,Electricity,"1,813.82",Laser Energy Buying Group (Kent County Council Commercial Services),Electricity - Electricity Charges,2033015,202202
Rother District Council,23/03/2022,081ACQUISIT,"Acquisitions, Transformation and Regeneration",20154,Committee Property Account,B2201,Electricity,20.89,Laser Energy Buying Group (Kent County Council Commercial Services),Electricity - Electricity Charges,2033015,202202
Rother District Council,23/03/2022,081ACQUISIT,"Acquisitions, Transformation and Regeneration",20154,Committee Property Account,B2201,Electricity,20.89,Laser Energy Buying Group (Kent County Council Commercial Services),Electricity - Electricity Charges,2033015,202202
Rother District Council,23/03/2022,081ACQUISIT,"Acquisitions, Transformation and Regeneration",20154,Committee Property Account,B2201,Electricity,20.89,Laser Energy Buying Group (Kent County Council Commercial Services),Electricity - Electricity Charges,2033015,202202
Rother District Council,23/03/2022,031RESOURCES,Chief Executive & Corporate Core,20176,Administrative Offices - Print Room,B2201,Electricity,166.30,Laser Energy Buying Group (Kent County Council Commercial Services),Electricity - Electricity Charges,2033015,202202
Rother District Council,23/03/2022,081ACQUISIT,"Acquisitions, Transformation and Regeneration",20151,Udimore Workshops,B2201,Electricity,25.08,Laser Energy Buying Group (Kent County Council Commercial Services),Electricity - Electricity Charges,2033015,202202
Rother District Council,23/03/2022,091HOUSING,Housing and Community Services,20261,"TA Purchases (prev - 41 Jameson Mews, Bexhill on Sea)",B2201,Electricity,97.13,Laser Energy Buying Group (Kent County Council Commercial Services),Electricity - Electricity Charges,2033015,202202
Rother District Council,23/03/2022,091HOUSING,Housing and Community Services,20261,"TA Purchases (prev - 41 Jameson Mews, Bexhill on Sea)",B2201,Electricity,51.13,Laser Energy Buying Group (Kent County Council Commercial Services),Electricity - Electricity Charges,2033015,202202
Rother District Council,23/03/2022,091HOUSING,Housing and Community Services,20261,"TA Purchases (prev - 41 Jameson Mews, Bexhill on Sea)",B2201,Electricity,33.70,Laser Energy Buying Group (Kent County Council Commercial Services),Electricity - Electricity Charges,2033015,202202
Rother District Council,23/03/2022,091HOUSING,Housing and Community Services,20261,"TA Purchases (prev - 41 Jameson Mews, Bexhill on Sea)",B2201,Electricity,112.70,Laser Energy Buying Group (Kent County Council Commercial Services),Electricity - Electricity Charges,2033015,202202
Rother District Council,23/03/2022,091HOUSING,Housing and Community Services,20145,Maintenance Services,B2201,Electricity,"1,006.69",Laser Energy Buying Group (Kent County Council Commercial Services),Electricity - Electricity Charges,2033015,202202
Rother District Council,23/03/2022,071STRAT,Strategy and Planning,20246,Planning Applications,D2509,Consultants and Other Services,207.18,Curley Consultants,Consultants and other services - Consultants Fees,2032485,202202
Rother District Council,24/03/2022,031RESOURCES,Chief Executive & Corporate Core,20182,Legal Services,E1101,Third party payment other LAs,"29,988.32",Wealden District Council,Third party payment other LAs - legal counsel costs to wealden-shared cost,2031618,202201
Rother District Council,24/03/2022,081ACQUISIT,"Acquisitions, Transformation and Regeneration",20118,Tourism,D2517,Marketing,"2,000.00",Gillaroo Design Ltd,Marketing - Projects,2031852,202201
Rother District Council,24/03/2022,999NOREPORT,"Acquisitions, Transformation and Regeneration",70725,Capital - Blackfriars,D2513,Hired and Contracted services,6.00,Bevan Brittan LLP,Hired and contracted services - Service fee paid,2033023,202202
Rother District Council,24/03/2022,091HOUSING,Housing and Community Services,20114,Bexhill Parks & Open Spaces,D2513,Hired and Contracted services,569.19,Wealden District Council,Hired and contracted services - Legal Advice,2031896,202201
Rother District Council,24/03/2022,091HOUSING,Housing and Community Services,20114,Bexhill Parks & Open Spaces,D2513,Hired and Contracted services,"1,750.00",Wealden District Council,Hired and contracted services - Legal Advice,2031896,202201
Rother District Council,24/03/2022,041ENVIRON,Environmental Services,32142,EH Taxi and Private Hire Licenses R + W Partnership,D2627,County Courier service,341.50,East Sussex County Council,County Courier service - County Courier Service,2031880,202201
Rother District Council,25/03/2022,091HOUSING,Housing and Community Services,20108,Bexhill Promenade & Foreshore,E2302,Third party payment private contractors,300.00,Impact Scaffolding Ltd,Third party payment private contractors - Payments to Contractor,2031821,202201
Rother District Council,25/03/2022,081ACQUISIT,"Acquisitions, Transformation and Regeneration",20150,Peasmarsh Workshops,B2422,Sewerage,132.03,Scottish Water Business Stream Limited,Sewerage - Sewerage Charges,2031791,202201
Rother District Council,25/03/2022,091HOUSING,Housing and Community Services,20329,Rough Sleeping Initiative,D2513,Hired and Contracted services,"55,600.00",Hastings Borough Council,Hired and contracted services - Service fee paid,2031839,202201
Rother District Council,25/03/2022,999NOREPORT,Housing and Community Services,70727,Capital - Refuse Equipment,N1008,Equipment,300.00,Impact Scaffolding Ltd,Capital - Purchase of Equipment,2031821,202201
Rother District Council,26/03/2022,999NOREPORT,"Acquisitions, Transformation and Regeneration",70725,Capital - Blackfriars,N1004,Architects & Consultant Fees,"4,909.60",Baily Garner LLP,Architects & Consultant Fees Capital-Architect and Conslt Fees,2031898,202201
Rother District Council,27/03/2022,101RESOURCES,Resources,20242,Communications-Phones,D2621,Telephones,305.02,BT British Telecommunications plc,Telephones - BT-Rental-General,2032126,202201
Rother District Council,27/03/2022,091HOUSING,Housing and Community Services,20128,Public Conveniences,B2422,Sewerage,142.13,Scottish Water Business Stream Limited,Sewerage - Sewerage Charges,2031800,202201
Rother District Council,27/03/2022,091HOUSING,Housing and Community Services,20261,"TA Purchases (prev - 41 Jameson Mews, Bexhill on Sea)",B2202,Gas,24.71,Bulb Energy Ltd,Gas - Gas Charges,2032139,202201
Rother District Council,28/03/2022,091HOUSING,Housing and Community Services,20114,Bexhill Parks & Open Spaces,B2421,Water,"2,200.03",Castle Water Ltd,Water - Water Charges,2031803,202201
Rother District Council,28/03/2022,091HOUSING,Housing and Community Services,20114,Bexhill Parks & Open Spaces,B2421,Water,"1,695.30",Castle Water Ltd,Water - Water Charges,2031804,202201
Rother District Council,28/03/2022,091HOUSING,Housing and Community Services,20128,Public Conveniences,B2421,Water,550.01,Castle Water Ltd,Water - Water Charges,2031803,202201
Rother District Council,28/03/2022,091HOUSING,Housing and Community Services,20125,Coast Protection,E2302,Third party payment private contractors,"2,330.40",Kingsdown Compressed Air Systems Ltd,Third party payment private contractors - Fairlight Compressor Maintenance Contract,2031864,202201
Rother District Council,28/03/2022,091HOUSING,Housing and Community Services,20137,Car Parks,B1100,Repairs to Premises,80.50,Saint-Gobain Building Distribution Ltd t/a Jewson,Repairs to Premises - Purchase of Materials - Build Maint,2032151,202201
Rother District Council,28/03/2022,031RESOURCES,Chief Executive & Corporate Core,20162,Electoral Registration,D2626,Postages,89.08,Royal Mail Group Ltd,Postages - Response Service-Royal Mail Chg,2032144,202201
Rother District Council,28/03/2022,091HOUSING,Housing and Community Services,20138,Residual Highway Services,D1201,Equipment & Materials,132.32,Midland Signs (Leicester) Ltd T/A G+G Signs,Equipment & Materials - Purchase of Street Name Plates/Numb,2031813,202201
Rother District Council,28/03/2022,031RESOURCES,Chief Executive & Corporate Core,20171,Human Resources,D2738,Conferences,314.00,IGPP Ltd,Conferences - Officers Conference fees,2032127,202201
Rother District Council,28/03/2022,999NOREPORT,"Acquisitions, Transformation and Regeneration",70725,Capital - Blackfriars,N1004,Architects & Consultant Fees,"8,385.69",Baily Garner LLP,Architects & Consultant Fees Capital-Architect and Conslt Fees,2031899,202201
Rother District Council,28/03/2022,091HOUSING,Housing and Community Services,20200,Housing Needs - HB (Housing Benefit),D2514,Accommodation Costs,364.00,Savoy Court Hotel Ltd,Accommodation Costs,2031786,202201
Rother District Council,28/03/2022,091HOUSING,Housing and Community Services,20200,Housing Needs - HB (Housing Benefit),D2514,Accommodation Costs,91.00,Savoy Court Hotel Ltd,Accommodation Costs,2031786,202201
Rother District Council,28/03/2022,091HOUSING,Housing and Community Services,20200,Housing Needs - HB (Housing Benefit),D2514,Accommodation Costs,225.00,Savoy Court Hotel Ltd,Accommodation Costs,2031786,202201
Rother District Council,28/03/2022,091HOUSING,Housing and Community Services,20200,Housing Needs - HB (Housing Benefit),D2514,Accommodation Costs,252.00,Savoy Court Hotel Ltd,Accommodation Costs,2031786,202201
Rother District Council,28/03/2022,091HOUSING,Housing and Community Services,20200,Housing Needs - HB (Housing Benefit),D2514,Accommodation Costs,63.00,Savoy Court Hotel Ltd,Accommodation Costs,2031786,202201
Rother District Council,28/03/2022,091HOUSING,Housing and Community Services,20200,Housing Needs - HB (Housing Benefit),D2514,Accommodation Costs,45.00,Savoy Court Hotel Ltd,Accommodation Costs,2031786,202201
Rother District Council,28/03/2022,091HOUSING,Housing and Community Services,20200,Housing Needs - HB (Housing Benefit),D2514,Accommodation Costs,385.00,Savoy Court Hotel Ltd,Accommodation Costs,2031786,202201
Rother District Council,28/03/2022,091HOUSING,Housing and Community Services,20200,Housing Needs - HB (Housing Benefit),D2514,Accommodation Costs,420.00,Savoy Court Hotel Ltd,Accommodation Costs,2031786,202201
Rother District Council,28/03/2022,091HOUSING,Housing and Community Services,20200,Housing Needs - HB (Housing Benefit),D2514,Accommodation Costs,105.00,Savoy Court Hotel Ltd,Accommodation Costs,2031786,202201
Rother District Council,28/03/2022,091HOUSING,Housing and Community Services,20200,Housing Needs - HB (Housing Benefit),D2514,Accommodation Costs,364.00,Savoy Court Hotel Ltd,Accommodation Costs,2031786,202201
Rother District Council,28/03/2022,091HOUSING,Housing and Community Services,20200,Housing Needs - HB (Housing Benefit),D2514,Accommodation Costs,91.00,Savoy Court Hotel Ltd,Accommodation Costs,2031786,202201
Rother District Council,28/03/2022,091HOUSING,Housing and Community Services,20200,Housing Needs - HB (Housing Benefit),D2514,Accommodation Costs,225.00,Savoy Court Hotel Ltd,Accommodation Costs,2031786,202201
Rother District Council,28/03/2022,091HOUSING,Housing and Community Services,20200,Housing Needs - HB (Housing Benefit),D2514,Accommodation Costs,420.00,Savoy Court Hotel Ltd,Accommodation Costs,2031786,202201
Rother District Council,28/03/2022,091HOUSING,Housing and Community Services,20200,Housing Needs - HB (Housing Benefit),D2514,Accommodation Costs,105.00,Savoy Court Hotel Ltd,Accommodation Costs,2031786,202201
Rother District Council,28/03/2022,091HOUSING,Housing and Community Services,20200,Housing Needs - HB (Housing Benefit),D2514,Accommodation Costs,90.00,Savoy Court Hotel Ltd,Accommodation Costs,2031786,202201
Rother District Council,28/03/2022,091HOUSING,Housing and Community Services,20200,Housing Needs - HB (Housing Benefit),D2514,Accommodation Costs,180.00,Savoy Court Hotel Ltd,Accommodation Costs,2031786,202201
Rother District Council,28/03/2022,091HOUSING,Housing and Community Services,20200,Housing Needs - HB (Housing Benefit),D2514,Accommodation Costs,45.00,Savoy Court Hotel Ltd,Accommodation Costs,2031786,202201
Rother District Council,28/03/2022,091HOUSING,Housing and Community Services,20200,Housing Needs - HB (Housing Benefit),D2514,Accommodation Costs,315.00,Savoy Court Hotel Ltd,Accommodation Costs,2031786,202201
Rother District Council,28/03/2022,091HOUSING,Housing and Community Services,20200,Housing Needs - HB (Housing Benefit),D2514,Accommodation Costs,595.00,Savoy Court Hotel Ltd,Accommodation Costs,2031786,202201
Rother District Council,28/03/2022,091HOUSING,Housing and Community Services,20200,Housing Needs - HB (Housing Benefit),D2514,Accommodation Costs,252.00,Savoy Court Hotel Ltd,Accommodation Costs,2031786,202201
Rother District Council,28/03/2022,091HOUSING,Housing and Community Services,20200,Housing Needs - HB (Housing Benefit),D2514,Accommodation Costs,63.00,Savoy Court Hotel Ltd,Accommodation Costs,2031786,202201
Rother District Council,28/03/2022,091HOUSING,Housing and Community Services,20200,Housing Needs - HB (Housing Benefit),D2514,Accommodation Costs,44.00,Savoy Court Hotel Ltd,Accommodation Costs,2031786,202201
Rother District Council,28/03/2022,091HOUSING,Housing and Community Services,20200,Housing Needs - HB (Housing Benefit),D2514,Accommodation Costs,11.00,Savoy Court Hotel Ltd,Accommodation Costs,2031786,202201
Rother District Council,28/03/2022,091HOUSING,Housing and Community Services,20329,Rough Sleeping Initiative,D2514,Accommodation Costs,308.00,Savoy Court Hotel Ltd,Accommodation Costs,2031786,202201
Rother District Council,28/03/2022,091HOUSING,Housing and Community Services,20329,Rough Sleeping Initiative,D2514,Accommodation Costs,77.00,Savoy Court Hotel Ltd,Accommodation Costs,2031786,202201
Rother District Council,28/03/2022,091HOUSING,Housing and Community Services,20329,Rough Sleeping Initiative,D2514,Accommodation Costs,252.00,Savoy Court Hotel Ltd,Accommodation Costs,2031786,202201
Rother District Council,28/03/2022,091HOUSING,Housing and Community Services,20329,Rough Sleeping Initiative,D2514,Accommodation Costs,63.00,Savoy Court Hotel Ltd,Accommodation Costs,2031786,202201
Rother District Council,28/03/2022,091HOUSING,Housing and Community Services,20329,Rough Sleeping Initiative,D2514,Accommodation Costs,252.00,Savoy Court Hotel Ltd,Accommodation Costs,2031786,202201
Rother District Council,28/03/2022,091HOUSING,Housing and Community Services,20329,Rough Sleeping Initiative,D2514,Accommodation Costs,63.00,Savoy Court Hotel Ltd,Accommodation Costs,2031786,202201
Rother District Council,28/03/2022,091HOUSING,Housing and Community Services,20329,Rough Sleeping Initiative,D2514,Accommodation Costs,315.00,Savoy Court Hotel Ltd,Accommodation Costs,2031786,202201
Rother District Council,28/03/2022,091HOUSING,Housing and Community Services,20329,Rough Sleeping Initiative,D2514,Accommodation Costs,315.00,Savoy Court Hotel Ltd,Accommodation Costs,2031786,202201
Rother District Council,28/03/2022,091HOUSING,Housing and Community Services,20329,Rough Sleeping Initiative,D2514,Accommodation Costs,252.00,Savoy Court Hotel Ltd,Accommodation Costs,2031786,202201
Rother District Council,28/03/2022,091HOUSING,Housing and Community Services,20329,Rough Sleeping Initiative,D2514,Accommodation Costs,63.00,Savoy Court Hotel Ltd,Accommodation Costs,2031786,202201
Rother District Council,29/03/2022,091HOUSING,Housing and Community Services,20115,Rye Area Parks & Gardens,B2421,Water,96.66,Scottish Water Business Stream Limited,Water - Water Charges,2031801,202201
Rother District Council,29/03/2022,091HOUSING,Housing and Community Services,20128,Public Conveniences,B2421,Water,321.00,Scottish Water Business Stream Limited,Water - Water Charges,2031799,202201
Rother District Council,29/03/2022,091HOUSING,Housing and Community Services,20128,Public Conveniences,B2421,Water,210.46,Scottish Water Business Stream Limited,Water - Water Charges,2031802,202201
Rother District Council,29/03/2022,091HOUSING,Housing and Community Services,20128,Public Conveniences,B2422,Sewerage,388.58,Scottish Water Business Stream Limited,Sewerage - Sewerage Charges,2031799,202201
Rother District Council,29/03/2022,091HOUSING,Housing and Community Services,20128,Public Conveniences,B2422,Sewerage,298.75,Scottish Water Business Stream Limited,Sewerage - Sewerage Charges,2031802,202201
Rother District Council,29/03/2022,091HOUSING,Housing and Community Services,20304,Housing First,B1100,Repairs to Premises,70.19,Trade UK Account (Screwfix & B&Q),Repairs to Premises - Purchase of Materials - Build Maint,2031787,202201
Rother District Council,29/03/2022,091HOUSING,Housing and Community Services,20128,Public Conveniences,B1100,Repairs to Premises,635.00,B and G Environmental Services Limited,Repairs to Premises - Drainage Clearance,2031912,202201
Rother District Council,29/03/2022,101RESOURCES,Resources,20212,Risk Management/Insurance,D2520,Insurance,"1,184.24",Zurich Insurance plc,Insurance - Land charges,2031965,202201
Rother District Council,29/03/2022,101RESOURCES,Resources,20212,Risk Management/Insurance,D2520,Insurance,"1,028.36",Zurich Insurance plc,Insurance - Engineering,2031965,202201
Rother District Council,29/03/2022,101RESOURCES,Resources,20212,Risk Management/Insurance,D2520,Insurance,"85,426.50",Zurich Insurance plc,Insurance - Employers/Public/Produc,2031965,202201
Rother District Council,29/03/2022,031RESOURCES,Chief Executive & Corporate Core,20171,Human Resources,D2513,Hired and Contracted services,66.00,REDACTED PERSONAL DATA,Hired and contracted services - Legal Advice,2032128,202201
Rother District Council,29/03/2022,031RESOURCES,Chief Executive & Corporate Core,20171,Human Resources,D2513,Hired and Contracted services,195.70,Computershare Voucher Services,Hired and contracted services - Child Care Voucher Service Charge,2032021,202201
Rother District Council,29/03/2022,091HOUSING,Housing and Community Services,20112,Bexhill Leisure Centre,D2923,Grants made,"181,672.00",Freedom Leisure,Grants made - NLRF Grant payment,2033091,202202
Rother District Council,29/03/2022,091HOUSING,Housing and Community Services,20261,"TA Purchases (prev - 41 Jameson Mews, Bexhill on Sea)",B2202,Gas,179.39,British Gas Business (600 Accounts only),Gas - Gas Charges,2031900,202201
Rother District Council,29/03/2022,091HOUSING,Housing and Community Services,20114,Bexhill Parks & Open Spaces,D1201,Equipment & Materials,132.80,Palmstead Nurseries Ltd,Equipment & Materials - Parks-Purchase of Planting Material,2031814,202201
Rother District Council,29/03/2022,091HOUSING,Housing and Community Services,20114,Bexhill Parks & Open Spaces,D1201,Equipment & Materials,"1,329.49",Palmstead Nurseries Ltd,Equipment & Materials - Parks-Purchase of Planting Material,2031817,202201
Rother District Council,29/03/2022,091HOUSING,Housing and Community Services,20114,Bexhill Parks & Open Spaces,D1201,Equipment & Materials,83.00,Palmstead Nurseries Ltd,Equipment & Materials - Carriage/Handling Charge,2031817,202201
Rother District Council,29/03/2022,999NOREPORT,Resources,90000,Balance sheet all accounts,T1002,Childcare Vouchers,42.45,Computershare Voucher Services,Childcare Vouchers,2032021,202201
Rother District Council,29/03/2022,999NOREPORT,Housing and Community Services,70751,Capital - Temporary Accommodation,N1002,Land & Property fees,"12,160.00",HMRC Shipley (Stamp Duty),Land & Property fees,2032031,202201
Rother District Council,30/03/2022,091HOUSING,Housing and Community Services,20137,Car Parks,B2422,Sewerage,235.00,CountyClean Environmental Services Ltd,Sewerage - Sewage/Cesspool Emptying,2032418,202201
Rother District Council,30/03/2022,091HOUSING,Housing and Community Services,20128,Public Conveniences,B2422,Sewerage,235.00,CountyClean Environmental Services Ltd,Sewerage - Sewage/Cesspool Emptying,2032418,202201
Rother District Council,30/03/2022,081ACQUISIT,"Acquisitions, Transformation and Regeneration",20154,Committee Property Account,B2422,Sewerage,235.00,CountyClean Environmental Services Ltd,Sewerage - Sewage/Cesspool Emptying,2032418,202201
Rother District Council,30/03/2022,081ACQUISIT,"Acquisitions, Transformation and Regeneration",20154,Committee Property Account,B2422,Sewerage,235.00,CountyClean Environmental Services Ltd,Sewerage - Sewage/Cesspool Emptying,2032418,202201
Rother District Council,30/03/2022,091HOUSING,Housing and Community Services,20137,Car Parks,B1100,Repairs to Premises,175.00,CountyClean Environmental Services Ltd,Repairs to Premises - Cesspool Pumping station service/Call out,2032418,202201
Rother District Council,30/03/2022,091HOUSING,Housing and Community Services,20128,Public Conveniences,B1100,Repairs to Premises,175.00,CountyClean Environmental Services Ltd,Repairs to Premises - Cesspool Pumping station service/Call out,2032418,202201
Rother District Council,30/03/2022,081ACQUISIT,"Acquisitions, Transformation and Regeneration",20154,Committee Property Account,B1100,Repairs to Premises,175.00,CountyClean Environmental Services Ltd,Repairs to Premises - Cesspool Pumping station service/Call out,2032418,202201
Rother District Council,30/03/2022,081ACQUISIT,"Acquisitions, Transformation and Regeneration",20154,Committee Property Account,B1100,Repairs to Premises,175.00,CountyClean Environmental Services Ltd,Repairs to Premises - Cesspool Pumping station service/Call out,2032418,202201
Rother District Council,30/03/2022,091HOUSING,Housing and Community Services,20137,Car Parks,D2513,Hired and Contracted services,"20,807.40",Flowbird Smart City UK Ltd,Hired and contracted services - Car Parks-CALE Online Software Service for ticket machines,2031901,202201
Rother District Council,30/03/2022,999NOREPORT,Housing and Community Services,70751,Capital - Temporary Accommodation,D2513,Hired and Contracted services,644.00,A&A Cleaning & Property Services Ltd,Hired and contracted services - AONB Management,2032461,202201
Rother District Council,30/03/2022,101RESOURCES,Resources,20239,Computer Services,D2633,Computer Equipment,349.17,Apple Retail UK Ltd,Computer Equipment - New - Computer Hardware,2032899,202202
Rother District Council,30/03/2022,091HOUSING,Housing and Community Services,20204,Housing Administration Account,A1110,Agency Staff,864.00,Oyster Partnership,Agency Staff,2031858,202201
Rother District Council,30/03/2022,091HOUSING,Housing and Community Services,20200,Housing Needs - HB (Housing Benefit),D2508,Removals and Storage,84.00,Express Removals Worldwide Ltd,Removals and Storage,2031988,202201
Rother District Council,31/03/2022,091HOUSING,Housing and Community Services,20128,Public Conveniences,B2421,Water,568.68,Scottish Water Business Stream Limited,Water - Water Charges,2031905,202201
Rother District Council,31/03/2022,041ENVIRON,Environmental Services,32144,EH Environmental Services Admin R + W Partnership,A2203,Training,250.00,Ricardo-AEA Ltd,Training,2031872,202201
Rother District Council,31/03/2022,041ENVIRON,Environmental Services,32144,EH Environmental Services Admin R + W Partnership,A2203,Training,165.00,Institute of Licensing (Events) Ltd,Training,2031876,202201
Rother District Council,31/03/2022,031RESOURCES,Chief Executive & Corporate Core,20183,Chief Executive,A2203,Training,287.50,Solace in Business,Training,2032551,202202
Rother District Council,31/03/2022,091HOUSING,Housing and Community Services,20133,Refuse Collection,E2302,Third party payment private contractors,40.00,Data Shredding Services Ltd,Third party payment private contractors - Waste Collection Contract Variable cost to RDC,2032264,202201
Rother District Council,31/03/2022,091HOUSING,Housing and Community Services,20133,Refuse Collection,E2302,Third party payment private contractors,49.40,CFH Docmail Ltd,Third party payment private contractors - Payments to Contractor,2031809,202201
Rother District Council,31/03/2022,091HOUSING,Housing and Community Services,20133,Refuse Collection,E2302,Third party payment private contractors,11.95,CFH Docmail Ltd,Third party payment private contractors - Payments to Contractor,2031826,202201
Rother District Council,31/03/2022,031RESOURCES,Chief Executive & Corporate Core,20173,Administrative Offices - Town Hall,B2611,Contract cleaning,349.91,Biffa Waste Services Ltd,Third party payment private contractors - Commercial Waste Collection Contract,2031902,202201
Rother District Council,31/03/2022,071STRAT,Strategy and Planning,20246,Planning Applications,D2519,Statutory Advertising,823.50,National World Publishing Ltd,Statutory Advertising - Planadv - Rye+Battle Observer,2031863,202201
Rother District Council,31/03/2022,071STRAT,Strategy and Planning,20246,Planning Applications,D2519,Statutory Advertising,457.50,National World Publishing Ltd,Statutory Advertising - Planadv - Rye+Battle Observer,2032178,202201
Rother District Council,31/03/2022,091HOUSING,Housing and Community Services,20128,Public Conveniences,B2422,Sewerage,734.97,Scottish Water Business Stream Limited,Sewerage - Sewerage Charges,2031905,202201
Rother District Council,31/03/2022,081ACQUISIT,"Acquisitions, Transformation and Regeneration",20267,Property Investment Strategy - 18-40 Beeching Road ( Land and Buildings),B2422,Sewerage,27.50,Scottish Water Business Stream Limited,Sewerage - Sewerage Charges,2031903,202201
Rother District Council,31/03/2022,081ACQUISIT,"Acquisitions, Transformation and Regeneration",20154,Committee Property Account,B2422,Sewerage,3.64,Scottish Water Business Stream Limited,Sewerage - Sewerage Charges,2031904,202201
Rother District Council,31/03/2022,081ACQUISIT,"Acquisitions, Transformation and Regeneration",20154,Committee Property Account,B2422,Sewerage,3.64,Scottish Water Business Stream Limited,Sewerage - Sewerage Charges,2031904,202201
Rother District Council,31/03/2022,081ACQUISIT,"Acquisitions, Transformation and Regeneration",20154,Committee Property Account,B2422,Sewerage,3.64,Scottish Water Business Stream Limited,Sewerage - Sewerage Charges,2031904,202201
Rother District Council,31/03/2022,091HOUSING,Housing and Community Services,20109,Sports Development,D2927,Services Facilitated by External Grants,11.90,The Pelham,Services Facilitated by External - Grant-Sports Development-Active Rother,2031789,202201
Rother District Council,31/03/2022,081ACQUISIT,"Acquisitions, Transformation and Regeneration",20154,Committee Property Account,B1100,Repairs to Premises,"4,997.67",Alfa Electric Ltd,Repairs to Premises - Specified Repairs and Works listed,2032048,202201
Rother District Council,31/03/2022,091HOUSING,Housing and Community Services,20114,Bexhill Parks & Open Spaces,B1100,Repairs to Premises,"1,256.08",Alfa Electric Ltd,Repairs to Premises - Repairs - Plumbing Works,2031843,202201
Rother District Council,31/03/2022,081ACQUISIT,"Acquisitions, Transformation and Regeneration",20154,Committee Property Account,B1100,Repairs to Premises,"1,998.72",Alfa Electric Ltd,Repairs to Premises - Repairs - Electrical Works,2032050,202201
Rother District Council,31/03/2022,091HOUSING,Housing and Community Services,20128,Public Conveniences,B1100,Repairs to Premises,55.00,Independent Roofing Supplies Ltd,Repairs to Premises - Purchase of Materials - Build Maint,2032147,202201
Rother District Council,31/03/2022,091HOUSING,Housing and Community Services,20114,Bexhill Parks & Open Spaces,B1100,Repairs to Premises,"2,250.00",Building For Wildlife,Repairs to Premises - Parks- Landscaping Works,2031859,202201
Rother District Council,31/03/2022,091HOUSING,Housing and Community Services,20114,Bexhill Parks & Open Spaces,B1100,Repairs to Premises,"5,255.00",Gristwood and Toms Limited,Repairs to Premises - Parks - Tree Works,2031828,202201
Rother District Council,31/03/2022,091HOUSING,Housing and Community Services,20114,Bexhill Parks & Open Spaces,B1100,Repairs to Premises,170.00,Fuzion 4 Limited,Repairs to Premises - Parks - Electrical Works,2031840,202201
Rother District Council,31/03/2022,091HOUSING,Housing and Community Services,20114,Bexhill Parks & Open Spaces,B1100,Repairs to Premises,119.36,Alfa Electric Ltd,Repairs to Premises - Parks - Electrical Works,2032046,202201
Rother District Council,31/03/2022,091HOUSING,Housing and Community Services,20114,Bexhill Parks & Open Spaces,B1100,Repairs to Premises,70.00,Fuzion 4 Limited,Repairs to Premises - Electrical Installation,2031810,202201
Rother District Council,31/03/2022,091HOUSING,Housing and Community Services,20128,Public Conveniences,B1100,Repairs to Premises,842.00,Specialist Hygiene Services Ltd,Repairs to Premises - Drainage Clearance,2031953,202201
Rother District Council,31/03/2022,091HOUSING,Housing and Community Services,20137,Car Parks,B1100,Repairs to Premises,"3,109.30",Alfa Electric Ltd,Repairs to Premises - Car Park Maintenance,2031844,202201
Rother District Council,31/03/2022,091HOUSING,Housing and Community Services,20108,Bexhill Promenade & Foreshore,B1100,Repairs to Premises,"4,270.00",Spalding Enterprises Ltd,Repairs to Premises - Beach maintenance,2031816,202201
Rother District Council,31/03/2022,081ACQUISIT,"Acquisitions, Transformation and Regeneration",20266,Property Investment Strategy,B1100,Repairs to Premises,63.75,REDACTED PERSONAL DATA,Repairs to Premises -  Building Surveys and Inspection,2033743,202203
Rother District Council,31/03/2022,031RESOURCES,Chief Executive & Corporate Core,20162,Electoral Registration,D1203,Books And Publications,508.90,Civica Election Services Ltd,Printing by external suppliers - Printing (Not from RDC Print Room),2031788,202201
Rother District Council,31/03/2022,091HOUSING,Housing and Community Services,20120,Neighbourhood Services,D2626,Postages,94.64,DSI Billing Services Ltd,Postages - DSI Billing,2032270,202201
Rother District Council,31/03/2022,041ENVIRON,Environmental Services,32144,EH Environmental Services Admin R + W Partnership,D2626,Postages,68.17,DSI Billing Services Ltd,Postages - DSI Billing,2032270,202201
Rother District Council,31/03/2022,101RESOURCES,Resources,20222,Accountancy,D2626,Postages,68.36,DSI Billing Services Ltd,Postages - DSI Billing,2032270,202201
Rother District Council,31/03/2022,041ENVIRON,Environmental Services,32142,EH Taxi and Private Hire Licenses R + W Partnership,D2626,Postages,11.98,DSI Billing Services Ltd,Postages - DSI Billing,2032270,202201
Rother District Council,31/03/2022,091HOUSING,Housing and Community Services,20200,Housing Needs - HB (Housing Benefit),D2626,Postages,60.98,DSI Billing Services Ltd,Postages - DSI Billing,2032270,202201
Rother District Council,31/03/2022,101RESOURCES,Resources,20216,Cost Of Collection,D2626,Postages,"1,376.39",DSI Billing Services Ltd,Postages - DSI Billing,2032270,202201
Rother District Council,31/03/2022,091HOUSING,Housing and Community Services,20236,Customer Services and Development,D2626,Postages,18.30,DSI Billing Services Ltd,Postages - DSI Billing,2032270,202201
Rother District Council,31/03/2022,071STRAT,Strategy and Planning,20246,Planning Applications,D2626,Postages,0.73,DSI Billing Services Ltd,Postages - DSI Billing,2032270,202201
Rother District Council,31/03/2022,101RESOURCES,Resources,20240,Printing Services,D2626,Postages,15.00,SBS Consumables,Postages - Courier Urgent Mail,2032152,202201
Rother District Council,31/03/2022,101RESOURCES,Resources,20240,Printing Services,D2626,Postages,19.00,SBS Consumables,Postages - Courier Urgent Mail,2032153,202201
Rother District Council,31/03/2022,091HOUSING,Housing and Community Services,20206,UK Resettlement (Syrians),D2513,Hired and Contracted services,351.92,247 Transport Solutions Ltd,Hired and contracted services - Syrian Resettlement Programme-Travel,2031856,202201
Rother District Council,31/03/2022,091HOUSING,Housing and Community Services,20108,Bexhill Promenade & Foreshore,D2513,Hired and Contracted services,100.00,Meridian Toilet Hire,Hired and contracted services - Service fee paid,2031860,202201
Rother District Council,31/03/2022,081ACQUISIT,"Acquisitions, Transformation and Regeneration",20144,Property Management,D2513,Hired and Contracted services,"12,630.00",Hollis Global Ltd,Hired and contracted services - Service fee paid,2032247,202201
Rother District Council,31/03/2022,041ENVIRON,Environmental Services,32142,EH Taxi and Private Hire Licenses R + W Partnership,D2513,Hired and Contracted services,160.00,DBS The Disclosure and Barring Service,Hired and contracted services - Service fee paid,2032267,202201
Rother District Council,31/03/2022,091HOUSING,Housing and Community Services,20304,Housing First,D2513,Hired and Contracted services,469.00,R French and  Son Ltd,Hired and contracted services - Service fee paid,2032145,202201
Rother District Council,31/03/2022,091HOUSING,Housing and Community Services,20304,Housing First,D2513,Hired and Contracted services,395.00,R French and  Son Ltd,Hired and contracted services - Service fee paid,2032145,202201
Rother District Council,31/03/2022,999NOREPORT,Housing and Community Services,70751,Capital - Temporary Accommodation,D2513,Hired and Contracted services,"4,983.50",The Pelham,Hired and contracted services - Service fee paid,2031842,202201
Rother District Council,31/03/2022,999NOREPORT,Housing and Community Services,70751,Capital - Temporary Accommodation,D2513,Hired and Contracted services,"5,789.00",THE PELHAM CIO,Hired and contracted services - Service fee paid,2033148,202202
Rother District Council,31/03/2022,081ACQUISIT,"Acquisitions, Transformation and Regeneration",20308,Amherst Road,D2513,Hired and Contracted services,23.43,Safe Water.io,Hired and contracted services - Legionella Sampling and Monitoring,2031818,202201
Rother District Council,31/03/2022,091HOUSING,Housing and Community Services,20102,Rother Museum Services,D2513,Hired and Contracted services,15.62,Safe Water.io,Hired and contracted services - Legionella Sampling and Monitoring,2031818,202201
Rother District Council,31/03/2022,091HOUSING,Housing and Community Services,20114,Bexhill Parks & Open Spaces,D2513,Hired and Contracted services,23.43,Safe Water.io,Hired and contracted services - Legionella Sampling and Monitoring,2031818,202201
Rother District Council,31/03/2022,091HOUSING,Housing and Community Services,20114,Bexhill Parks & Open Spaces,D2513,Hired and Contracted services,15.62,Safe Water.io,Hired and contracted services - Legionella Sampling and Monitoring,2031818,202201
Rother District Council,31/03/2022,091HOUSING,Housing and Community Services,20123,Cemeteries,D2513,Hired and Contracted services,15.62,Safe Water.io,Hired and contracted services - Legionella Sampling and Monitoring,2031818,202201
Rother District Council,31/03/2022,091HOUSING,Housing and Community Services,20128,Public Conveniences,D2513,Hired and Contracted services,437.36,Safe Water.io,Hired and contracted services - Legionella Sampling and Monitoring,2031818,202201
Rother District Council,31/03/2022,031RESOURCES,Chief Executive & Corporate Core,20173,Administrative Offices - Town Hall,D2513,Hired and Contracted services,23.43,Safe Water.io,Hired and contracted services - Legionella Sampling and Monitoring,2031818,202201
Rother District Council,31/03/2022,031RESOURCES,Chief Executive & Corporate Core,20176,Administrative Offices - Print Room,D2513,Hired and Contracted services,15.62,Safe Water.io,Hired and contracted services - Legionella Sampling and Monitoring,2031818,202201
Rother District Council,31/03/2022,081ACQUISIT,"Acquisitions, Transformation and Regeneration",20154,Committee Property Account,D2513,Hired and Contracted services,15.62,Safe Water.io,Hired and contracted services - Legionella Sampling and Monitoring,2031818,202201
Rother District Council,31/03/2022,081ACQUISIT,"Acquisitions, Transformation and Regeneration",20153,"Elva Business Centre, Bexhill",D2513,Hired and Contracted services,15.62,Safe Water.io,Hired and contracted services - Legionella Sampling and Monitoring,2031818,202201
Rother District Council,31/03/2022,999NOREPORT,"Acquisitions, Transformation and Regeneration",70725,Capital - Blackfriars,D2513,Hired and Contracted services,"2,788.50",Bevan Brittan LLP,Hired and contracted services - Legal Advice,2032158,202201
Rother District Council,31/03/2022,071STRAT,Strategy and Planning,20246,Planning Applications,D2513,Hired and Contracted services,3.00,H M Land Registry,Hired and contracted services - Land Registry-Planning,2032961,202202
Rother District Council,31/03/2022,041ENVIRON,Environmental Services,20129,Community Safety - CCTV costs only,D2513,Hired and Contracted services,3.00,H M Land Registry,Hired and contracted services - Env H-Land Registry,2032961,202202
Rother District Council,31/03/2022,071STRAT,Strategy and Planning,20258,BC Dangerous Structures H+R Partnership,D2513,Hired and Contracted services,9.00,H M Land Registry,Hired and contracted services - Env H-Land Registry,2032961,202202
Rother District Council,31/03/2022,101RESOURCES,Resources,20216,Cost Of Collection,D2513,Hired and Contracted services,"9,665.30",DSI Billing Services Ltd,Hired and contracted services - DSI Billing Printing,2032077,202202
Rother District Council,31/03/2022,101RESOURCES,Resources,20216,Cost Of Collection,D2513,Hired and Contracted services,6.00,H M Land Registry,Hired and contracted services - Council Tax-Land Registry Enquiries,2032961,202202
Rother District Council,31/03/2022,041ENVIRON,Environmental Services,20129,Community Safety - CCTV costs only,D2513,Hired and Contracted services,"2,156.15",The Police and Crime Commissioner for Sussex,Hired and contracted services - CCTV System Maintenance,2031819,202201
Rother District Council,31/03/2022,041ENVIRON,Environmental Services,20129,Community Safety - CCTV costs only,D2513,Hired and Contracted services,674.35,The Police and Crime Commissioner for Sussex,Hired and contracted services - CCTV System Maintenance,2031820,202201
Rother District Council,31/03/2022,091HOUSING,Housing and Community Services,20137,Car Parks,D2513,Hired and Contracted services,"1,738.40",Jade Security Services Ltd,Hired and contracted services - Cash Security Fees-Car Parks,2031994,202201
Rother District Council,31/03/2022,101RESOURCES,Resources,20209,Corporate management,D2513,Hired and Contracted services,556.94,allpay.net Ltd,Hired and contracted services - Allpay Card/Rep/Let Chrg - Vatable,2033512,202203
Rother District Council,31/03/2022,101RESOURCES,Resources,20209,Corporate management,D2513,Hired and Contracted services,24.48,allpay.net Ltd,Hired and contracted services - Allpay Card/Rep/Let Chrg - Vatable,2033513,202203
Rother District Council,31/03/2022,101RESOURCES,Resources,20209,Corporate management,D2513,Hired and Contracted services,12.99,allpay.net Ltd,Hired and contracted services - Allpay Card/Rep/Let Chrg - Vatable,2033515,202203
Rother District Council,31/03/2022,101RESOURCES,Resources,20209,Corporate management,D2513,Hired and Contracted services,36.20,allpay.net Ltd,Hired and contracted services - Allpay Card/Rep/Let Chrg - Vatable,2033516,202203
Rother District Council,31/03/2022,091HOUSING,Housing and Community Services,20306,Afghan Relocation Assistance Policy,D2513,Hired and Contracted services,23.84,Migrant Help Trading Ltd t/a Clear Voice,Hired and contracted services - Afghan-Translation Services,2032161,202201
Rother District Council,31/03/2022,091HOUSING,Housing and Community Services,20109,Sports Development,D2923,Grants made,300.00,Sidley Cricket Club,Grants made - Sports Development Projects,2031867,202201
Rother District Council,31/03/2022,091HOUSING,Housing and Community Services,20109,Sports Development,D2923,Grants made,650.00,Sidley Cricket Club,Grants made - Active Sussex Project workforce dev.,2031867,202201
Rother District Council,31/03/2022,091HOUSING,Housing and Community Services,20145,Maintenance Services,C1104,Derv,3.80,Allstar Business Solutions,Derv - Fuel Service fee payable on fuel cards,2032902,202202
Rother District Council,31/03/2022,091HOUSING,Housing and Community Services,20108,Bexhill Promenade & Foreshore,B2611,Contract cleaning,126.00,Abacus Main Ltd,Contract cleaning - Office Cleaning,2032150,202201
Rother District Council,31/03/2022,031RESOURCES,Chief Executive & Corporate Core,20175,Administrative Offices - T.H. Annex (NOT CHP),B2611,Contract cleaning,380.00,Abacus Main Ltd,Contract cleaning - Office Cleaning,2032149,202201
Rother District Council,31/03/2022,081ACQUISIT,"Acquisitions, Transformation and Regeneration",20273,Environment Strategy,D2509,Consultants and Other Services,700.00,Sussex Wildlife Trust,Consultants and other services - Consultants Fees,2031956,202201
Rother District Council,31/03/2022,071STRAT,Strategy and Planning,20246,Planning Applications,D2509,Consultants and Other Services,250.00,Rural Planning Ltd,Consultants and other services - Consultants Fees,2031866,202201
Rother District Council,31/03/2022,999NOREPORT,Chief Executive & Corporate Core,70759,Capital - Town Hall Renaissance Project,N1004,Architects & Consultant Fees,"3,500.00",GTA Civils Ltd,Architects & Consultant Fees Capital-Architect and Conslt Fees,2031823,202201
Rother District Council,31/03/2022,999NOREPORT,Chief Executive & Corporate Core,70759,Capital - Town Hall Renaissance Project,N1004,Architects & Consultant Fees,"16,300.00",Austin-Smith:Lord Ltd,Architects & Consultant Fees Capital-Architect and Conslt Fees,2031835,202201
Rother District Council,31/03/2022,999NOREPORT,Chief Executive & Corporate Core,70759,Capital - Town Hall Renaissance Project,N1004,Architects & Consultant Fees,"7,200.00",Robinson Low Francis LLP,Architects & Consultant Fees Capital-Architect and Conslt Fees,2031868,202201
Rother District Council,31/03/2022,999NOREPORT,Chief Executive & Corporate Core,70759,Capital - Town Hall Renaissance Project,N1004,Architects & Consultant Fees,"1,050.00",Robinson Low Francis LLP,Architects & Consultant Fees Capital-Architect and Conslt Fees,2031869,202201
Rother District Council,31/03/2022,999NOREPORT,Chief Executive & Corporate Core,70759,Capital - Town Hall Renaissance Project,N1004,Architects & Consultant Fees,"1,592.00",Southern Testing Laboratories Limited,Architects & Consultant Fees Capital-Architect and Conslt Fees,2031910,202201
Rother District Council,31/03/2022,999NOREPORT,"Acquisitions, Transformation and Regeneration",70737,Capital � Barnhorn Green,N1004,Architects & Consultant Fees,"6,600.00",R H Partnership Architects Ltd,Architects & Consultant Fees Capital-Architect and Conslt Fees,2031955,202201
Rother District Council,31/03/2022,091HOUSING,Housing and Community Services,20200,Housing Needs - HB (Housing Benefit),D2514,Accommodation Costs,170.40,SDR Living Ltd,Accommodation Costs,2031833,202201
Rother District Council,31/03/2022,091HOUSING,Housing and Community Services,20200,Housing Needs - HB (Housing Benefit),D2514,Accommodation Costs,42.60,SDR Living Ltd,Accommodation Costs,2031833,202201
Rother District Council,31/03/2022,091HOUSING,Housing and Community Services,20200,Housing Needs - HB (Housing Benefit),D2514,Accommodation Costs,166.40,SDR Living Ltd,Accommodation Costs,2031833,202201
Rother District Council,31/03/2022,091HOUSING,Housing and Community Services,20200,Housing Needs - HB (Housing Benefit),D2514,Accommodation Costs,41.60,SDR Living Ltd,Accommodation Costs,2031833,202201
Rother District Council,31/03/2022,091HOUSING,Housing and Community Services,20200,Housing Needs - HB (Housing Benefit),D2514,Accommodation Costs,200.00,SDR Living Ltd,Accommodation Costs,2031833,202201
Rother District Council,31/03/2022,091HOUSING,Housing and Community Services,20200,Housing Needs - HB (Housing Benefit),D2514,Accommodation Costs,50.00,SDR Living Ltd,Accommodation Costs,2031833,202201
Rother District Council,31/03/2022,091HOUSING,Housing and Community Services,20200,Housing Needs - HB (Housing Benefit),D2514,Accommodation Costs,91.20,SDR Living Ltd,Accommodation Costs,2031833,202201
Rother District Council,31/03/2022,091HOUSING,Housing and Community Services,20200,Housing Needs - HB (Housing Benefit),D2514,Accommodation Costs,22.80,SDR Living Ltd,Accommodation Costs,2031833,202201
Rother District Council,31/03/2022,091HOUSING,Housing and Community Services,20200,Housing Needs - HB (Housing Benefit),D2514,Accommodation Costs,208.00,SDR Living Ltd,Accommodation Costs,2031833,202201
Rother District Council,31/03/2022,091HOUSING,Housing and Community Services,20200,Housing Needs - HB (Housing Benefit),D2514,Accommodation Costs,52.00,SDR Living Ltd,Accommodation Costs,2031833,202201
Rother District Council,31/03/2022,091HOUSING,Housing and Community Services,20200,Housing Needs - HB (Housing Benefit),D2514,Accommodation Costs,71.00,SDR Living Ltd,Accommodation Costs,2031833,202201
Rother District Council,31/03/2022,091HOUSING,Housing and Community Services,20200,Housing Needs - HB (Housing Benefit),D2514,Accommodation Costs,35.00,Town Taxis,Accommodation Costs,2031855,202201
Rother District Council,31/03/2022,091HOUSING,Housing and Community Services,20200,Housing Needs - HB (Housing Benefit),D2514,Accommodation Costs,35.00,Town Taxis,Accommodation Costs,2031855,202201
Rother District Council,31/03/2022,091HOUSING,Housing and Community Services,20200,Housing Needs - HB (Housing Benefit),D2513,Hired and Contracted services,21.50,247 Transport Solutions Ltd,Hired and Contracted services,2031857,202201
Rother District Council,31/03/2022,091HOUSING,Housing and Community Services,20200,Housing Needs - HB (Housing Benefit),D2513,Hired and Contracted services,34.10,247 Transport Solutions Ltd,Hired and Contracted services,2031857,202201
Rother District Council,31/03/2022,091HOUSING,Housing and Community Services,20200,Housing Needs - HB (Housing Benefit),D2513,Hired and Contracted services,28.50,247 Transport Solutions Ltd,Hired and Contracted services,2031857,202201
Rother District Council,31/03/2022,091HOUSING,Housing and Community Services,20200,Housing Needs - HB (Housing Benefit),D2513,Hired and Contracted services,59.50,247 Transport Solutions Ltd,Hired and Contracted services,2031857,202201
Rother District Council,31/03/2022,091HOUSING,Housing and Community Services,20200,Housing Needs - HB (Housing Benefit),D2513,Hired and Contracted services,80.10,247 Transport Solutions Ltd,Hired and Contracted services,2031857,202201
Rother District Council,31/03/2022,091HOUSING,Housing and Community Services,20200,Housing Needs - HB (Housing Benefit),D2513,Hired and Contracted services,12.78,247 Transport Solutions Ltd,Hired and Contracted services,2031857,202201
Rother District Council,31/03/2022,041ENVIRON,Environmental Services,32133,EH Food Hyg / Idc / Water Purity R + W Partnership,D2513,Hired and Contracted services,375.00,CEFAS,Hired and Contracted services,2031884,202201
Rother District Council,31/03/2022,091HOUSING,Housing and Community Services,20200,Housing Needs - HB (Housing Benefit),D2514,Accommodation Costs,434.00,Solutions Accommodation Providers Ltd,Accommodation Costs,2031915,202201
Rother District Council,31/03/2022,091HOUSING,Housing and Community Services,20200,Housing Needs - HB (Housing Benefit),D2514,Accommodation Costs,"1,736.00",Solutions Accommodation Providers Ltd,Accommodation Costs,2031915,202201
Rother District Council,31/03/2022,091HOUSING,Housing and Community Services,20200,Housing Needs - HB (Housing Benefit),D2514,Accommodation Costs,210.00,The Chatsworth Hotel,Accommodation Costs,2031954,202201
Rother District Council,31/03/2022,091HOUSING,Housing and Community Services,20200,Housing Needs - HB (Housing Benefit),D2513,Hired and Contracted services,"2,625.00",LHS Locata (Housing Services) Ltd,Hired and Contracted services,2031957,202201
Rother District Council,31/03/2022,041ENVIRON,Environmental Services,32136,EH Pest Control R + W Partnership,C1104,Derv,61.68,Allstar Business Solutions,Derv,2032902,202202
Rother District Council,31/03/2022,041ENVIRON,Environmental Services,32136,EH Pest Control R + W Partnership,C1104,Derv,62.50,Allstar Business Solutions,Derv,2032902,202202
Rother District Council,31/03/2022,041ENVIRON,Environmental Services,32136,EH Pest Control R + W Partnership,C1104,Derv,56.68,Allstar Business Solutions,Derv,2032902,202202
Rother District Council,31/03/2022,041ENVIRON,Environmental Services,32136,EH Pest Control R + W Partnership,C1104,Derv,5.70,Allstar Business Solutions,Derv,2032902,202202
Rother District Council,31/03/2022,091HOUSING,Housing and Community Services,20329,Rough Sleeping Initiative,D2514,Accommodation Costs,208.00,SDR Living Ltd,Accommodation Costs,2031833,202201
Rother District Council,31/03/2022,091HOUSING,Housing and Community Services,20329,Rough Sleeping Initiative,D2514,Accommodation Costs,52.00,SDR Living Ltd,Accommodation Costs,2031833,202201
Rother District Council,31/03/2022,091HOUSING,Housing and Community Services,20329,Rough Sleeping Initiative,D2514,Accommodation Costs,208.00,SDR Living Ltd,Accommodation Costs,2031833,202201
Rother District Council,31/03/2022,091HOUSING,Housing and Community Services,20329,Rough Sleeping Initiative,D2514,Accommodation Costs,52.00,SDR Living Ltd,Accommodation Costs,2031833,202201
Rother District Council,31/03/2022,091HOUSING,Housing and Community Services,20329,Rough Sleeping Initiative,D2514,Accommodation Costs,91.20,SDR Living Ltd,Accommodation Costs,2031833,202201
Rother District Council,31/03/2022,091HOUSING,Housing and Community Services,20329,Rough Sleeping Initiative,D2514,Accommodation Costs,22.80,SDR Living Ltd,Accommodation Costs,2031833,202201
Rother District Council,31/03/2022,091HOUSING,Housing and Community Services,20329,Rough Sleeping Initiative,D2514,Accommodation Costs,166.40,SDR Living Ltd,Accommodation Costs,2031833,202201
Rother District Council,31/03/2022,091HOUSING,Housing and Community Services,20329,Rough Sleeping Initiative,D2514,Accommodation Costs,41.60,SDR Living Ltd,Accommodation Costs,2031833,202201
Rother District Council,31/03/2022,091HOUSING,Housing and Community Services,20329,Rough Sleeping Initiative,D2514,Accommodation Costs,162.50,Town Taxis,Accommodation Costs,2031855,202201
Rother District Council,31/03/2022,091HOUSING,Housing and Community Services,20329,Rough Sleeping Initiative,D2513,Hired and Contracted services,31.80,247 Transport Solutions Ltd,Hired and Contracted services,2031857,202201
Rother District Council,31/03/2022,091HOUSING,Housing and Community Services,20329,Rough Sleeping Initiative,D2514,Accommodation Costs,341.00,Solutions Accommodation Providers Ltd,Accommodation Costs,2031916,202201
Rother District Council,31/03/2022,091HOUSING,Housing and Community Services,20329,Rough Sleeping Initiative,D2514,Accommodation Costs,"1,364.00",Solutions Accommodation Providers Ltd,Accommodation Costs,2031916,202201
Rother District Council,31/03/2022,091HOUSING,Housing and Community Services,20145,Maintenance Services,C1104,Derv,83.33,Allstar Business Solutions,Derv,2032902,202202
Rother District Council,31/03/2022,091HOUSING,Housing and Community Services,20145,Maintenance Services,C1104,Derv,103.70,Allstar Business Solutions,Derv,2032902,202202
Rother District Council,31/03/2022,091HOUSING,Housing and Community Services,20145,Maintenance Services,C1104,Derv,98.88,Allstar Business Solutions,Derv,2032902,202202
Rother District Council,31/03/2022,091HOUSING,Housing and Community Services,20145,Maintenance Services,C1103,Petrol,7.42,Allstar Business Solutions,Petrol,2032902,202202
Rother District Council,31/03/2022,091HOUSING,Housing and Community Services,20145,Maintenance Services,C1104,Derv,109.61,Allstar Business Solutions,Derv,2032902,202202
Rother District Council,01/04/2022,091HOUSING,Housing and Community Services,20125,Coast Protection,E2302,Third party payment private contractors,400.00,REDACTED PERSONAL DATA,Third party payment private contractors - Fairlight Compressor Maintenance Contract,2031838,202201
Rother District Council,01/04/2022,101RESOURCES,Resources,20242,Communications-Phones,D2621,Telephones,798.17,GCI National Business / Nasstar,Telephones - KCOM Smartnumber Charges,2031946,202201
Rother District Council,01/04/2022,101RESOURCES,Resources,20242,Communications-Phones,D2621,Telephones,"9,916.10",GCI National Business / Nasstar,Telephones - KCOM Smartnumber Charges,2031947,202201
Rother District Council,01/04/2022,101RESOURCES,Resources,20242,Communications-Phones,D2621,Telephones,26.00,GCI National Business / Nasstar,Telephones - KCOM Smartnumber Charges,2031948,202201
Rother District Council,01/04/2022,091HOUSING,Housing and Community Services,20107,Camber Beach & Foreshore,D2621,Telephones,52.95,Beaming Ltd,Telephones - Broadband Connection,2032897,202202
Rother District Council,01/04/2022,031RESOURCES,Chief Executive & Corporate Core,20171,Human Resources,D2922,Subscriptions,789.49,Croner-I,Subscriptions - Subscription to Organisations,2033121,202202
Rother District Council,01/04/2022,071STRAT,Strategy and Planning,20259,Land Charges,D2922,Subscriptions,130.00,Local Land Charges Institute,Subscriptions - Subscription to Organisations,2032143,202201
Rother District Council,01/04/2022,091HOUSING,Housing and Community Services,20123,Cemeteries,B1100,Repairs to Premises,5.44,Saint-Gobain Building Distribution Ltd t/a Jewson,Repairs to Premises - Purchase of Materials - Build Maint,2032538,202202
Rother District Council,01/04/2022,081ACQUISIT,"Acquisitions, Transformation and Regeneration",20151,Udimore Workshops,B2311,Rents and service charges,183.75,REDACTED PERSONAL DATA,Rents and Service charges - Part of Udimore unit3,2031976,202201
Rother District Council,01/04/2022,101RESOURCES,Resources,20240,Printing Services,D2638,Photocopier Contracts,371.49,Canon (UK) Ltd,Photocopier Contracts,2031836,202201
Rother District Council,01/04/2022,121PRECEPTS,Precepts,42203,Parish Precepts,F1201,Parish precepts,"6,500.00",Ashburnham and  Penhurst Parish Council,Parish precepts,2032314,202201
Rother District Council,01/04/2022,121PRECEPTS,Precepts,42203,Parish Precepts,F1201,Parish precepts,"193,925.00",Battle Town Council,Parish precepts,2032315,202201
Rother District Council,01/04/2022,121PRECEPTS,Precepts,42203,Parish Precepts,F1201,Parish precepts,"12,500.00",Beckley Parish Council,Parish precepts,2032316,202201
Rother District Council,01/04/2022,121PRECEPTS,Precepts,42203,Parish Precepts,F1201,Parish precepts,"5,490.00",Bodiam Parish Council,Parish precepts,2032317,202201
Rother District Council,01/04/2022,121PRECEPTS,Precepts,42203,Parish Precepts,F1201,Parish precepts,"3,869.50",Brightling Parish Council,Parish precepts,2032318,202201
Rother District Council,01/04/2022,121PRECEPTS,Precepts,42203,Parish Precepts,F1201,Parish precepts,"52,896.00",Burwash Parish Council,Parish precepts,2032319,202201
Rother District Council,01/04/2022,121PRECEPTS,Precepts,42203,Parish Precepts,F1201,Parish precepts,"31,749.00",Camber Parish Council,Parish precepts,2032320,202201
Rother District Council,01/04/2022,121PRECEPTS,Precepts,42203,Parish Precepts,F1201,Parish precepts,"14,567.12",Crowhurst Parish Council,Parish precepts,2032321,202201
Rother District Council,01/04/2022,121PRECEPTS,Precepts,42203,Parish Precepts,F1201,Parish precepts,"4,217.50",Dallington Parish Council,Parish precepts,2032323,202201
Rother District Council,01/04/2022,121PRECEPTS,Precepts,42203,Parish Precepts,F1201,Parish precepts,"6,550.00",Mountfield Parish Council,Parish precepts,2032325,202201
Rother District Council,01/04/2022,121PRECEPTS,Precepts,42203,Parish Precepts,F1201,Parish precepts,"50,000.00",Northiam Parish Council 1,Parish precepts,2032326,202201
Rother District Council,01/04/2022,121PRECEPTS,Precepts,42203,Parish Precepts,F1201,Parish precepts,"18,500.00",Peasmarsh Parish Council,Parish precepts,2032327,202201
Rother District Council,01/04/2022,121PRECEPTS,Precepts,42203,Parish Precepts,F1201,Parish precepts,"11,500.00",Pett Parish Council,Parish precepts,2032328,202201
Rother District Council,01/04/2022,121PRECEPTS,Precepts,42203,Parish Precepts,F1201,Parish precepts,"36,820.50",Ewhurst Parish Council,Parish precepts,2032329,202201
Rother District Council,01/04/2022,121PRECEPTS,Precepts,42203,Parish Precepts,F1201,Parish precepts,"4,590.00",Guestling Parish Council,Parish precepts,2032330,202201
Rother District Council,01/04/2022,121PRECEPTS,Precepts,42203,Parish Precepts,F1201,Parish precepts,"22,297.00",Hurst Green Parish Council,Parish precepts,2032331,202201
Rother District Council,01/04/2022,121PRECEPTS,Precepts,42203,Parish Precepts,F1201,Parish precepts,"78,794.00",Icklesham Parish Council,Parish precepts,2032332,202201
Rother District Council,01/04/2022,121PRECEPTS,Precepts,42203,Parish Precepts,F1201,Parish precepts,"8,000.00",Iden Parish Council,Parish precepts,2032333,202201
Rother District Council,01/04/2022,121PRECEPTS,Precepts,42203,Parish Precepts,F1201,Parish precepts,"2,500.00",Playden Parish Council,Parish precepts,2032334,202201
Rother District Council,01/04/2022,121PRECEPTS,Precepts,42203,Parish Precepts,F1201,Parish precepts,"1,000.00",Rye Foreign Parish Council,Parish precepts,2032335,202201
Rother District Council,01/04/2022,121PRECEPTS,Precepts,42203,Parish Precepts,F1201,Parish precepts,"94,296.00",Rye Town Council,Parish precepts,2032336,202201
Rother District Council,01/04/2022,121PRECEPTS,Precepts,42203,Parish Precepts,F1201,Parish precepts,"53,885.00",Salehurst and Robertsbridge Parish Council,Parish precepts,2032337,202201
Rother District Council,01/04/2022,121PRECEPTS,Precepts,42203,Parish Precepts,F1201,Parish precepts,"195,460.00",Bexhill Town Council,Parish precepts,2032338,202201
Rother District Council,01/04/2022,121PRECEPTS,Precepts,42203,Parish Precepts,F1201,Parish precepts,"19,470.00",Brede Parish Council,Parish precepts,2032339,202201
Rother District Council,01/04/2022,121PRECEPTS,Precepts,42203,Parish Precepts,F1201,Parish precepts,"15,000.00",Catsfield Parish Council,Parish precepts,2032340,202201
Rother District Council,01/04/2022,121PRECEPTS,Precepts,42203,Parish Precepts,F1201,Parish precepts,"35,750.00",Etchingham Parish Council,Parish precepts,2032341,202201
Rother District Council,01/04/2022,121PRECEPTS,Precepts,42203,Parish Precepts,F1201,Parish precepts,"35,000.00",Fairlight Parish Council,Parish precepts,2032342,202201
Rother District Council,01/04/2022,121PRECEPTS,Precepts,42203,Parish Precepts,F1201,Parish precepts,"29,306.50",Sedlescombe Parish Council,Parish precepts,2032343,202201
Rother District Council,01/04/2022,121PRECEPTS,Precepts,42203,Parish Precepts,F1201,Parish precepts,"73,775.00",Ticehurst Parish Council,Parish precepts,2032344,202201
Rother District Council,01/04/2022,121PRECEPTS,Precepts,42203,Parish Precepts,F1201,Parish precepts,"3,315.00",Udimore Parish Council,Parish precepts,2032346,202201
Rother District Council,01/04/2022,121PRECEPTS,Precepts,42203,Parish Precepts,F1201,Parish precepts,"49,832.50",Westfield Parish Council,Parish precepts,2032347,202201
Rother District Council,01/04/2022,121PRECEPTS,Precepts,42203,Parish Precepts,F1201,Parish precepts,"3,550.00",Whatlington Parish Council,Parish precepts,2032348,202201
Rother District Council,01/04/2022,101RESOURCES,Resources,20242,Communications-Phones,D2622,Mobile Phones,780.78,Telefonica UK Ltd,Mobile Phones - Purchase of mobile phones,2031874,202201
Rother District Council,01/04/2022,091HOUSING,Housing and Community Services,20123,Cemeteries,D2734,Members Training and Seminars,455.00,Institute of Cemetery and Crematorium  Management,Members Training and Seminars,2031882,202201
Rother District Council,01/04/2022,101RESOURCES,Resources,20239,Computer Services,D2631,Computer Equip Maintenance,"14,819.00",Centerprise International Limited,Insurance - Computer Equipment,2031845,202201
Rother District Council,01/04/2022,091HOUSING,Housing and Community Services,20206,UK Resettlement (Syrians),D2513,Hired and Contracted services,"1,085.15",REDACTED PERSONAL DATA,Hired and contracted services - Syrian-Education-Exempt VAT,2031906,202201
Rother District Council,01/04/2022,101RESOURCES,Resources,20209,Corporate management,D2513,Hired and Contracted services,20.09,Merchant Rentals Ltd,Hired and contracted services - Streamline Machine-Rental,2032926,202202
Rother District Council,01/04/2022,091HOUSING,Housing and Community Services,20108,Bexhill Promenade & Foreshore,D2513,Hired and Contracted services,100.00,Impact Scaffolding Ltd,Hired and contracted services - Service fee paid,2031812,202201
Rother District Council,01/04/2022,041ENVIRON,Environmental Services,32133,EH Food Hyg / Idc / Water Purity R + W Partnership,D2513,Hired and Contracted services,"1,100.00",Food Safety Guardians Ltd,Hired and contracted services - Service fee paid,2031850,202201
Rother District Council,01/04/2022,999NOREPORT,Housing and Community Services,70762,Capital - Bexhill Promenade Shelter One,D2513,Hired and Contracted services,100.00,Impact Scaffolding Ltd,Hired and contracted services - Service fee paid,2031811,202201
Rother District Council,01/04/2022,091HOUSING,Housing and Community Services,20114,Bexhill Parks & Open Spaces,D2513,Hired and Contracted services,"1,650.00",Asset Construction Consultants,Hired and contracted services - Parks-Consultants Fees,2031881,202201
Rother District Council,01/04/2022,091HOUSING,Housing and Community Services,20114,Bexhill Parks & Open Spaces,D2513,Hired and Contracted services,15.00,B.F.J. Engraving Ltd,Hired and contracted services - Delivery and/or Packaging of Equipm,2032148,202201
Rother District Council,01/04/2022,091HOUSING,Housing and Community Services,20114,Bexhill Parks & Open Spaces,D2513,Hired and Contracted services,8.00,B.F.J. Engraving Ltd,Hired and contracted services - Delivery and/or Packaging of Equipm,2032148,202201
Rother District Council,01/04/2022,101RESOURCES,Resources,20209,Corporate management,D2513,Hired and Contracted services,498.00,Her Majestys Court Service,Hired and contracted services - Court Costs/Fees,2032964,202202
Rother District Council,01/04/2022,101RESOURCES,Resources,20216,Cost Of Collection,D2513,Hired and Contracted services,3.00,H M Land Registry,Hired and contracted services - Council Tax-Land Registry Enquiries,2032960,202202
Rother District Council,01/04/2022,091HOUSING,Housing and Community Services,20137,Car Parks,D2513,Hired and Contracted services,"4,189.67",Park Now Ltd,Hired and contracted services - Car Parks-RingGo service charges,2032075,202201
Rother District Council,01/04/2022,091HOUSING,Housing and Community Services,20109,Sports Development,D2923,Grants made,120.00,Bexhill Breathers,Grants made - Sports Development Projects,2031846,202201
Rother District Council,01/04/2022,101RESOURCES,Resources,20219,Support To Elect Bodies/Grant,D2923,Grants made,"9,500.00",Rother Voluntary Action,Grants made - SLA Contribution,2031822,202201
Rother District Council,01/04/2022,081ACQUISIT,"Acquisitions, Transformation and Regeneration",20118,Tourism,D2923,Grants made,"2,500.00",Rye International Jazz Festival,Grants made - SLA Contribution,2032103,202201
Rother District Council,01/04/2022,081ACQUISIT,"Acquisitions, Transformation and Regeneration",20103,De La Warr Pav-Client,D2923,Grants made,"119,250.00",De La Warr Pavilion Charitable Trust,Grants made - Revenue Grants,2032976,202202
Rother District Council,01/04/2022,101RESOURCES,Resources,20219,Support To Elect Bodies/Grant,D2923,Grants made,"21,250.00",Rother District Citizens Advice Bureau,Grants made - Bexhill and Rother CAB,2031975,202201
Rother District Council,01/04/2022,091HOUSING,Housing and Community Services,20123,Cemeteries,D1201,Equipment & Materials,492.00,B.F.J. Engraving Ltd,Equipment & Materials - Parks Purchase of Seats/ Benches/Plaques,2032146,202201
Rother District Council,01/04/2022,091HOUSING,Housing and Community Services,20114,Bexhill Parks & Open Spaces,D1201,Equipment & Materials,120.00,B.F.J. Engraving Ltd,Equipment & Materials - Parks Purchase of Seats/ Benches/Plaques,2032148,202201
Rother District Council,01/04/2022,091HOUSING,Housing and Community Services,20114,Bexhill Parks & Open Spaces,D1201,Equipment & Materials,55.00,B.F.J. Engraving Ltd,Equipment & Materials - Parks Purchase of Seats/ Benches/Plaques,2032148,202201
Rother District Council,01/04/2022,081ACQUISIT,"Acquisitions, Transformation and Regeneration",20267,Property Investment Strategy - 18-40 Beeching Road ( Land and Buildings),B2201,Electricity,97.08,E.ON,Electricity - Electricity Charges,2032140,202201
Rother District Council,01/04/2022,101RESOURCES,Resources,20229,Internal Drainage Boards,F1202,Drainage board levies,"68,909.50",Romney Marshes Area Internal Drainage Board,Drainage board levies - Romney Marsh Area Internal Drainage,2032975,202202
Rother District Council,01/04/2022,091HOUSING,Housing and Community Services,20128,Public Conveniences,B2611,Contract cleaning,572.25,Specialist Hygiene Services Ltd,Contract cleaning - Public Conveniences Cleaning Servic,2031964,202201
Rother District Council,01/04/2022,091HOUSING,Housing and Community Services,20128,Public Conveniences,B2611,Contract cleaning,846.92,Specialist Hygiene Services Ltd,Contract cleaning - Public Conveniences Cleaning Servic,2031964,202201
Rother District Council,01/04/2022,091HOUSING,Housing and Community Services,20128,Public Conveniences,B2611,Contract cleaning,749.14,Specialist Hygiene Services Ltd,Contract cleaning - Public Conveniences Cleaning Servic,2031964,202201
Rother District Council,01/04/2022,091HOUSING,Housing and Community Services,20128,Public Conveniences,B2611,Contract cleaning,197.66,Specialist Hygiene Services Ltd,Contract cleaning - Public Conveniences Cleaning Servic,2031964,202201
Rother District Council,01/04/2022,091HOUSING,Housing and Community Services,20128,Public Conveniences,B2611,Contract cleaning,705.72,Specialist Hygiene Services Ltd,Contract cleaning - Public Conveniences Cleaning Servic,2031964,202201
Rother District Council,01/04/2022,091HOUSING,Housing and Community Services,20128,Public Conveniences,B2611,Contract cleaning,508.15,Specialist Hygiene Services Ltd,Contract cleaning - Public Conveniences Cleaning Servic,2031964,202201
Rother District Council,01/04/2022,091HOUSING,Housing and Community Services,20128,Public Conveniences,B2611,Contract cleaning,846.92,Specialist Hygiene Services Ltd,Contract cleaning - Public Conveniences Cleaning Servic,2031964,202201
Rother District Council,01/04/2022,091HOUSING,Housing and Community Services,20128,Public Conveniences,B2611,Contract cleaning,508.15,Specialist Hygiene Services Ltd,Contract cleaning - Public Conveniences Cleaning Servic,2031964,202201
Rother District Council,01/04/2022,091HOUSING,Housing and Community Services,20128,Public Conveniences,B2611,Contract cleaning,620.99,Specialist Hygiene Services Ltd,Contract cleaning - Public Conveniences Cleaning Servic,2031964,202201
Rother District Council,01/04/2022,091HOUSING,Housing and Community Services,20128,Public Conveniences,B2611,Contract cleaning,282.30,Specialist Hygiene Services Ltd,Contract cleaning - Public Conveniences Cleaning Servic,2031964,202201
Rother District Council,01/04/2022,091HOUSING,Housing and Community Services,20128,Public Conveniences,B2611,Contract cleaning,338.77,Specialist Hygiene Services Ltd,Contract cleaning - Public Conveniences Cleaning Servic,2031964,202201
Rother District Council,01/04/2022,091HOUSING,Housing and Community Services,20128,Public Conveniences,B2611,Contract cleaning,592.80,Specialist Hygiene Services Ltd,Contract cleaning - Public Conveniences Cleaning Servic,2031964,202201
Rother District Council,01/04/2022,091HOUSING,Housing and Community Services,20128,Public Conveniences,B2611,Contract cleaning,536.34,Specialist Hygiene Services Ltd,Contract cleaning - Public Conveniences Cleaning Servic,2031964,202201
Rother District Council,01/04/2022,091HOUSING,Housing and Community Services,20128,Public Conveniences,B2611,Contract cleaning,254.04,Specialist Hygiene Services Ltd,Contract cleaning - Public Conveniences Cleaning Servic,2031964,202201
Rother District Council,01/04/2022,091HOUSING,Housing and Community Services,20128,Public Conveniences,B2611,Contract cleaning,564.53,Specialist Hygiene Services Ltd,Contract cleaning - Public Conveniences Cleaning Servic,2031964,202201
Rother District Council,01/04/2022,091HOUSING,Housing and Community Services,20128,Public Conveniences,B2611,Contract cleaning,310.49,Specialist Hygiene Services Ltd,Contract cleaning - Public Conveniences Cleaning Servic,2031964,202201
Rother District Council,01/04/2022,091HOUSING,Housing and Community Services,20128,Public Conveniences,B2611,Contract cleaning,508.15,Specialist Hygiene Services Ltd,Contract cleaning - Public Conveniences Cleaning Servic,2031964,202201
Rother District Council,01/04/2022,091HOUSING,Housing and Community Services,20128,Public Conveniences,B2611,Contract cleaning,748.62,Specialist Hygiene Services Ltd,Contract cleaning - Public Conveniences Cleaning Servic,2031964,202201
Rother District Council,01/04/2022,091HOUSING,Housing and Community Services,20128,Public Conveniences,B2611,Contract cleaning,"1,225.44",Specialist Hygiene Services Ltd,Contract cleaning - Public Conveniences Cleaning Servic,2031964,202201
Rother District Council,01/04/2022,091HOUSING,Housing and Community Services,20128,Public Conveniences,B2611,Contract cleaning,476.73,Specialist Hygiene Services Ltd,Contract cleaning - Public Conveniences Cleaning Servic,2031964,202201
Rother District Council,01/04/2022,091HOUSING,Housing and Community Services,20128,Public Conveniences,B2611,Contract cleaning,935.68,Specialist Hygiene Services Ltd,Contract cleaning - Public Conveniences Cleaning Servic,2031964,202201
Rother District Council,01/04/2022,091HOUSING,Housing and Community Services,20128,Public Conveniences,B2611,Contract cleaning,"1,241.33",Specialist Hygiene Services Ltd,Contract cleaning - Public Conveniences Cleaning Servic,2031964,202201
Rother District Council,01/04/2022,091HOUSING,Housing and Community Services,20128,Public Conveniences,B2611,Contract cleaning,"1,241.33",Specialist Hygiene Services Ltd,Contract cleaning - Public Conveniences Cleaning Servic,2031964,202201
Rother District Council,01/04/2022,091HOUSING,Housing and Community Services,20128,Public Conveniences,B2611,Contract cleaning,"1,765.33",Specialist Hygiene Services Ltd,Contract cleaning - Public Conveniences Cleaning Servic,2031964,202201
Rother District Council,01/04/2022,091HOUSING,Housing and Community Services,20128,Public Conveniences,B2611,Contract cleaning,293.07,Specialist Hygiene Services Ltd,Contract cleaning - Public Conveniences Cleaning Servic,2031964,202201
Rother District Council,01/04/2022,091HOUSING,Housing and Community Services,20128,Public Conveniences,B2611,Contract cleaning,390.85,Specialist Hygiene Services Ltd,Contract cleaning - Public Conveniences Cleaning Servic,2031964,202201
Rother District Council,01/04/2022,091HOUSING,Housing and Community Services,20128,Public Conveniences,B2611,Contract cleaning,326.58,Specialist Hygiene Services Ltd,Contract cleaning - Public Conveniences Cleaning Servic,2031964,202201
Rother District Council,01/04/2022,091HOUSING,Housing and Community Services,20128,Public Conveniences,B2611,Contract cleaning,358.29,Specialist Hygiene Services Ltd,Contract cleaning - Public Conveniences Cleaning Servic,2031964,202201
Rother District Council,01/04/2022,091HOUSING,Housing and Community Services,20128,Public Conveniences,B2611,Contract cleaning,390.85,Specialist Hygiene Services Ltd,Contract cleaning - Public Conveniences Cleaning Servic,2031964,202201
Rother District Council,01/04/2022,091HOUSING,Housing and Community Services,20128,Public Conveniences,B2611,Contract cleaning,293.07,Specialist Hygiene Services Ltd,Contract cleaning - Public Conveniences Cleaning Servic,2031964,202201
Rother District Council,01/04/2022,101RESOURCES,Resources,20222,Accountancy,D2636,Computer Software,708.34,Integra Associates Ltd,Computer Software - charged to departments,2032101,202201
Rother District Council,01/04/2022,101RESOURCES,Resources,20222,Accountancy,D2636,Computer Software,"1,253.49",Integra Associates Ltd,Computer Software - charged to departments,2032106,202201
Rother District Council,01/04/2022,101RESOURCES,Resources,20239,Computer Services,D2635,Computer Licences,"44,893.36",GGP Systems Ltd,Computer Licences - GIS System,2032398,202201
Rother District Council,01/04/2022,999NOREPORT,"Acquisitions, Transformation and Regeneration",70702,Capital - De La Warr Pavillion - Capital Grant,N1011,Capital Grants,"14,424.25",De La Warr Pavilion Charitable Trust,Capital Grants - Community Grants Scheme,2032976,202202
Rother District Council,01/04/2022,031RESOURCES,Chief Executive & Corporate Core,20162,Electoral Registration,D1203,Books And Publications,314.00,Thomson Reuters Ltd,Books And Publications - Miscellaneous Legal Reference Books,2031861,202201
Rother District Council,01/04/2022,101RESOURCES,Resources,20209,Corporate management,D2513,Hired and Contracted services,20.00,Lloyds Bank,Bank Charges,2032907,202202
Rother District Council,01/04/2022,101RESOURCES,Resources,20209,Corporate management,D2513,Hired and Contracted services,20.00,Lloyds Bank,Bank Charges,2032908,202202
Rother District Council,01/04/2022,101RESOURCES,Resources,20209,Corporate management,D2513,Hired and Contracted services,41.32,Lloyds Bank,Bank Charges,2032909,202202
Rother District Council,01/04/2022,101RESOURCES,Resources,20209,Corporate management,D2513,Hired and Contracted services,583.42,Lloyds Bank,Bank Charges,2032910,202202
Rother District Council,01/04/2022,101RESOURCES,Resources,20209,Corporate management,D2513,Hired and Contracted services,20.00,Lloyds Bank,Bank Charges,2032911,202202
Rother District Council,01/04/2022,101RESOURCES,Resources,20209,Corporate management,D2513,Hired and Contracted services,"2,082.41",Lloyds Bank,Bank Charges,2032912,202202
Rother District Council,01/04/2022,101RESOURCES,Resources,20209,Corporate management,D2513,Hired and Contracted services,20.00,Lloyds Bank,Bank Charges,2032913,202202
Rother District Council,01/04/2022,101RESOURCES,Resources,20209,Corporate management,D2513,Hired and Contracted services,20.00,Lloyds Bank,Bank Charges,2032914,202202
Rother District Council,01/04/2022,101RESOURCES,Resources,20209,Corporate management,D2513,Hired and Contracted services,"1,087.33",Lloyds Bank,Bank Charges,2032915,202202
Rother District Council,01/04/2022,101RESOURCES,Resources,20209,Corporate management,D2513,Hired and Contracted services,20.00,Lloyds Bank,Bank Charges,2032916,202202
Rother District Council,01/04/2022,101RESOURCES,Resources,20209,Corporate management,D2513,Hired and Contracted services,20.02,Lloyds Bank,Bank Charges,2033526,202203
Rother District Council,01/04/2022,101RESOURCES,Resources,20209,Corporate management,D2513,Hired and Contracted services,25.02,Lloyds Bank,Bank Charges,2033527,202203
Rother District Council,01/04/2022,091HOUSING,Housing and Community Services,20200,Housing Needs - HB (Housing Benefit),D2514,Accommodation Costs,"8,333.33",Paramount Independent Property Services LLP,Accommodation Costs - Homelessness services Temp Accom - No VAT,2031908,202201
Rother District Council,01/04/2022,091HOUSING,Housing and Community Services,20309,Homelessness Prevention Grant,D2514,Accommodation Costs,625.00,South East Coast Property Ltd,Accommodation Costs - Homelessness services Housing Landlord Scheme-Rent payment,2032155,202201
Rother District Council,01/04/2022,091HOUSING,Housing and Community Services,20102,Rother Museum Services,D2621,Telephones,19.48,Daisy Communications PLC,Telephones,2031920,202201
Rother District Council,01/04/2022,091HOUSING,Housing and Community Services,20107,Camber Beach & Foreshore,D2621,Telephones,38.96,Daisy Communications PLC,Telephones,2031920,202201
Rother District Council,01/04/2022,091HOUSING,Housing and Community Services,20200,Housing Needs - HB (Housing Benefit),D2514,Accommodation Costs,332.50,Lillybank Homes Ltd,Accommodation Costs,2031847,202201
Rother District Council,01/04/2022,091HOUSING,Housing and Community Services,20200,Housing Needs - HB (Housing Benefit),D2514,Accommodation Costs,367.50,Lillybank Homes Ltd,Accommodation Costs,2031847,202201
Rother District Council,01/04/2022,091HOUSING,Housing and Community Services,20200,Housing Needs - HB (Housing Benefit),D2514,Accommodation Costs,455.00,Lillybank Homes Ltd,Accommodation Costs,2031847,202201
Rother District Council,01/04/2022,091HOUSING,Housing and Community Services,20200,Housing Needs - HB (Housing Benefit),D2514,Accommodation Costs,455.00,Lillybank Homes Ltd,Accommodation Costs,2031847,202201
Rother District Council,01/04/2022,091HOUSING,Housing and Community Services,20200,Housing Needs - HB (Housing Benefit),D2514,Accommodation Costs,413.00,Lillybank Homes Ltd,Accommodation Costs,2031847,202201
Rother District Council,01/04/2022,091HOUSING,Housing and Community Services,20200,Housing Needs - HB (Housing Benefit),D2514,Accommodation Costs,507.50,Lillybank Homes Ltd,Accommodation Costs,2031847,202201
Rother District Council,01/04/2022,091HOUSING,Housing and Community Services,20200,Housing Needs - HB (Housing Benefit),D2514,Accommodation Costs,480.00,Lillybank Homes Ltd,Accommodation Costs,2031847,202201
Rother District Council,01/04/2022,091HOUSING,Housing and Community Services,20200,Housing Needs - HB (Housing Benefit),D2514,Accommodation Costs,480.00,Lillybank Homes Ltd,Accommodation Costs,2031847,202201
Rother District Council,01/04/2022,091HOUSING,Housing and Community Services,20200,Housing Needs - HB (Housing Benefit),D2514,Accommodation Costs,480.00,Lillybank Homes Ltd,Accommodation Costs,2031847,202201
Rother District Council,01/04/2022,091HOUSING,Housing and Community Services,20200,Housing Needs - HB (Housing Benefit),D2514,Accommodation Costs,480.00,Lillybank Homes Ltd,Accommodation Costs,2031847,202201
Rother District Council,01/04/2022,091HOUSING,Housing and Community Services,20200,Housing Needs - HB (Housing Benefit),D2514,Accommodation Costs,455.00,Lillybank Homes Ltd,Accommodation Costs,2031847,202201
Rother District Council,01/04/2022,091HOUSING,Housing and Community Services,20200,Housing Needs - HB (Housing Benefit),D2514,Accommodation Costs,25.00,Lillybank Homes Ltd,Accommodation Costs,2031847,202201
Rother District Council,01/04/2022,091HOUSING,Housing and Community Services,20200,Housing Needs - HB (Housing Benefit),D2514,Accommodation Costs,25.00,Lillybank Homes Ltd,Accommodation Costs,2031847,202201
Rother District Council,01/04/2022,091HOUSING,Housing and Community Services,20200,Housing Needs - HB (Housing Benefit),D2514,Accommodation Costs,"2,015.00",Paramount Independent Property Services LLP,Accommodation Costs,2031854,202201
Rother District Council,01/04/2022,091HOUSING,Housing and Community Services,20200,Housing Needs - HB (Housing Benefit),D2514,Accommodation Costs,"1,178.00",Paramount Independent Property Services LLP,Accommodation Costs,2031854,202201
Rother District Council,01/04/2022,091HOUSING,Housing and Community Services,20200,Housing Needs - HB (Housing Benefit),D2514,Accommodation Costs,"2,015.00",Paramount Independent Property Services LLP,Accommodation Costs,2031854,202201
Rother District Council,01/04/2022,091HOUSING,Housing and Community Services,20200,Housing Needs - HB (Housing Benefit),D2514,Accommodation Costs,"1,705.00",Paramount Independent Property Services LLP,Accommodation Costs,2031854,202201
Rother District Council,01/04/2022,091HOUSING,Housing and Community Services,20200,Housing Needs - HB (Housing Benefit),D2514,Accommodation Costs,608.00,Paramount Independent Property Services LLP,Accommodation Costs,2031854,202201
Rother District Council,01/04/2022,031RESOURCES,Chief Executive & Corporate Core,20180,Emergency Planning,D2621,Telephones,19.48,Daisy Communications PLC,Telephones,2031920,202201
Rother District Council,01/04/2022,041ENVIRON,Environmental Services,32134,EH Pollution R + W Partnership,D2621,Telephones,19.48,Daisy Communications PLC,Telephones,2031920,202201
Rother District Council,01/04/2022,091HOUSING,Housing and Community Services,20200,Housing Needs - HB (Housing Benefit),D2508,Removals and Storage,252.00,Movers of Sussex LTD,Removals and Storage,2031929,202201
Rother District Council,01/04/2022,091HOUSING,Housing and Community Services,20329,Rough Sleeping Initiative,D2514,Accommodation Costs,413.00,Lillybank Homes Ltd,Accommodation Costs,2031847,202201
Rother District Council,01/04/2022,091HOUSING,Housing and Community Services,20329,Rough Sleeping Initiative,D2514,Accommodation Costs,"1,426.00",Paramount Independent Property Services LLP,Accommodation Costs,2031854,202201
Rother District Council,01/04/2022,091HOUSING,Housing and Community Services,20329,Rough Sleeping Initiative,D2514,Accommodation Costs,33.00,Paramount Independent Property Services LLP,Accommodation Costs,2031854,202201
Rother District Council,01/04/2022,091HOUSING,Housing and Community Services,20329,Rough Sleeping Initiative,D2514,Accommodation Costs,231.00,Paramount Independent Property Services LLP,Accommodation Costs,2031854,202201
Rother District Council,01/04/2022,101RESOURCES,Resources,20242,Communications-Phones,D2621,Telephones,97.37,Daisy Communications PLC,Telephones,2031920,202201
Rother District Council,01/04/2022,101RESOURCES,Resources,20239,Computer Services,D2621,Telephones,38.96,Daisy Communications PLC,Telephones,2031920,202201
Rother District Council,02/04/2022,101RESOURCES,Resources,20242,Communications-Phones,D2621,Telephones,25.72,TalkTalk Communications Ltd T/A TalkTalk Business,Telephones - Leased Line Rental,2032972,202203
Rother District Council,02/04/2022,071STRAT,Strategy and Planning,20246,Planning Applications,D2509,Consultants and Other Services,278.80,Curley Consultants,Consultants and other services - Consultants Fees,2032237,202201
Rother District Council,02/04/2022,101RESOURCES,Resources,20239,Computer Services,D2633,Computer Equipment,1.44,Amazon Web Services EMEA SARL,Computer Equipment - Maint Web Content Mngmnt Sys,2033522,202203
Rother District Council,02/04/2022,101RESOURCES,Resources,20239,Computer Services,D2633,Computer Equipment,12.01,Amazon Web Services EMEA SARL,Computer Equipment - Maint Web Content Mngmnt Sys,2033522,202203
Rother District Council,02/04/2022,091HOUSING,Housing and Community Services,20200,Housing Needs - HB (Housing Benefit),D2514,Accommodation Costs,350.00,A A H Yahya T/A TAP Temporary Accommodation Providers Ltd,Accommodation Costs,2031862,202201
Rother District Council,02/04/2022,091HOUSING,Housing and Community Services,20200,Housing Needs - HB (Housing Benefit),D2514,Accommodation Costs,385.00,A A H Yahya T/A TAP Temporary Accommodation Providers Ltd,Accommodation Costs,2031862,202201
Rother District Council,02/04/2022,091HOUSING,Housing and Community Services,20200,Housing Needs - HB (Housing Benefit),D2514,Accommodation Costs,350.00,A A H Yahya T/A TAP Temporary Accommodation Providers Ltd,Accommodation Costs,2031862,202201
Rother District Council,02/04/2022,091HOUSING,Housing and Community Services,20329,Rough Sleeping Initiative,D2514,Accommodation Costs,385.00,A A H Yahya T/A TAP Temporary Accommodation Providers Ltd,Accommodation Costs,2031862,202201
Rother District Council,02/04/2022,091HOUSING,Housing and Community Services,20329,Rough Sleeping Initiative,D2514,Accommodation Costs,385.00,A A H Yahya T/A TAP Temporary Accommodation Providers Ltd,Accommodation Costs,2031862,202201
Rother District Council,04/04/2022,091HOUSING,Housing and Community Services,20114,Bexhill Parks & Open Spaces,B2421,Water,31.95,Castle Water Ltd,Water - Water Charges,2031941,202201
Rother District Council,04/04/2022,091HOUSING,Housing and Community Services,20114,Bexhill Parks & Open Spaces,B2421,Water,31.95,Castle Water Ltd,Water - Water Charges,2031944,202201
Rother District Council,04/04/2022,081ACQUISIT,"Acquisitions, Transformation and Regeneration",20267,Property Investment Strategy - 18-40 Beeching Road ( Land and Buildings),B2421,Water,34.03,Castle Water Ltd,Water - Water Charges,2031943,202201
Rother District Council,04/04/2022,091HOUSING,Housing and Community Services,20128,Public Conveniences,B1100,Repairs to Premises,99.81,Trade UK Account (Screwfix & B&Q),Repairs to Premises - Purchase of Materials - Build Maint,2031931,202201
Rother District Council,04/04/2022,091HOUSING,Housing and Community Services,20137,Car Parks,B1100,Repairs to Premises,91.09,Saint-Gobain Building Distribution Ltd t/a Jewson,Repairs to Premises - Purchase of Materials - Build Maint,2032542,202202
Rother District Council,04/04/2022,091HOUSING,Housing and Community Services,20128,Public Conveniences,B1100,Repairs to Premises,73.52,Saint-Gobain Building Distribution Ltd t/a Jewson,Repairs to Premises - Purchase of Materials - Build Maint,2032544,202202
Rother District Council,04/04/2022,041ENVIRON,Environmental Services,32144,EH Environmental Services Admin R + W Partnership,A2202,Recruitment expenses,800.00,CIEH-Chartered Institute of Environmental Health,Recruitment expenses Advertising Vacant Post,2031918,202201
Rother District Council,04/04/2022,031RESOURCES,Chief Executive & Corporate Core,20162,Electoral Registration,D2626,Postages,209.28,Royal Mail Group Ltd,Postages - Response Service-Royal Mail Chg,2032179,202201
Rother District Council,04/04/2022,101RESOURCES,Resources,20216,Cost Of Collection,D2513,Hired and Contracted services,"21,960.87",DSI Billing Services Ltd,Postages - DSI Billing,2032078,202202
Rother District Council,04/04/2022,101RESOURCES,Resources,20212,Risk Management/Insurance,D2520,Insurance,"9,975.00",Marsh Ltd,Insurance - Terrorism,2031877,202201
Rother District Council,04/04/2022,091HOUSING,Housing and Community Services,20261,"TA Purchases (prev - 41 Jameson Mews, Bexhill on Sea)",B2202,Gas,833.93,British Gas Business (600 Accounts only),Gas - Gas Charges,2031971,202201
Rother District Council,04/04/2022,091HOUSING,Housing and Community Services,20261,"TA Purchases (prev - 41 Jameson Mews, Bexhill on Sea)",B2202,Gas,200.17,British Gas Trading Ltd (Residential),Gas - Gas Charges,2032137,202201
Rother District Council,04/04/2022,091HOUSING,Housing and Community Services,20261,"TA Purchases (prev - 41 Jameson Mews, Bexhill on Sea)",B2202,Gas,55.88,British Gas Business (600 Accounts only),Gas - Gas Charges,2032246,202201
Rother District Council,04/04/2022,101RESOURCES,Resources,20222,Accountancy,D2509,Consultants and Other Services,"3,500.00",Number 10 Interim Ltd,Consultants and other services - Consultants Fees,2031962,202201
Rother District Council,04/04/2022,091HOUSING,Housing and Community Services,20145,Maintenance Services,D2352,Clothing and Uniforms,13.29,Trade UK Account (Screwfix & B&Q),Clothing and Uniforms - Mens Protective-Other,2031930,202201
Rother District Council,04/04/2022,101RESOURCES,Resources,20209,Corporate management,D2513,Hired and Contracted services,160.02,Capita Business Services Ltd,Bank Charges,2032904,202202
Rother District Council,04/04/2022,091HOUSING,Housing and Community Services,20200,Housing Needs - HB (Housing Benefit),D2514,Accommodation Costs,415.00,Lets 2 Share Limited,Accommodation Costs,2031790,202201
Rother District Council,04/04/2022,091HOUSING,Housing and Community Services,20200,Housing Needs - HB (Housing Benefit),D2514,Accommodation Costs,415.00,Lets 2 Share Limited,Accommodation Costs,2031790,202201
Rother District Council,04/04/2022,091HOUSING,Housing and Community Services,20200,Housing Needs - HB (Housing Benefit),D2514,Accommodation Costs,415.00,Lets 2 Share Limited,Accommodation Costs,2031790,202201
Rother District Council,04/04/2022,091HOUSING,Housing and Community Services,20200,Housing Needs - HB (Housing Benefit),D2514,Accommodation Costs,415.00,Lets 2 Share Limited,Accommodation Costs,2031790,202201
Rother District Council,04/04/2022,091HOUSING,Housing and Community Services,20200,Housing Needs - HB (Housing Benefit),D2514,Accommodation Costs,390.00,Coast Holiday Lettings Ltd,Accommodation Costs,2031827,202201
Rother District Council,04/04/2022,091HOUSING,Housing and Community Services,20200,Housing Needs - HB (Housing Benefit),D2514,Accommodation Costs,390.00,Coast Holiday Lettings Ltd,Accommodation Costs,2031827,202201
Rother District Council,04/04/2022,091HOUSING,Housing and Community Services,20200,Housing Needs - HB (Housing Benefit),D2514,Accommodation Costs,415.00,47-48 Havelock Road Ltd,Accommodation Costs,2031829,202201
Rother District Council,04/04/2022,091HOUSING,Housing and Community Services,20200,Housing Needs - HB (Housing Benefit),D2514,Accommodation Costs,124.80,SDR Living Ltd,Accommodation Costs,2031834,202201
Rother District Council,04/04/2022,091HOUSING,Housing and Community Services,20200,Housing Needs - HB (Housing Benefit),D2514,Accommodation Costs,31.20,SDR Living Ltd,Accommodation Costs,2031834,202201
Rother District Council,04/04/2022,091HOUSING,Housing and Community Services,20200,Housing Needs - HB (Housing Benefit),D2514,Accommodation Costs,213.00,SDR Living Ltd,Accommodation Costs,2031834,202201
Rother District Council,04/04/2022,091HOUSING,Housing and Community Services,20200,Housing Needs - HB (Housing Benefit),D2514,Accommodation Costs,150.00,SDR Living Ltd,Accommodation Costs,2031834,202201
Rother District Council,04/04/2022,091HOUSING,Housing and Community Services,20200,Housing Needs - HB (Housing Benefit),D2514,Accommodation Costs,37.50,SDR Living Ltd,Accommodation Costs,2031834,202201
Rother District Council,04/04/2022,091HOUSING,Housing and Community Services,20200,Housing Needs - HB (Housing Benefit),D2514,Accommodation Costs,68.40,SDR Living Ltd,Accommodation Costs,2031834,202201
Rother District Council,04/04/2022,091HOUSING,Housing and Community Services,20200,Housing Needs - HB (Housing Benefit),D2514,Accommodation Costs,17.10,SDR Living Ltd,Accommodation Costs,2031834,202201
Rother District Council,04/04/2022,091HOUSING,Housing and Community Services,20200,Housing Needs - HB (Housing Benefit),D2514,Accommodation Costs,156.00,SDR Living Ltd,Accommodation Costs,2031834,202201
Rother District Council,04/04/2022,091HOUSING,Housing and Community Services,20200,Housing Needs - HB (Housing Benefit),D2514,Accommodation Costs,39.00,SDR Living Ltd,Accommodation Costs,2031834,202201
Rother District Council,04/04/2022,091HOUSING,Housing and Community Services,20200,Housing Needs - HB (Housing Benefit),D2514,Accommodation Costs,285.71,Dale Saunders (Holdings) Ltd,Accommodation Costs,2031873,202201
Rother District Council,04/04/2022,091HOUSING,Housing and Community Services,20200,Housing Needs - HB (Housing Benefit),D2514,Accommodation Costs,400.00,Dale Saunders (Holdings) Ltd,Accommodation Costs,2031873,202201
Rother District Council,04/04/2022,091HOUSING,Housing and Community Services,20200,Housing Needs - HB (Housing Benefit),D2514,Accommodation Costs,400.00,Dale Saunders (Holdings) Ltd,Accommodation Costs,2031873,202201
Rother District Council,04/04/2022,091HOUSING,Housing and Community Services,20200,Housing Needs - HB (Housing Benefit),D2514,Accommodation Costs,400.00,Dale Saunders (Holdings) Ltd,Accommodation Costs,2031873,202201
Rother District Council,04/04/2022,091HOUSING,Housing and Community Services,20200,Housing Needs - HB (Housing Benefit),D2514,Accommodation Costs,364.00,Savoy Court Hotel Ltd,Accommodation Costs,2031907,202201
Rother District Council,04/04/2022,091HOUSING,Housing and Community Services,20200,Housing Needs - HB (Housing Benefit),D2514,Accommodation Costs,91.00,Savoy Court Hotel Ltd,Accommodation Costs,2031907,202201
Rother District Council,04/04/2022,091HOUSING,Housing and Community Services,20200,Housing Needs - HB (Housing Benefit),D2514,Accommodation Costs,315.00,Savoy Court Hotel Ltd,Accommodation Costs,2031907,202201
Rother District Council,04/04/2022,091HOUSING,Housing and Community Services,20200,Housing Needs - HB (Housing Benefit),D2514,Accommodation Costs,252.00,Savoy Court Hotel Ltd,Accommodation Costs,2031907,202201
Rother District Council,04/04/2022,091HOUSING,Housing and Community Services,20200,Housing Needs - HB (Housing Benefit),D2514,Accommodation Costs,63.00,Savoy Court Hotel Ltd,Accommodation Costs,2031907,202201
Rother District Council,04/04/2022,091HOUSING,Housing and Community Services,20200,Housing Needs - HB (Housing Benefit),D2514,Accommodation Costs,420.00,Savoy Court Hotel Ltd,Accommodation Costs,2031907,202201
Rother District Council,04/04/2022,091HOUSING,Housing and Community Services,20200,Housing Needs - HB (Housing Benefit),D2514,Accommodation Costs,105.00,Savoy Court Hotel Ltd,Accommodation Costs,2031907,202201
Rother District Council,04/04/2022,091HOUSING,Housing and Community Services,20200,Housing Needs - HB (Housing Benefit),D2514,Accommodation Costs,364.00,Savoy Court Hotel Ltd,Accommodation Costs,2031907,202201
Rother District Council,04/04/2022,091HOUSING,Housing and Community Services,20200,Housing Needs - HB (Housing Benefit),D2514,Accommodation Costs,91.00,Savoy Court Hotel Ltd,Accommodation Costs,2031907,202201
Rother District Council,04/04/2022,091HOUSING,Housing and Community Services,20200,Housing Needs - HB (Housing Benefit),D2514,Accommodation Costs,375.00,Savoy Court Hotel Ltd,Accommodation Costs,2031907,202201
Rother District Council,04/04/2022,091HOUSING,Housing and Community Services,20200,Housing Needs - HB (Housing Benefit),D2514,Accommodation Costs,525.00,Savoy Court Hotel Ltd,Accommodation Costs,2031907,202201
Rother District Council,04/04/2022,091HOUSING,Housing and Community Services,20200,Housing Needs - HB (Housing Benefit),D2514,Accommodation Costs,420.00,Savoy Court Hotel Ltd,Accommodation Costs,2031907,202201
Rother District Council,04/04/2022,091HOUSING,Housing and Community Services,20200,Housing Needs - HB (Housing Benefit),D2514,Accommodation Costs,105.00,Savoy Court Hotel Ltd,Accommodation Costs,2031907,202201
Rother District Council,04/04/2022,091HOUSING,Housing and Community Services,20200,Housing Needs - HB (Housing Benefit),D2514,Accommodation Costs,45.00,Savoy Court Hotel Ltd,Accommodation Costs,2031907,202201
Rother District Council,04/04/2022,091HOUSING,Housing and Community Services,20200,Housing Needs - HB (Housing Benefit),D2514,Accommodation Costs,252.00,Savoy Court Hotel Ltd,Accommodation Costs,2031907,202201
Rother District Council,04/04/2022,091HOUSING,Housing and Community Services,20200,Housing Needs - HB (Housing Benefit),D2514,Accommodation Costs,63.00,Savoy Court Hotel Ltd,Accommodation Costs,2031907,202201
Rother District Council,04/04/2022,091HOUSING,Housing and Community Services,20200,Housing Needs - HB (Housing Benefit),D2514,Accommodation Costs,315.00,Savoy Court Hotel Ltd,Accommodation Costs,2031907,202201
Rother District Council,04/04/2022,091HOUSING,Housing and Community Services,20200,Housing Needs - HB (Housing Benefit),D2514,Accommodation Costs,252.00,Savoy Court Hotel Ltd,Accommodation Costs,2031907,202201
Rother District Council,04/04/2022,091HOUSING,Housing and Community Services,20200,Housing Needs - HB (Housing Benefit),D2514,Accommodation Costs,354.00,BNM Parkstone LLP T/A Fourways Residential,Accommodation Costs,2031914,202201
Rother District Council,04/04/2022,091HOUSING,Housing and Community Services,20200,Housing Needs - HB (Housing Benefit),D2508,Removals and Storage,118.00,Chapmans of Hastings,Removals and Storage,2031977,202201
Rother District Council,04/04/2022,091HOUSING,Housing and Community Services,20200,Housing Needs - HB (Housing Benefit),D2508,Removals and Storage,100.00,Chapmans of Hastings,Removals and Storage,2031978,202201
Rother District Council,04/04/2022,091HOUSING,Housing and Community Services,20200,Housing Needs - HB (Housing Benefit),D2514,Accommodation Costs,390.00,Roost People Ltd,Accommodation Costs,2032054,202201
Rother District Council,04/04/2022,091HOUSING,Housing and Community Services,20200,Housing Needs - HB (Housing Benefit),D2514,Accommodation Costs,427.83,Roost People Ltd,Accommodation Costs,2032054,202201
Rother District Council,04/04/2022,091HOUSING,Housing and Community Services,20200,Housing Needs - HB (Housing Benefit),D2514,Accommodation Costs,390.00,Roost People Ltd,Accommodation Costs,2032054,202201
Rother District Council,04/04/2022,091HOUSING,Housing and Community Services,20200,Housing Needs - HB (Housing Benefit),D2514,Accommodation Costs,390.00,Roost People Ltd,Accommodation Costs,2032054,202201
Rother District Council,04/04/2022,091HOUSING,Housing and Community Services,20200,Housing Needs - HB (Housing Benefit),D2514,Accommodation Costs,390.00,Roost People Ltd,Accommodation Costs,2032054,202201
Rother District Council,04/04/2022,091HOUSING,Housing and Community Services,20200,Housing Needs - HB (Housing Benefit),D2514,Accommodation Costs,390.00,Roost People Ltd,Accommodation Costs,2032054,202201
Rother District Council,04/04/2022,091HOUSING,Housing and Community Services,20329,Rough Sleeping Initiative,D2514,Accommodation Costs,315.00,PADA Hanlon Ltd,Accommodation Costs,2031830,202201
Rother District Council,04/04/2022,091HOUSING,Housing and Community Services,20329,Rough Sleeping Initiative,D2514,Accommodation Costs,156.00,SDR Living Ltd,Accommodation Costs,2031834,202201
Rother District Council,04/04/2022,091HOUSING,Housing and Community Services,20329,Rough Sleeping Initiative,D2514,Accommodation Costs,39.00,SDR Living Ltd,Accommodation Costs,2031834,202201
Rother District Council,04/04/2022,091HOUSING,Housing and Community Services,20329,Rough Sleeping Initiative,D2514,Accommodation Costs,68.40,SDR Living Ltd,Accommodation Costs,2031834,202201
Rother District Council,04/04/2022,091HOUSING,Housing and Community Services,20329,Rough Sleeping Initiative,D2514,Accommodation Costs,17.10,SDR Living Ltd,Accommodation Costs,2031834,202201
Rother District Council,04/04/2022,091HOUSING,Housing and Community Services,20329,Rough Sleeping Initiative,D2514,Accommodation Costs,156.00,SDR Living Ltd,Accommodation Costs,2031834,202201
Rother District Council,04/04/2022,091HOUSING,Housing and Community Services,20329,Rough Sleeping Initiative,D2514,Accommodation Costs,39.00,SDR Living Ltd,Accommodation Costs,2031834,202201
Rother District Council,04/04/2022,091HOUSING,Housing and Community Services,20329,Rough Sleeping Initiative,D2514,Accommodation Costs,124.80,SDR Living Ltd,Accommodation Costs,2031834,202201
Rother District Council,04/04/2022,091HOUSING,Housing and Community Services,20329,Rough Sleeping Initiative,D2514,Accommodation Costs,31.20,SDR Living Ltd,Accommodation Costs,2031834,202201
Rother District Council,04/04/2022,091HOUSING,Housing and Community Services,20329,Rough Sleeping Initiative,D2514,Accommodation Costs,308.00,Savoy Court Hotel Ltd,Accommodation Costs,2031907,202201
Rother District Council,04/04/2022,091HOUSING,Housing and Community Services,20329,Rough Sleeping Initiative,D2514,Accommodation Costs,77.00,Savoy Court Hotel Ltd,Accommodation Costs,2031907,202201
Rother District Council,04/04/2022,091HOUSING,Housing and Community Services,20329,Rough Sleeping Initiative,D2514,Accommodation Costs,252.00,Savoy Court Hotel Ltd,Accommodation Costs,2031907,202201
Rother District Council,04/04/2022,091HOUSING,Housing and Community Services,20329,Rough Sleeping Initiative,D2514,Accommodation Costs,63.00,Savoy Court Hotel Ltd,Accommodation Costs,2031907,202201
Rother District Council,04/04/2022,091HOUSING,Housing and Community Services,20329,Rough Sleeping Initiative,D2514,Accommodation Costs,252.00,Savoy Court Hotel Ltd,Accommodation Costs,2031907,202201
Rother District Council,04/04/2022,091HOUSING,Housing and Community Services,20329,Rough Sleeping Initiative,D2514,Accommodation Costs,63.00,Savoy Court Hotel Ltd,Accommodation Costs,2031907,202201
Rother District Council,04/04/2022,091HOUSING,Housing and Community Services,20329,Rough Sleeping Initiative,D2514,Accommodation Costs,315.00,Savoy Court Hotel Ltd,Accommodation Costs,2031907,202201
Rother District Council,04/04/2022,091HOUSING,Housing and Community Services,20329,Rough Sleeping Initiative,D2514,Accommodation Costs,135.00,Savoy Court Hotel Ltd,Accommodation Costs,2031907,202201
Rother District Council,04/04/2022,091HOUSING,Housing and Community Services,20329,Rough Sleeping Initiative,D2514,Accommodation Costs,144.00,Savoy Court Hotel Ltd,Accommodation Costs,2031907,202201
Rother District Council,04/04/2022,091HOUSING,Housing and Community Services,20329,Rough Sleeping Initiative,D2514,Accommodation Costs,36.00,Savoy Court Hotel Ltd,Accommodation Costs,2031907,202201
Rother District Council,04/04/2022,091HOUSING,Housing and Community Services,20329,Rough Sleeping Initiative,D2514,Accommodation Costs,252.00,Savoy Court Hotel Ltd,Accommodation Costs,2031907,202201
Rother District Council,04/04/2022,091HOUSING,Housing and Community Services,20329,Rough Sleeping Initiative,D2514,Accommodation Costs,63.00,Savoy Court Hotel Ltd,Accommodation Costs,2031907,202201
Rother District Council,04/04/2022,091HOUSING,Housing and Community Services,20329,Rough Sleeping Initiative,D2514,Accommodation Costs,63.00,Savoy Court Hotel Ltd,Accommodation Costs,2031907,202201
Rother District Council,04/04/2022,091HOUSING,Housing and Community Services,20200,Housing Needs - HB (Housing Benefit),D2514,Accommodation Costs,390.00,Roost People Ltd,Accommodation Costs,2032054,202201
Rother District Council,04/04/2022,091HOUSING,Housing and Community Services,20200,Housing Needs - HB (Housing Benefit),D2514,Accommodation Costs,390.00,Roost People Ltd,Accommodation Costs,2032054,202201
Rother District Council,04/04/2022,091HOUSING,Housing and Community Services,20200,Housing Needs - HB (Housing Benefit),D2514,Accommodation Costs,390.00,Roost People Ltd,Accommodation Costs,2032054,202201
Rother District Council,04/04/2022,091HOUSING,Housing and Community Services,20200,Housing Needs - HB (Housing Benefit),D2514,Accommodation Costs,390.00,Roost People Ltd,Accommodation Costs,2032054,202201
Rother District Council,04/04/2022,091HOUSING,Housing and Community Services,20329,Rough Sleeping Initiative,D2514,Accommodation Costs,350.00,Roost People Ltd,Accommodation Costs,2032054,202201
Rother District Council,04/04/2022,091HOUSING,Housing and Community Services,20200,Housing Needs - HB (Housing Benefit),D2514,Accommodation Costs,390.00,Roost People Ltd,Accommodation Costs,2032054,202201
Rother District Council,04/04/2022,091HOUSING,Housing and Community Services,20200,Housing Needs - HB (Housing Benefit),D2514,Accommodation Costs,145.71,Roost People Ltd,Accommodation Costs,2032054,202201
Rother District Council,04/04/2022,091HOUSING,Housing and Community Services,20200,Housing Needs - HB (Housing Benefit),D2513,Hired and Contracted services,"7,500.00",Bexhill & Rother Homelessness Unity Group (HUG) CIO,Hired and Contracted services,2032102,202201
Rother District Council,04/04/2022,101RESOURCES,Resources,20216,Cost Of Collection,D2509,Consultants and Other Services,58.67,Stanford and Green Ltd,Consultants and Other Services,2031831,202201
Rother District Council,04/04/2022,091HOUSING,Housing and Community Services,20329,Rough Sleeping Initiative,D2514,Accommodation Costs,315.00,Roost People Ltd,Accommodation Costs,2032054,202201
Rother District Council,04/04/2022,091HOUSING,Housing and Community Services,20329,Rough Sleeping Initiative,D2514,Accommodation Costs,315.00,Roost People Ltd,Accommodation Costs,2032054,202201
Rother District Council,05/04/2022,031RESOURCES,Chief Executive & Corporate Core,20183,Chief Executive,A2203,Training,200.00,Peak Potential,Training,2032553,202202
Rother District Council,05/04/2022,101RESOURCES,Resources,20242,Communications-Phones,D2621,Telephones,"2,148.06",GCI National Business / Nasstar,Telephones - KCOM Smartnumber Charges,2031945,202201
Rother District Council,05/04/2022,091HOUSING,Housing and Community Services,20128,Public Conveniences,B2422,Sewerage,51.60,Scottish Water Business Stream Limited,Sewerage - Sewerage Charges,2031939,202201
Rother District Council,05/04/2022,091HOUSING,Housing and Community Services,20102,Rother Museum Services,B1100,Repairs to Premises,134.69,Stannah Lift Services Ltd,Repairs to Premises - Specified Repairs and Works listed,2032390,202202
Rother District Council,05/04/2022,091HOUSING,Housing and Community Services,20128,Public Conveniences,B1100,Repairs to Premises,62.38,Trade UK Account (Screwfix & B&Q),Repairs to Premises - Purchase of Materials - Build Maint,2031984,202201
Rother District Council,05/04/2022,091HOUSING,Housing and Community Services,20128,Public Conveniences,B1100,Repairs to Premises,45.54,Trade UK Account (Screwfix & B&Q),Repairs to Premises - Purchase of Materials - Build Maint,2031986,202201
Rother District Council,05/04/2022,091HOUSING,Housing and Community Services,20128,Public Conveniences,B1100,Repairs to Premises,1.35,Trade UK Account (Screwfix & B&Q),Repairs to Premises - Purchase of Materials - Build Maint,2031987,202201
Rother District Council,05/04/2022,091HOUSING,Housing and Community Services,20128,Public Conveniences,B1100,Repairs to Premises,46.73,Saint-Gobain Building Distribution Ltd t/a Jewson,Repairs to Premises - Purchase of Materials - Build Maint,2032545,202202
Rother District Council,05/04/2022,091HOUSING,Housing and Community Services,20128,Public Conveniences,B1100,Repairs to Premises,32.85,Trade Paints Ltd,Repairs to Premises - Purchase of Materials - Build Maint,2032600,202202
Rother District Council,05/04/2022,091HOUSING,Housing and Community Services,20114,Bexhill Parks & Open Spaces,B1100,Repairs to Premises,760.00,REDACTED PERSONAL DATA,Repairs to Premises - Parks- Landscaping Works,2033350,202203
Rother District Council,05/04/2022,091HOUSING,Housing and Community Services,20114,Bexhill Parks & Open Spaces,B1100,Repairs to Premises,635.80,Spray Genie Ltd,Repairs to Premises - Lighting Repairs,2031932,202201
Rother District Council,05/04/2022,091HOUSING,Housing and Community Services,20128,Public Conveniences,B1100,Repairs to Premises,185.00,B and G Environmental Services Limited,Repairs to Premises - Drainage Clearance,2032256,202201
Rother District Council,05/04/2022,091HOUSING,Housing and Community Services,20107,Camber Beach & Foreshore,D2623,Radios and licences,75.00,Ofcom - Radio Licence Fees,Radios and licences - Radio/Transmitter Licences,2031938,202201
Rother District Council,05/04/2022,091HOUSING,Housing and Community Services,20204,Housing Administration Account,D2513,Hired and Contracted services,444.00,Cornwall Council,Hired and contracted services - RDC Homelessness Out Of Hours Call Answering Service,2032250,202201
Rother District Council,05/04/2022,041ENVIRON,Environmental Services,32134,EH Pollution R + W Partnership,D2513,Hired and Contracted services,30.25,Cornwall Council,Hired and contracted services - RDC ENV H Out Of Hours Call Answering Service,2032250,202201
Rother District Council,05/04/2022,071STRAT,Strategy and Planning,20246,Planning Applications,D2513,Hired and Contracted services,45.00,H M Land Registry,Hired and contracted services - Land Registry-Planning,2032958,202202
Rother District Council,05/04/2022,091HOUSING,Housing and Community Services,20200,Housing Needs - HB (Housing Benefit),D2513,Hired and Contracted services,9.00,H M Land Registry,Hired and contracted services - Housing-Land Registry,2032958,202202
Rother District Council,05/04/2022,071STRAT,Strategy and Planning,20258,BC Dangerous Structures H+R Partnership,D2513,Hired and Contracted services,6.00,H M Land Registry,Hired and contracted services - Env H-Land Registry,2032958,202202
Rother District Council,05/04/2022,101RESOURCES,Resources,20241,Stationery,D2420,General office supplies (Stationery purchased from ext suppliers),27.30,Banner Group Ltd,General office supplies - Stationery (Stationery Services to buy ONLY),2031923,202201
Rother District Council,05/04/2022,101RESOURCES,Resources,20241,Stationery,D2420,General office supplies (Stationery purchased from ext suppliers),16.59,Banner Group Ltd,General office supplies - Stationery (Stationery Services to buy ONLY),2031925,202201
Rother District Council,05/04/2022,091HOUSING,Housing and Community Services,20108,Bexhill Promenade & Foreshore,B2201,Electricity,3.20,Ecotricity Ltd,Electricity - Electricity Charges,2033958,202203
Rother District Council,05/04/2022,091HOUSING,Housing and Community Services,20108,Bexhill Promenade & Foreshore,B2201,Electricity,5.22,Ecotricity Ltd,Electricity - Electricity Charges,2033959,202203
Rother District Council,05/04/2022,091HOUSING,Housing and Community Services,20108,Bexhill Promenade & Foreshore,B2201,Electricity,11.33,Ecotricity Ltd,Electricity - Electricity Charges,2033960,202203
Rother District Council,05/04/2022,091HOUSING,Housing and Community Services,20114,Bexhill Parks & Open Spaces,B2201,Electricity,35.10,Ecotricity Ltd,Electricity - Electricity Charges,2033955,202203
Rother District Council,05/04/2022,091HOUSING,Housing and Community Services,20137,Car Parks,B2201,Electricity,59.19,Ecotricity Ltd,Electricity - Electricity Charges,2033956,202203
Rother District Council,05/04/2022,091HOUSING,Housing and Community Services,20137,Car Parks,B2201,Electricity,8.36,Ecotricity Ltd,Electricity - Electricity Charges,2033957,202203
Rother District Council,05/04/2022,091HOUSING,Housing and Community Services,20137,Car Parks,B2201,Electricity,20.28,Ecotricity Ltd,Electricity - Electricity Charges,2033958,202203
Rother District Council,05/04/2022,091HOUSING,Housing and Community Services,20137,Car Parks,B2201,Electricity,33.05,Ecotricity Ltd,Electricity - Electricity Charges,2033959,202203
Rother District Council,05/04/2022,091HOUSING,Housing and Community Services,20137,Car Parks,B2201,Electricity,71.74,Ecotricity Ltd,Electricity - Electricity Charges,2033960,202203
Rother District Council,05/04/2022,091HOUSING,Housing and Community Services,20138,Residual Highway Services,B2201,Electricity,49.25,Ecotricity Ltd,Electricity - Electricity Charges,2033956,202203
Rother District Council,05/04/2022,041ENVIRON,Environmental Services,20129,Community Safety - CCTV costs only,B2201,Electricity,443.73,Ecotricity Ltd,Electricity - Electricity Charges,2033956,202203
Rother District Council,05/04/2022,091HOUSING,Housing and Community Services,20138,Residual Highway Services,B2201,Electricity,6.96,Ecotricity Ltd,Electricity - Electricity Charges,2033957,202203
Rother District Council,05/04/2022,041ENVIRON,Environmental Services,20129,Community Safety - CCTV costs only,B2201,Electricity,62.69,Ecotricity Ltd,Electricity - Electricity Charges,2033957,202203
Rother District Council,05/04/2022,091HOUSING,Housing and Community Services,20138,Residual Highway Services,B2201,Electricity,3.20,Ecotricity Ltd,Electricity - Electricity Charges,2033958,202203
Rother District Council,05/04/2022,091HOUSING,Housing and Community Services,20138,Residual Highway Services,B2201,Electricity,5.22,Ecotricity Ltd,Electricity - Electricity Charges,2033959,202203
Rother District Council,05/04/2022,091HOUSING,Housing and Community Services,20138,Residual Highway Services,B2201,Electricity,11.33,Ecotricity Ltd,Electricity - Electricity Charges,2033960,202203
Rother District Council,05/04/2022,091HOUSING,Housing and Community Services,20145,Maintenance Services,D2352,Clothing and Uniforms,24.99,Trade UK Account (Screwfix & B&Q),Clothing and Uniforms - Mens Protective-Coat,2031985,202201
Rother District Council,05/04/2022,999NOREPORT,Environmental Services,70706,Capital - Disabled Facilities Grant,N1012,Capital Advances,"3,021.09",REDACTED PERSONAL DATA,Capital Advances Disabled Facilities Grant,2032085,202201
Rother District Council,05/04/2022,999NOREPORT,Environmental Services,70706,Capital - Disabled Facilities Grant,N1012,Capital Advances,651.29,Peabody South East Ltd,Capital Advances Disabled Facilities Grant,2032086,202201
Rother District Council,05/04/2022,999NOREPORT,Environmental Services,70706,Capital - Disabled Facilities Grant,N1012,Capital Advances,532.05,Peabody South East Ltd,Capital Advances Disabled Facilities Grant,2032088,202201
Rother District Council,05/04/2022,999NOREPORT,Environmental Services,70706,Capital - Disabled Facilities Grant,N1012,Capital Advances,"7,256.81",Hedley Visick Ltd,Capital Advances Disabled Facilities Grant,2032089,202201
